Service Area,Service Division,Expense Type,Expense Code,Detailed Expense Type,Payment Date,Transaction Number,Amount Exc VAT,Supplier Name
Adult and Health Services,Central/Other,Supplies and Services,336005,Advertising E336,03/07/2023,4151958-96394,591.00,ALLWAG PROMOTIONS LTD.
Regeneration Economy and Growth,Planning & Housing,Supplies and Services,336005,Advertising E336,03/07/2023,4152362-42916924,824.99,NEWSQUEST (YORKSHIRE & NORTH EAST) LTD.
Regeneration Economy and Growth,Corporate Property and Land,Supplies and Services,336005,Advertising E336,03/07/2023,4152547-034480,689.00,WE ARE SUNDAY LTD.
Neighbourhoods and Climate Change,Highways,Premises,150015,Apportioned Exps of Operational Blds,03/07/2023,4152164-413962735,"1,150.00",GAP GROUP LTD.
Neighbourhoods and Climate Change,Highways,Premises,150015,Apportioned Exps of Operational Blds,03/07/2023,4152164-413962736,"1,150.00",GAP GROUP LTD.
Neighbourhoods and Climate Change,Community Protection,Premises,150015,Apportioned Exps of Operational Blds,03/07/2023,4152164-7135724,640.00,GAP GROUP LTD.
Neighbourhoods and Climate Change,Community Protection,Premises,150015,Apportioned Exps of Operational Blds,03/07/2023,4152164-7135725,640.00,GAP GROUP LTD.
Neighbourhoods and Climate Change,Community Protection,Premises,150015,Apportioned Exps of Operational Blds,03/07/2023,4152164-7135726,640.00,GAP GROUP LTD.
Neighbourhoods and Climate Change,Highways,Premises,150015,Apportioned Exps of Operational Blds,03/07/2023,4152549-230057320,680.80,WERNICK HIRE LTD.
Neighbourhoods and Climate Change,Highways,Premises,150015,Apportioned Exps of Operational Blds,03/07/2023,4152549-230057322,680.80,WERNICK HIRE LTD.
Neighbourhoods and Climate Change,Highways,Premises,150015,Apportioned Exps of Operational Blds,03/07/2023,4152549-230057326,594.73,WERNICK HIRE LTD.
Neighbourhoods and Climate Change,Environmental Services,Premises,150015,Apportioned Exps of Operational Blds,03/07/2023,4152549-230057366,680.80,WERNICK HIRE LTD.
Neighbourhoods and Climate Change,Environmental Services,Premises,150015,Apportioned Exps of Operational Blds,03/07/2023,4152549-230057367,680.80,WERNICK HIRE LTD.
Neighbourhoods and Climate Change,Highways,Premises,150015,Apportioned Exps of Operational Blds,03/07/2023,4152549-230062650,821.80,WERNICK HIRE LTD.
Regeneration Economy and Growth,Culture Sport and Tourism,Premises,145023,Cleaning and Domestic Supplies,03/07/2023,4152182-06/227076,740.10,GREENHAM TRADING LTD.
Neighbourhoods and Climate Change,Environmental Services,Supplies and Services,328041,Clothing uniforms and laundry E328,03/07/2023,4151935-39693,"14,218.20",1ST COVERALL COMPANY LTD.
Neighbourhoods and Climate Change,Environmental Services,Supplies and Services,328041,Clothing uniforms and laundry E328,03/07/2023,4151935-39694,710.91,1ST COVERALL COMPANY LTD.
Resources BK0010,Digital Services,Supplies and Services,342053,Computers and Communications,03/07/2023,4152180-163289,"237,415.00",GRANICUS-FIRMSTEP LTD.
Regeneration Economy and Growth,Corporate Property and Land,Supplies and Services,342033,Computers and Communications,03/07/2023,4152220-2100626124,"1,685.28",INSIGHT DIRECT (UK) LTD.
Resources BK0010,Digital Services,Supplies and Services,342225,Computers and Communications,03/07/2023,4152464-INVUK896523,"80,800.00",SOFTCAT PLC.
Resources BK0010,Digital Services,Supplies and Services,342051,Computers and Communications,03/07/2023,4152467-OP/N390698,"9,727.19",SPECIALIST COMPUTER CENTRES PLC.
Resources BK0010,Digital Services,Supplies and Services,342051,Computers and Communications,03/07/2023,4152467-OP/N390699,"99,448.86",SPECIALIST COMPUTER CENTRES PLC.
Resources BK0010,Digital Services,Supplies and Services,342051,Computers and Communications,03/07/2023,4152559-LE19302,"9,240.00",XMA LTD.
Neighbourhoods and Climate Change,Environmental Services,Construction work A908,908105,Construction work,03/07/2023,4152096-INV-0036,"3,878.00",DIFFERENTIA LTD.
Neighbourhoods and Climate Change,Environmental Services,Fees,901002,Consultants fees 901002,03/07/2023,4152204-27384,"2,904.00",HICKTON CONSULTANTS LIMITED.
Children and Young Peoples Services,Head of Education and Skills,Transport,230008,Contract Hire,03/07/2023,4151968-01129,"3,196.00",REDACTED - PAYMENT TO INDIVIDUAL
Children and Young Peoples Services,Head of Education and Skills,Transport,230010,Contract Hire,03/07/2023,4151968-01130,"1,305.00",REDACTED - PAYMENT TO INDIVIDUAL
Neighbourhoods and Climate Change,Environmental Services,Transport,230005,Contract Hire,03/07/2023,4152079-23610,771.30,CP DAVIDSON & SONS LTD.
Neighbourhoods and Climate Change,Environmental Services,Transport,230005,Contract Hire,03/07/2023,4152372-SL07735094INV,565.92,NORTHGATE VEHICLE HIRE LTD.
Neighbourhoods and Climate Change,Environmental Services,Transport,230005,Contract Hire,03/07/2023,4152372-SL07736617INV,"1,052.24",NORTHGATE VEHICLE HIRE LTD.
Neighbourhoods and Climate Change,Environmental Services,Transport,230005,Contract Hire,03/07/2023,4152372-SL07741600INV,532.28,NORTHGATE VEHICLE HIRE LTD.
Neighbourhoods and Climate Change,Environmental Services,Transport,230007,Contract Hire,03/07/2023,4152479-62824,840.00,STANLEY TRAVEL (NORTH EAST) LTD.
Neighbourhoods and Climate Change,Environmental Services,Transport,230005,Contract Hire,03/07/2023,4152526-25984,"1,375.00",TRASH UK LTD.
Neighbourhoods and Climate Change,Environmental Services,Transport,230005,Contract Hire,03/07/2023,4152526-25985,"1,375.00",TRASH UK LTD.
Neighbourhoods and Climate Change,Environmental Services,Transport,230005,Contract Hire,03/07/2023,4152526-25986,"1,375.00",TRASH UK LTD.
Neighbourhoods and Climate Change,Environmental Services,Transport,230005,Contract Hire,03/07/2023,4152526-25990,"1,375.00",TRASH UK LTD.
Neighbourhoods and Climate Change,Environmental Services,Transport,230005,Contract Hire,03/07/2023,4152526-25991,"1,375.00",TRASH UK LTD.
Neighbourhoods and Climate Change,Environmental Services,Transport,230005,Contract Hire,03/07/2023,4152526-25992,"1,375.00",TRASH UK LTD.
Adult and Health Services,Public Health CC0450,Third Party Payments,460802,Contract Payments,03/07/2023,4152078-3910021792,"384,362.00",COUNTY DURHAM & DARLINGTON NHS FOUNDATION TRUST (CDDFT).
Adult and Health Services,Public Health CC0450,Third Party Payments,460803,Contract Payments,03/07/2023,4152078-3910021793,"180,916.00",COUNTY DURHAM & DARLINGTON NHS FOUNDATION TRUST (CDDFT).
Adult and Health Services,Public Health CC0450,Third Party Payments,460803,Contract Payments,03/07/2023,4152078-3910021794,"30,830.00",COUNTY DURHAM & DARLINGTON NHS FOUNDATION TRUST (CDDFT).
Adult and Health Services,Public Health CC0450,Third Party Payments,460802,Contract Payments,03/07/2023,4152078-3910021795,"6,448.00",COUNTY DURHAM & DARLINGTON NHS FOUNDATION TRUST (CDDFT).
Adult and Health Services,Public Health CC0450,Third Party Payments,460803,Contract Payments,03/07/2023,4152078-3910021800,"5,634.00",COUNTY DURHAM & DARLINGTON NHS FOUNDATION TRUST (CDDFT).
Adult and Health Services,Public Health CC0450,Third Party Payments,460803,Contract Payments,03/07/2023,4152393-1241459,"2,405.00",PHOENIX FUTURES.
Neighbourhoods and Climate Change,Environmental Services,Supplies and Services,304259,Equipment and Materials,03/07/2023,4151982-INV158162,643.08,AZTEC CHEMICALS LTD.
Neighbourhoods and Climate Change,Highways,Supplies and Services,304221,Equipment and Materials,03/07/2023,4151986-112990,"14,371.90",BAYDALE CONTROL SYSTEMS LTD.
Neighbourhoods and Climate Change,Highways,Supplies and Services,304221,Equipment and Materials,03/07/2023,4151992-207R02735,652.19,BIFFA WASTE SERVICES LTD.
Neighbourhoods and Climate Change,Environmental Services,Supplies and Services,304221,Equipment and Materials,03/07/2023,4152122-0000102605,960.00,EAST RIDING HORTICULTURE LTD.
Neighbourhoods and Climate Change,Environmental Services,Supplies and Services,304221,Equipment and Materials,03/07/2023,4152147-6936894,736.84,ESE WORLD LTD.
Neighbourhoods and Climate Change,Highways,Supplies and Services,304221,Equipment and Materials,03/07/2023,4152175-SI864680,"1,136.68",GLASDON UK LTD.
Neighbourhoods and Climate Change,Highways,Supplies and Services,304221,Equipment and Materials,03/07/2023,4152182-06/227358,533.00,GREENHAM TRADING LTD.
Resources BK0010,Digital Services,Supplies and Services,304303,Equipment and Materials,03/07/2023,4152185-INV0193756,"1,109.89",GVAV LTD.
Resources BK0010,Digital Services,Supplies and Services,304303,Equipment and Materials,03/07/2023,4152185-INV0193757,"1,338.54",GVAV LTD.
Regeneration Economy and Growth,Corporate Property and Land,Supplies and Services,304221,Equipment and Materials,03/07/2023,4152216-INV-0737,"3,504.19",HYDRATEC LIFT SERVICES LTD.
Neighbourhoods and Climate Change,Highways,Supplies and Services,304221,Equipment and Materials,03/07/2023,4152249-0104/00026687,855.68,JT DOVE LTD.
Regeneration Economy and Growth,Corporate Property and Land,Supplies and Services,304221,Equipment and Materials,03/07/2023,4152249-0113/00047199,"2,944.00",JT DOVE LTD.
Regeneration Economy and Growth,Corporate Property and Land,Supplies and Services,304221,Equipment and Materials,03/07/2023,4152249-0213/00922440,"1,396.73",JT DOVE LTD.
Resources BK0010,Transactional & Customer Services,Supplies and Services,304259,Equipment and Materials,03/07/2023,4152380-0000196246,830.70,ONLINE ERGONOMICS LTD.
Regeneration Economy and Growth,Corporate Property and Land,Supplies and Services,304221,Equipment and Materials,03/07/2023,4152382-DT206925,594.51,PARK ELECTRICAL DISTRIBUTORS LTD.
Regeneration Economy and Growth,Corporate Property and Land,Supplies and Services,304221,Equipment and Materials,03/07/2023,4152498-1017554,751.21,T CROSSLING & CO LTD.
Neighbourhoods and Climate Change,Highways,Supplies and Services,304221,Equipment and Materials,03/07/2023,4152500-9047023132,989.60,TARMAC TRADING LTD.
Neighbourhoods and Climate Change,Highways,Supplies and Services,304221,Equipment and Materials,03/07/2023,4152500-9047034884,989.60,TARMAC TRADING LTD.
Neighbourhoods and Climate Change,Highways,Supplies and Services,304221,Equipment and Materials,03/07/2023,4152530-247475,"2,622.37",TYNEDALE ROADSTONE LTD.
Neighbourhoods and Climate Change,Highways,Supplies and Services,304221,Equipment and Materials,03/07/2023,4152530-247476,"14,168.72",TYNEDALE ROADSTONE LTD.
Neighbourhoods and Climate Change,Highways,Supplies and Services,304221,Equipment and Materials,03/07/2023,4152530-247477,"8,660.40",TYNEDALE ROADSTONE LTD.
Neighbourhoods and Climate Change,Highways,Supplies and Services,304221,Equipment and Materials,03/07/2023,4152530-247478,"3,796.05",TYNEDALE ROADSTONE LTD.
Neighbourhoods and Climate Change,Highways,Supplies and Services,304221,Equipment and Materials,03/07/2023,4152530-247480,"3,193.18",TYNEDALE ROADSTONE LTD.
Neighbourhoods and Climate Change,Highways,Supplies and Services,304221,Equipment and Materials,03/07/2023,4152530-247481,"1,076.92",TYNEDALE ROADSTONE LTD.
Children and Young Peoples Services,Head of Childrens Social Care,Supplies and Services,384500,Miscellaneous Expenses,03/07/2023,4151974-ARC2324-633,"1,330.00",ARC ADOPTION NORTH EAST.
Children and Young Peoples Services,Head of Early Help Inclusion & Vulnerable Children.,Supplies and Services,384491,Miscellaneous Expenses,03/07/2023,4152143-CRE-23-05,870.00,EMERALDS LITTLE GEMS DAYCARE LTD.
Children and Young Peoples Services,Childrens Services Operational Support,Supplies and Services,384302,Miscellaneous Expenses,03/07/2023,4152224-859,500.00,INVESTING IN CHILDREN CIC.
Regeneration Economy and Growth,Transport and Contracted Services,Supplies and Services,384899,Miscellaneous Expenses,03/07/2023,4152363-104489,"49,346.79",NEXUS.
Children and Young Peoples Services,Head of Childrens Social Care,Supplies and Services,384500,Miscellaneous Expenses,03/07/2023,4152420-116,660.00,REFLECTION ROOM THERAPY SERVICE.
Children and Young Peoples Services,Head of Childrens Social Care,Supplies and Services,384500,Miscellaneous Expenses,03/07/2023,4152420-117,540.00,REFLECTION ROOM THERAPY SERVICE.
Adult and Health Services,Commissioning inc Supporting People,Supplies and Services,384540,Miscellaneous Expenses,03/07/2023,4152434-S5432,675.00,ROUND SUN LTD T/A PRIMARY TIMES NORTH EAST.
Regeneration Economy and Growth,Culture Sport and Tourism,Supplies and Services,312017,Newspapers books and periodicals E312,03/07/2023,4151978-6895192,634.60,ASKEWS & HOLTS LIBRARY SERVICES LTD.
Regeneration Economy and Growth,Culture Sport and Tourism,Supplies and Services,312013,Newspapers books and periodicals E312,03/07/2023,4151978-6898685,594.36,ASKEWS & HOLTS LIBRARY SERVICES LTD.
Regeneration Economy and Growth,Culture Sport and Tourism,Supplies and Services,312013,Newspapers books and periodicals E312,03/07/2023,4152114-24062023,"1,978.23",DURHAM CITY NEWSTORE.
Regeneration Economy and Growth,Culture Sport and Tourism,Supplies and Services,312013,Newspapers books and periodicals E312,03/07/2023,4152377-6000004786,"3,077.73",OCLC (UK) LTD.
Children and Young Peoples Services,Head of Education and Skills,Third Party Payments,440999,Other third party payments E440,03/07/2023,4152025-26,"15,910.00",BROADSIDE CREATIVES CIC.
Children and Young Peoples Services,Head of Education and Skills,Third Party Payments,440999,Other third party payments E440,03/07/2023,4152183-SI-0000251,500.00,GROUNDWORK NORTH EAST.
Children and Young Peoples Services,Head of Education and Skills,Third Party Payments,440999,Other third party payments E440,03/07/2023,4152218-SI-1190,"5,126.00",IMPACT NORTH EAST CIC.
Children and Young Peoples Services,Head of Childrens Social Care,Third Party Payments,440046,Other third party payments E440,03/07/2023,4152312-2388,"5,533.50",MAJOR RECRUITMENT LTD.
Children and Young Peoples Services,Head of Childrens Social Care,Third Party Payments,440046,Other third party payments E440,03/07/2023,4152312-2389,"1,803.82",MAJOR RECRUITMENT LTD.
Children and Young Peoples Services,Head of Childrens Social Care,Third Party Payments,440046,Other third party payments E440,03/07/2023,4152312-2390,"10,339.42",MAJOR RECRUITMENT LTD.
Children and Young Peoples Services,Head of Childrens Social Care,Third Party Payments,440046,Other third party payments E440,03/07/2023,4152312-2391,"9,520.49",MAJOR RECRUITMENT LTD.
Children and Young Peoples Services,Head of Childrens Social Care,Third Party Payments,440046,Other third party payments E440,03/07/2023,4152312-2392,"9,753.31",MAJOR RECRUITMENT LTD.
Children and Young Peoples Services,Head of Childrens Social Care,Third Party Payments,440046,Other third party payments E440,03/07/2023,4152312-2693,"1,778.63",MAJOR RECRUITMENT LTD.
Children and Young Peoples Services,Head of Childrens Social Care,Third Party Payments,440046,Other third party payments E440,03/07/2023,4152312-2694,"10,887.05",MAJOR RECRUITMENT LTD.
Children and Young Peoples Services,Head of Childrens Social Care,Third Party Payments,440046,Other third party payments E440,03/07/2023,4152312-2695,"10,399.93",MAJOR RECRUITMENT LTD.
Children and Young Peoples Services,Head of Childrens Social Care,Third Party Payments,440046,Other third party payments E440,03/07/2023,4152312-2696,"10,777.02",MAJOR RECRUITMENT LTD.
Children and Young Peoples Services,Head of Childrens Social Care,Third Party Payments,440046,Other third party payments E440,03/07/2023,4152312-3022,"5,355.01",MAJOR RECRUITMENT LTD.
Children and Young Peoples Services,Head of Childrens Social Care,Third Party Payments,440046,Other third party payments E440,03/07/2023,4152312-3023,"3,271.61",MAJOR RECRUITMENT LTD.
Children and Young Peoples Services,Head of Childrens Social Care,Third Party Payments,440046,Other third party payments E440,03/07/2023,4152312-3024,"11,160.94",MAJOR RECRUITMENT LTD.
Children and Young Peoples Services,Head of Childrens Social Care,Third Party Payments,440046,Other third party payments E440,03/07/2023,4152312-3025,"10,940.80",MAJOR RECRUITMENT LTD.
Children and Young Peoples Services,Head of Childrens Social Care,Third Party Payments,440046,Other third party payments E440,03/07/2023,4152312-3026,"11,164.46",MAJOR RECRUITMENT LTD.
Children and Young Peoples Services,Head of Childrens Social Care,Third Party Payments,440046,Other third party payments E440,03/07/2023,4152312-3027,"11,509.11",MAJOR RECRUITMENT LTD.
Children and Young Peoples Services,Head of Childrens Social Care,Third Party Payments,440046,Other third party payments E440,03/07/2023,4152312-3354,"1,226.24",MAJOR RECRUITMENT LTD.
Children and Young Peoples Services,Head of Childrens Social Care,Third Party Payments,440046,Other third party payments E440,03/07/2023,4152312-3355,"10,877.19",MAJOR RECRUITMENT LTD.
Children and Young Peoples Services,Head of Childrens Social Care,Third Party Payments,440046,Other third party payments E440,03/07/2023,4152312-3356,"8,832.28",MAJOR RECRUITMENT LTD.
Children and Young Peoples Services,Head of Childrens Social Care,Third Party Payments,440046,Other third party payments E440,03/07/2023,4152312-3357,"10,473.06",MAJOR RECRUITMENT LTD.
Children and Young Peoples Services,Head of Childrens Social Care,Third Party Payments,440046,Other third party payments E440,03/07/2023,4152312-3670,"1,815.58",MAJOR RECRUITMENT LTD.
Children and Young Peoples Services,Head of Childrens Social Care,Third Party Payments,440046,Other third party payments E440,03/07/2023,4152312-3671,"10,315.27",MAJOR RECRUITMENT LTD.
Children and Young Peoples Services,Head of Childrens Social Care,Third Party Payments,440046,Other third party payments E440,03/07/2023,4152312-3672,"2,133.00",MAJOR RECRUITMENT LTD.
Children and Young Peoples Services,Head of Childrens Social Care,Third Party Payments,440046,Other third party payments E440,03/07/2023,4152312-3673,"2,142.00",MAJOR RECRUITMENT LTD.
Children and Young Peoples Services,Head of Childrens Social Care,Third Party Payments,440046,Other third party payments E440,03/07/2023,4152312-3674,"10,174.12",MAJOR RECRUITMENT LTD.
Children and Young Peoples Services,Head of Education and Skills,Third Party Payments,440999,Other third party payments E440,03/07/2023,4152322-AW1118,"10,030.00",MBC ARTS WELLBEING CIC.
Children and Young Peoples Services,Head of Education and Skills,Third Party Payments,440999,Other third party payments E440,03/07/2023,4152470-22-23-INV09,"11,342.04",SPORTSCAPE TRAINING LTD.
Children and Young Peoples Services,Head of Childrens Social Care,Third Party Payments,440046,Other third party payments E440,03/07/2023,4152535-INV-0919,"13,104.21",VELOX HEALTHCARE.
Children and Young Peoples Services,Head of Childrens Social Care,Third Party Payments,440046,Other third party payments E440,03/07/2023,4152535-INV-0943,"12,415.38",VELOX HEALTHCARE.
Children and Young Peoples Services,Head of Childrens Social Care,Third Party Payments,440046,Other third party payments E440,03/07/2023,4152535-INV-0963,"12,145.09",VELOX HEALTHCARE.
Children and Young Peoples Services,Head of Childrens Social Care,Third Party Payments,440046,Other third party payments E440,03/07/2023,4152535-INV-0964,"5,007.70",VELOX HEALTHCARE.
Children and Young Peoples Services,Head of Childrens Social Care,Third Party Payments,440046,Other third party payments E440,03/07/2023,4152535-INV-0965,"5,012.50",VELOX HEALTHCARE.
Resources BK0010,HR & Employee Services,Supplies and Services,340001,Postages E340,03/07/2023,4152435-9067675453,"15,656.41",ROYAL MAIL GROUP PLC.
Chief Executives Office,Communications Management,Supplies and Services,332029,Printing Stationery and Gen Off Exps,03/07/2023,4152414-20946,570.00,RADECAL SIGNS GRAPHICS & ADVERTISING.
Regeneration Economy and Growth,Culture Sport and Tourism,Supplies and Services,324117,Provisions E324,03/07/2023,4151991-21861957,895.57,BIDFOOD.
Regeneration Economy and Growth,Culture Sport and Tourism,Supplies and Services,324117,Provisions E324,03/07/2023,4151991-22151210,"2,541.32",BIDFOOD.
Adult and Health Services,Head of Adults,Third Party Payments,478151,Purchase of Care,03/07/2023,4151943-SI-1927,"1,973.92",ACCEPT CARE LTD.
Adult and Health Services,Commissioning inc Supporting People,Third Party Payments,479102,Purchase of Care,03/07/2023,4152046-1199,"2,867.62",CHILD ACTION NORTHWEST.
Adult and Health Services,Commissioning inc Supporting People,Third Party Payments,479102,Purchase of Care,03/07/2023,4152115-565,"5,750.00",DURHAM COUNTY CARERS SUPPORT.
Adult and Health Services,Head of Adults,Third Party Payments,479102,Purchase of Care,03/07/2023,4152399-INV-0177,"7,561.08",POSITIVE CARE & SUPPORT LTD.
Adult and Health Services,Head of Adults,Third Party Payments,479102,Purchase of Care,03/07/2023,4152399-INV-0178,543.90,POSITIVE CARE & SUPPORT LTD.
Adult and Health Services,Head of Adults,Third Party Payments,479102,Purchase of Care,03/07/2023,4152399-INV-0179,826.00,POSITIVE CARE & SUPPORT LTD.
Adult and Health Services,Head of Adults,Third Party Payments,479102,Purchase of Care,03/07/2023,4152399-INV-0180,"5,981.10",POSITIVE CARE & SUPPORT LTD.
Adult and Health Services,Head of Adults,Third Party Payments,479102,Purchase of Care,03/07/2023,4152399-INV-0181,600.60,POSITIVE CARE & SUPPORT LTD.
Regeneration Economy and Growth,Corporate Property and Land,Third Party Payments,430100,Rendered by Private Contractors,03/07/2023,4151972-INV-0089,600.00,APEX ROOFING SPECIALISTS LTD.
Regeneration Economy and Growth,Corporate Property and Land,Third Party Payments,430100,Rendered by Private Contractors,03/07/2023,4151972-INV-0091,"25,000.00",APEX ROOFING SPECIALISTS LTD.
Neighbourhoods and Climate Change,Environmental Services,Third Party Payments,430100,Rendered by Private Contractors,03/07/2023,4152018-425,"2,440.90",BRAMBLEDOWN LANDSCAPE SERVICES LTD.
Regeneration Economy and Growth,Corporate Property and Land,Third Party Payments,430100,Rendered by Private Contractors,03/07/2023,4152043-11335,959.29,CATHEDRAL LOCK & SAFE SERVICES LTD.
Regeneration Economy and Growth,Corporate Property and Land,Third Party Payments,430100,Rendered by Private Contractors,03/07/2023,4152043-11338,673.48,CATHEDRAL LOCK & SAFE SERVICES LTD.
Regeneration Economy and Growth,Corporate Property and Land,Third Party Payments,430100,Rendered by Private Contractors,03/07/2023,4152063-10585,"3,703.60",COMMERCIAL COVERINGS LTD.
Regeneration Economy and Growth,Culture Sport and Tourism,Third Party Payments,430100,Rendered by Private Contractors,03/07/2023,4152065-INV01068,533.25,COMPETITION LINE UK LTD T/A LIFESTYLE FITNESS.
Neighbourhoods and Climate Change,Environmental Services,Third Party Payments,430100,Rendered by Private Contractors,03/07/2023,4152125-INV-692,960.00,ECO ENTERPRISES LTD.
Regeneration Economy and Growth,Corporate Property and Land,Third Party Payments,430100,Rendered by Private Contractors,03/07/2023,4152219-13970C,"9,505.00",INGLEFORD SCAFFOLDING LTD.
Regeneration Economy and Growth,Corporate Property and Land,Third Party Payments,430100,Rendered by Private Contractors,03/07/2023,4152219-14381,"3,265.00",INGLEFORD SCAFFOLDING LTD.
Neighbourhoods and Climate Change,Highways,Third Party Payments,430100,Rendered by Private Contractors,03/07/2023,4152407-14945,"1,633.28",QUANTUM POWER CONNECTIONS LTD.
Neighbourhoods and Climate Change,Highways,Third Party Payments,430100,Rendered by Private Contractors,03/07/2023,4152407-15008,"1,024.99",QUANTUM POWER CONNECTIONS LTD.
Neighbourhoods and Climate Change,Highways,Third Party Payments,430100,Rendered by Private Contractors,03/07/2023,4152407-15009,"2,926.20",QUANTUM POWER CONNECTIONS LTD.
Regeneration Economy and Growth,Corporate Property and Land,Third Party Payments,430100,Rendered by Private Contractors,03/07/2023,4152428-76541,"4,980.00",RJ UTILITY SERVICES LTD.
Neighbourhoods and Climate Change,Highways,Third Party Payments,430100,Rendered by Private Contractors,03/07/2023,4152451-24438,"68,020.51",SEYMOUR (CIVIL ENGINEERING CONTRACTORS) LTD.
Regeneration Economy and Growth,Corporate Property and Land,Third Party Payments,430100,Rendered by Private Contractors,03/07/2023,4152482-19092,"1,860.00",STEADFAST SECURITY SOLUTIONS LTD.
Neighbourhoods and Climate Change,Highways,Third Party Payments,430128,Rendered by Private Contractors,03/07/2023,4152544-52064,520.00,W MARLEY AGRICULTURAL CONTRACTORS LTD.
Dedicated Schools Grant BG0015,DSG Early Years Block,Transfer Payments,510032,School Children,03/07/2023,4152047-36359,"2,554.86",REDACTED - PAYMENT TO INDIVIDUAL
Dedicated Schools Grant BG0015,DSG Early Years Block,Transfer Payments,510030,School Children,03/07/2023,4152047-36556,"1,005.21",REDACTED - PAYMENT TO INDIVIDUAL
Dedicated Schools Grant BG0015,DSG Early Years Block,Transfer Payments,510030,School Children,03/07/2023,4152265-36575,"26,733.20",REDACTED - PAYMENT TO INDIVIDUAL
Dedicated Schools Grant BG0015,DSG Early Years Block,Transfer Payments,510030,School Children,03/07/2023,4152290-36648,844.35,REDACTED - PAYMENT TO INDIVIDUAL
Dedicated Schools Grant BG0015,DSG Early Years Block,Transfer Payments,510030,School Children,03/07/2023,4151960-36520,"1,281.15",REDACTED - PAYMENT TO INDIVIDUAL
Dedicated Schools Grant BG0015,DSG Early Years Block,Transfer Payments,510032,School Children,03/07/2023,4151962-36336,539.17,REDACTED - PAYMENT TO INDIVIDUAL
Dedicated Schools Grant BG0015,DSG Early Years Block,Transfer Payments,510030,School Children,03/07/2023,4151962-36523,"1,669.20",REDACTED - PAYMENT TO INDIVIDUAL
Dedicated Schools Grant BG0015,DSG Early Years Block,Transfer Payments,510032,School Children,03/07/2023,4151963-36337,539.17,REDACTED - PAYMENT TO INDIVIDUAL
Dedicated Schools Grant BG0015,DSG Early Years Block,Transfer Payments,510030,School Children,03/07/2023,4151964-36528,"1,043.25",REDACTED - PAYMENT TO INDIVIDUAL
Dedicated Schools Grant BG0015,DSG Early Years Block,Transfer Payments,510032,School Children,03/07/2023,4151966-36338,539.17,REDACTED - PAYMENT TO INDIVIDUAL
Dedicated Schools Grant BG0015,DSG Early Years Block,Transfer Payments,510030,School Children,03/07/2023,4151966-36526,"1,090.40",REDACTED - PAYMENT TO INDIVIDUAL
Dedicated Schools Grant BG0015,DSG Early Years Block,Transfer Payments,510032,School Children,03/07/2023,4151970-36342,746.55,REDACTED - PAYMENT TO INDIVIDUAL
Dedicated Schools Grant BG0015,DSG Early Years Block,Transfer Payments,510032,School Children,03/07/2023,4151990-36344,"2,426.29",REDACTED - PAYMENT TO INDIVIDUAL
Dedicated Schools Grant BG0015,DSG Early Years Block,Transfer Payments,510030,School Children,03/07/2023,4151990-36532,"12,626.64",REDACTED - PAYMENT TO INDIVIDUAL
Dedicated Schools Grant BG0015,DSG Early Years Block,Transfer Payments,510030,School Children,03/07/2023,4152037-36549,"1,043.25",REDACTED - PAYMENT TO INDIVIDUAL
Dedicated Schools Grant BG0015,DSG Early Years Block,Transfer Payments,510032,School Children,03/07/2023,4152053-36360,"1,721.21",REDACTED - PAYMENT TO INDIVIDUAL
Dedicated Schools Grant BG0015,DSG Early Years Block,Transfer Payments,510030,School Children,03/07/2023,4152053-36558,"1,321.61",REDACTED - PAYMENT TO INDIVIDUAL
Dedicated Schools Grant BG0015,DSG Early Years Block,Transfer Payments,510030,School Children,03/07/2023,4152055-36560,"2,662.14",REDACTED - PAYMENT TO INDIVIDUAL
Dedicated Schools Grant BG0015,DSG Early Years Block,Transfer Payments,510030,School Children,03/07/2023,4152138-36580,776.10,REDACTED - PAYMENT TO INDIVIDUAL
Dedicated Schools Grant BG0015,DSG Early Years Block,Transfer Payments,510030,School Children,03/07/2023,4152139-36581,618.64,REDACTED - PAYMENT TO INDIVIDUAL
Dedicated Schools Grant BG0015,DSG Early Years Block,Transfer Payments,510032,School Children,03/07/2023,4152187-36416,"1,368.67",REDACTED - PAYMENT TO INDIVIDUAL
Dedicated Schools Grant BG0015,DSG Early Years Block,Transfer Payments,510030,School Children,03/07/2023,4152187-36653,"3,414.79",REDACTED - PAYMENT TO INDIVIDUAL
Dedicated Schools Grant BG0015,DSG Early Years Block,Transfer Payments,510032,School Children,03/07/2023,4152197-36385,539.17,REDACTED - PAYMENT TO INDIVIDUAL
Dedicated Schools Grant BG0015,DSG Early Years Block,Transfer Payments,510030,School Children,03/07/2023,4152197-36596,"2,540.25",REDACTED - PAYMENT TO INDIVIDUAL
Dedicated Schools Grant BG0015,DSG Early Years Block,Transfer Payments,510032,School Children,03/07/2023,4152200-36388,"1,617.52",REDACTED - PAYMENT TO INDIVIDUAL
Dedicated Schools Grant BG0015,DSG Early Years Block,Transfer Payments,510030,School Children,03/07/2023,4152200-36599,"2,702.44",REDACTED - PAYMENT TO INDIVIDUAL
Dedicated Schools Grant BG0015,DSG Early Years Block,Transfer Payments,510030,School Children,03/07/2023,4152202-36601,"3,133.65",REDACTED - PAYMENT TO INDIVIDUAL
Dedicated Schools Grant BG0015,DSG Early Years Block,Transfer Payments,510032,School Children,03/07/2023,4152203-36390,539.17,REDACTED - PAYMENT TO INDIVIDUAL
Dedicated Schools Grant BG0015,DSG Early Years Block,Transfer Payments,510030,School Children,03/07/2023,4152230-36612,893.10,REDACTED - PAYMENT TO INDIVIDUAL
Dedicated Schools Grant BG0015,DSG Early Years Block,Transfer Payments,510030,School Children,03/07/2023,4152231-36613,761.47,REDACTED - PAYMENT TO INDIVIDUAL
Dedicated Schools Grant BG0015,DSG Early Years Block,Transfer Payments,510030,School Children,03/07/2023,4152232-36614,612.04,REDACTED - PAYMENT TO INDIVIDUAL
Dedicated Schools Grant BG0015,DSG Early Years Block,Transfer Payments,510030,School Children,03/07/2023,4152233-36615,"1,787.50",REDACTED - PAYMENT TO INDIVIDUAL
Dedicated Schools Grant BG0015,DSG Early Years Block,Transfer Payments,510032,School Children,03/07/2023,4152242-36366,"2,138.73",REDACTED - PAYMENT TO INDIVIDUAL
Dedicated Schools Grant BG0015,DSG Early Years Block,Transfer Payments,510030,School Children,03/07/2023,4152242-36568,"10,148.90",REDACTED - PAYMENT TO INDIVIDUAL
Dedicated Schools Grant BG0015,DSG Early Years Block,Transfer Payments,510030,School Children,03/07/2023,4152243-36619,"1,110.72",REDACTED - PAYMENT TO INDIVIDUAL
Dedicated Schools Grant BG0015,DSG Early Years Block,Transfer Payments,510030,School Children,03/07/2023,4152244-36620,512.46,REDACTED - PAYMENT TO INDIVIDUAL
Dedicated Schools Grant BG0015,DSG Early Years Block,Transfer Payments,510030,School Children,03/07/2023,4152256-36627,"1,443.49",REDACTED - PAYMENT TO INDIVIDUAL
Dedicated Schools Grant BG0015,DSG Early Years Block,Transfer Payments,510032,School Children,03/07/2023,4152259-36370,808.76,REDACTED - PAYMENT TO INDIVIDUAL
Dedicated Schools Grant BG0015,DSG Early Years Block,Transfer Payments,510032,School Children,03/07/2023,4152259-36403,808.76,REDACTED - PAYMENT TO INDIVIDUAL
Dedicated Schools Grant BG0015,DSG Early Years Block,Transfer Payments,510030,School Children,03/07/2023,4152259-36630,"1,043.25",REDACTED - PAYMENT TO INDIVIDUAL
Dedicated Schools Grant BG0015,DSG Early Years Block,Transfer Payments,510030,School Children,03/07/2023,4152263-36633,"1,637.02",REDACTED - PAYMENT TO INDIVIDUAL
Dedicated Schools Grant BG0015,DSG Early Years Block,Transfer Payments,510030,School Children,03/07/2023,4152274-36640,"1,104.19",REDACTED - PAYMENT TO INDIVIDUAL
Dedicated Schools Grant BG0015,DSG Early Years Block,Transfer Payments,510030,School Children,03/07/2023,4152275-36651,"1,877.85",REDACTED - PAYMENT TO INDIVIDUAL
Dedicated Schools Grant BG0015,DSG Early Years Block,Transfer Payments,510030,School Children,03/07/2023,4152279-36642,"1,092.00",REDACTED - PAYMENT TO INDIVIDUAL
Dedicated Schools Grant BG0015,DSG Early Years Block,Transfer Payments,510030,School Children,03/07/2023,4152281-36643,579.93,REDACTED - PAYMENT TO INDIVIDUAL
Dedicated Schools Grant BG0015,DSG Early Years Block,Transfer Payments,510032,School Children,03/07/2023,4152282-36409,995.40,REDACTED - PAYMENT TO INDIVIDUAL
Dedicated Schools Grant BG0015,DSG Early Years Block,Transfer Payments,510030,School Children,03/07/2023,4152282-36644,"4,536.67",REDACTED - PAYMENT TO INDIVIDUAL
Dedicated Schools Grant BG0015,DSG Early Years Block,Transfer Payments,510030,School Children,03/07/2023,4152283-36645,533.32,REDACTED - PAYMENT TO INDIVIDUAL
Dedicated Schools Grant BG0015,DSG Early Years Block,Transfer Payments,510032,School Children,03/07/2023,4152286-36411,"1,347.94",REDACTED - PAYMENT TO INDIVIDUAL
Dedicated Schools Grant BG0015,DSG Early Years Block,Transfer Payments,510032,School Children,03/07/2023,4152305-36418,539.17,REDACTED - PAYMENT TO INDIVIDUAL
Dedicated Schools Grant BG0015,DSG Early Years Block,Transfer Payments,510030,School Children,03/07/2023,4152305-36655,633.26,REDACTED - PAYMENT TO INDIVIDUAL
Dedicated Schools Grant BG0015,DSG Early Years Block,Transfer Payments,510030,School Children,03/07/2023,4152308-36657,"1,487.46",REDACTED - PAYMENT TO INDIVIDUAL
Dedicated Schools Grant BG0015,DSG Early Years Block,Transfer Payments,510030,School Children,03/07/2023,4152313-36659,633.26,REDACTED - PAYMENT TO INDIVIDUAL
Dedicated Schools Grant BG0015,DSG Early Years Block,Transfer Payments,510030,School Children,03/07/2023,4152315-36660,"1,649.70",REDACTED - PAYMENT TO INDIVIDUAL
Dedicated Schools Grant BG0015,DSG Early Years Block,Transfer Payments,510030,School Children,03/07/2023,4152318-36661,"1,266.52",REDACTED - PAYMENT TO INDIVIDUAL
Dedicated Schools Grant BG0015,DSG Early Years Block,Transfer Payments,510030,School Children,03/07/2023,4152323-36665,824.85,REDACTED - PAYMENT TO INDIVIDUAL
Dedicated Schools Grant BG0015,DSG Early Years Block,Transfer Payments,510032,School Children,03/07/2023,4152324-36422,"1,078.35",REDACTED - PAYMENT TO INDIVIDUAL
Dedicated Schools Grant BG0015,DSG Early Years Block,Transfer Payments,510030,School Children,03/07/2023,4152326-36666,"1,747.20",REDACTED - PAYMENT TO INDIVIDUAL
Dedicated Schools Grant BG0015,DSG Early Years Block,Transfer Payments,510030,School Children,03/07/2023,4152329-36553,"2,593.61",REDACTED - PAYMENT TO INDIVIDUAL
Dedicated Schools Grant BG0015,DSG Early Years Block,Transfer Payments,510030,School Children,03/07/2023,4152331-36625,625.95,REDACTED - PAYMENT TO INDIVIDUAL
Dedicated Schools Grant BG0015,DSG Early Years Block,Transfer Payments,510032,School Children,03/07/2023,4152337-36350,539.17,REDACTED - PAYMENT TO INDIVIDUAL
Dedicated Schools Grant BG0015,DSG Early Years Block,Transfer Payments,510030,School Children,03/07/2023,4152337-36541,655.20,REDACTED - PAYMENT TO INDIVIDUAL
Dedicated Schools Grant BG0015,DSG Early Years Block,Transfer Payments,510030,School Children,03/07/2023,4152341-36585,"1,237.27",REDACTED - PAYMENT TO INDIVIDUAL
Dedicated Schools Grant BG0015,DSG Early Years Block,Transfer Payments,510030,School Children,03/07/2023,4152350-36732,"1,189.30",REDACTED - PAYMENT TO INDIVIDUAL
Dedicated Schools Grant BG0015,DSG Early Years Block,Transfer Payments,510032,School Children,03/07/2023,4152352-36424,"1,347.94",REDACTED - PAYMENT TO INDIVIDUAL
Dedicated Schools Grant BG0015,DSG Early Years Block,Transfer Payments,510030,School Children,03/07/2023,4152352-36670,"2,315.60",REDACTED - PAYMENT TO INDIVIDUAL
Dedicated Schools Grant BG0015,DSG Early Years Block,Transfer Payments,510030,School Children,03/07/2023,4152391-36680,653.77,REDACTED - PAYMENT TO INDIVIDUAL
Dedicated Schools Grant BG0015,DSG Early Years Block,Transfer Payments,510032,School Children,03/07/2023,4152410-36432,788.02,REDACTED - PAYMENT TO INDIVIDUAL
Dedicated Schools Grant BG0015,DSG Early Years Block,Transfer Payments,510030,School Children,03/07/2023,4152411-36686,"3,023.47",REDACTED - PAYMENT TO INDIVIDUAL
Dedicated Schools Grant BG0015,DSG Early Years Block,Transfer Payments,510030,School Children,03/07/2023,4152440-36695,768.79,REDACTED - PAYMENT TO INDIVIDUAL
Dedicated Schools Grant BG0015,DSG Early Years Block,Transfer Payments,510032,School Children,03/07/2023,4152441-36438,539.17,REDACTED - PAYMENT TO INDIVIDUAL
Dedicated Schools Grant BG0015,DSG Early Years Block,Transfer Payments,510030,School Children,03/07/2023,4152442-36697,"1,266.52",REDACTED - PAYMENT TO INDIVIDUAL
Dedicated Schools Grant BG0015,DSG Early Years Block,Transfer Payments,510032,School Children,03/07/2023,4152443-36439,"1,078.35",REDACTED - PAYMENT TO INDIVIDUAL
Dedicated Schools Grant BG0015,DSG Early Years Block,Transfer Payments,510032,School Children,03/07/2023,4152453-36443,"1,078.35",REDACTED - PAYMENT TO INDIVIDUAL
Dedicated Schools Grant BG0015,DSG Early Years Block,Transfer Payments,510030,School Children,03/07/2023,4152453-36703,"1,251.90",REDACTED - PAYMENT TO INDIVIDUAL
Dedicated Schools Grant BG0015,DSG Early Years Block,Transfer Payments,510030,School Children,03/07/2023,4152454-36704,"1,649.70",REDACTED - PAYMENT TO INDIVIDUAL
Dedicated Schools Grant BG0015,DSG Early Years Block,Transfer Payments,510030,School Children,03/07/2023,4152524-36741,"1,006.69",REDACTED - PAYMENT TO INDIVIDUAL
Dedicated Schools Grant BG0015,DSG Early Years Block,Transfer Payments,510032,School Children,03/07/2023,4152536-36460,"1,078.35",REDACTED - PAYMENT TO INDIVIDUAL
Dedicated Schools Grant BG0015,DSG Early Years Block,Transfer Payments,510030,School Children,03/07/2023,4152540-36747,"1,851.07",REDACTED - PAYMENT TO INDIVIDUAL
Dedicated Schools Grant BG0015,DSG Early Years Block,Transfer Payments,510030,School Children,03/07/2023,4152294-36753,"14,169.90",LINGFIELD EDUCATION TRUST T/A WOODHAM BURN COMMUNITY PRIMARY SCHOOL.
Dedicated Schools Grant BG0015,DSG Early Years Block,Transfer Payments,510032,School Children,03/07/2023,4152296-36414,"2,405.55",LITLE MEADOWS NURSERY.
Dedicated Schools Grant BG0015,DSG Early Years Block,Transfer Payments,510030,School Children,03/07/2023,4151933-36719,"10,608.18",1EXCELLENCE MULTI ACADEMY TRUST.
Dedicated Schools Grant BG0015,DSG Early Years Block,Transfer Payments,510030,School Children,03/07/2023,4151934-36586,"7,397.17",1EXCELLENCE MULTI ACADEMY TRUST.
Dedicated Schools Grant BG0015,DSG Early Years Block,Transfer Payments,510030,School Children,03/07/2023,4151946-36752,"2,807.51",ADVANCE LEARNING PARTNERSHIP.
Dedicated Schools Grant BG0015,DSG Early Years Block,Transfer Payments,510030,School Children,03/07/2023,4151947-36539,"15,242.79",ADVANCE LEARNING PARTNERSHIP.
Dedicated Schools Grant BG0015,DSG Early Years Block,Transfer Payments,510030,School Children,03/07/2023,4151948-36607,"8,354.77",ADVANCE LEARNING PARTNERSHIP.
Dedicated Schools Grant BG0015,DSG Early Years Block,Transfer Payments,510030,School Children,03/07/2023,4151949-36668,"8,694.69",ADVANCE LEARNING PARTNERSHIP.
Dedicated Schools Grant BG0015,DSG Early Years Block,Transfer Payments,510032,School Children,03/07/2023,4151950-36423,"4,043.81",ADVANCE LEARNING PARTNERSHIP.
Dedicated Schools Grant BG0015,DSG Early Years Block,Transfer Payments,510030,School Children,03/07/2023,4151950-36669,"4,258.80",ADVANCE LEARNING PARTNERSHIP.
Dedicated Schools Grant BG0015,DSG Early Years Block,Transfer Payments,510032,School Children,03/07/2023,4151951-36427,"2,965.46",ADVANCE LEARNING PARTNERSHIP.
Dedicated Schools Grant BG0015,DSG Early Years Block,Transfer Payments,510030,School Children,03/07/2023,4151951-36673,"7,204.27",ADVANCE LEARNING PARTNERSHIP.
Dedicated Schools Grant BG0015,DSG Early Years Block,Transfer Payments,510032,School Children,03/07/2023,4151953-36333,"1,032.83",ADVENTURE VALLEY DAY NURSERY LTD.
Dedicated Schools Grant BG0015,DSG Early Years Block,Transfer Payments,510030,School Children,03/07/2023,4151953-36517,"39,964.71",ADVENTURE VALLEY DAY NURSERY LTD.
Dedicated Schools Grant BG0015,DSG Early Years Block,Transfer Payments,510032,School Children,03/07/2023,4151981-36343,"5,122.16",AYCLIFFE DAY NURSERY.
Dedicated Schools Grant BG0015,DSG Early Years Block,Transfer Payments,510030,School Children,03/07/2023,4151981-36531,"6,772.35",AYCLIFFE DAY NURSERY.
Dedicated Schools Grant BG0015,DSG Early Years Block,Transfer Payments,510032,School Children,03/07/2023,4151994-36345,"1,993.11",BISHOP AUCKLAND COLLEGE NURSERY.
Dedicated Schools Grant BG0015,DSG Early Years Block,Transfer Payments,510030,School Children,03/07/2023,4151994-36533,"16,428.02",BISHOP AUCKLAND COLLEGE NURSERY.
Dedicated Schools Grant BG0015,DSG Early Years Block,Transfer Payments,510030,School Children,03/07/2023,4151996-36534,"6,092.22",BISHOP CHADWICK CATHOLIC EDUCATION TRUST (NSCET).
Dedicated Schools Grant BG0015,DSG Early Years Block,Transfer Payments,510030,School Children,03/07/2023,4151997-36676,"9,419.06",BISHOP CHADWICK CATHOLIC EDUCATION TRUST (NSCET).
Dedicated Schools Grant BG0015,DSG Early Years Block,Transfer Payments,510030,School Children,03/07/2023,4151998-36535,"6,688.01",BISHOP HOGARTH CATHOLIC EDUCATION TRUST.
Dedicated Schools Grant BG0015,DSG Early Years Block,Transfer Payments,510032,School Children,03/07/2023,4151999-36448,"9,788.10",BISHOP HOGARTH CATHOLIC EDUCATION TRUST.
Dedicated Schools Grant BG0015,DSG Early Years Block,Transfer Payments,510030,School Children,03/07/2023,4151999-36715,"21,039.99",BISHOP HOGARTH CATHOLIC EDUCATION TRUST.
Dedicated Schools Grant BG0015,DSG Early Years Block,Transfer Payments,510030,School Children,03/07/2023,4152000-36711,"2,182.20",BISHOP HOGARTH CATHOLIC EDUCATION TRUST.
Dedicated Schools Grant BG0015,DSG Early Years Block,Transfer Payments,510030,School Children,03/07/2023,4152001-36714,"5,769.80",BISHOP HOGARTH CATHOLIC EDUCATION TRUST.
Dedicated Schools Grant BG0015,DSG Early Years Block,Transfer Payments,510030,School Children,03/07/2023,4152002-36675,"2,891.85",BISHOP HOGARTH CATHOLIC EDUCATION TRUST.
Dedicated Schools Grant BG0015,DSG Early Years Block,Transfer Payments,510030,School Children,03/07/2023,4152003-36724,"6,315.95",BISHOP HOGARTH CATHOLIC EDUCATION TRUST.
Dedicated Schools Grant BG0015,DSG Early Years Block,Transfer Payments,510030,School Children,03/07/2023,4152004-36718,"6,428.48",BISHOP HOGARTH CATHOLIC EDUCATION TRUST.
Dedicated Schools Grant BG0015,DSG Early Years Block,Transfer Payments,510030,School Children,03/07/2023,4152005-36723,"4,951.27",BISHOP HOGARTH CATHOLIC EDUCATION TRUST.
Dedicated Schools Grant BG0015,DSG Early Years Block,Transfer Payments,510030,School Children,03/07/2023,4152006-36713,"6,259.35",BISHOP HOGARTH CATHOLIC EDUCATION TRUST.
Dedicated Schools Grant BG0015,DSG Early Years Block,Transfer Payments,510030,School Children,03/07/2023,4152007-36712,"12,363.35",BISHOP HOGARTH CATHOLIC EDUCATION TRUST.
Dedicated Schools Grant BG0015,DSG Early Years Block,Transfer Payments,510030,School Children,03/07/2023,4152008-36721,"16,680.79",BISHOP WILKINSON CATHOLIC EDUCATION TRUST.
Dedicated Schools Grant BG0015,DSG Early Years Block,Transfer Payments,510030,School Children,03/07/2023,4152009-36722,"3,647.96",BISHOP WILKINSON CATHOLIC EDUCATION TRUST.
Dedicated Schools Grant BG0015,DSG Early Years Block,Transfer Payments,510030,School Children,03/07/2023,4152010-36716,"7,517.83",BISHOP WILKINSON CATHOLIC EDUCATION TRUST.
Dedicated Schools Grant BG0015,DSG Early Years Block,Transfer Payments,510030,School Children,03/07/2023,4152011-36710,"3,868.26",BISHOP WILKINSON CATHOLIC EDUCATION TRUST.
Dedicated Schools Grant BG0015,DSG Early Years Block,Transfer Payments,510030,School Children,03/07/2023,4152012-36518,"6,046.95",BISHOP WILKINSON CATHOLIC EDUCATION TRUST.
Dedicated Schools Grant BG0015,DSG Early Years Block,Transfer Payments,510030,School Children,03/07/2023,4152013-36717,662.51,BISHOP WILKINSON CATHOLIC EDUCATION TRUST.
Dedicated Schools Grant BG0015,DSG Early Years Block,Transfer Payments,510032,School Children,03/07/2023,4152014-36419,"1,327.20",BLUE SKY CHILDCARE.
Dedicated Schools Grant BG0015,DSG Early Years Block,Transfer Payments,510030,School Children,03/07/2023,4152014-36658,"16,730.51",BLUE SKY CHILDCARE.
Dedicated Schools Grant BG0015,DSG Early Years Block,Transfer Payments,510030,School Children,03/07/2023,4152015-36577,"1,312.39",BOW SCHOOL & NURSERY.
Dedicated Schools Grant BG0015,DSG Early Years Block,Transfer Payments,510030,School Children,03/07/2023,4152016-36538,"2,646.15",BOWES PRE SCHOOL.
Dedicated Schools Grant BG0015,DSG Early Years Block,Transfer Payments,510032,School Children,03/07/2023,4152020-36351,"9,348.28",BRIGHT STAR NURSERY.
Dedicated Schools Grant BG0015,DSG Early Years Block,Transfer Payments,510030,School Children,03/07/2023,4152020-36542,"38,864.49",BRIGHT STAR NURSERY.
Dedicated Schools Grant BG0015,DSG Early Years Block,Transfer Payments,510032,School Children,03/07/2023,4152030-36352,"7,776.56",BUDDIES CHILDCARE CENTRE.
Dedicated Schools Grant BG0015,DSG Early Years Block,Transfer Payments,510030,School Children,03/07/2023,4152030-36543,"9,478.27",BUDDIES CHILDCARE CENTRE.
Dedicated Schools Grant BG0015,DSG Early Years Block,Transfer Payments,510032,School Children,03/07/2023,4152031-36353,"9,345.70",BUSY BEARS (DURHAM) LTD.
Dedicated Schools Grant BG0015,DSG Early Years Block,Transfer Payments,510030,School Children,03/07/2023,4152031-36545,"31,698.03",BUSY BEARS (DURHAM) LTD.
Dedicated Schools Grant BG0015,DSG Early Years Block,Transfer Payments,510032,School Children,03/07/2023,4152032-36354,"1,617.52",BUSY BEES (DURHAM) LTD.
Dedicated Schools Grant BG0015,DSG Early Years Block,Transfer Payments,510030,School Children,03/07/2023,4152032-36546,"53,658.52",BUSY BEES (DURHAM) LTD.
Dedicated Schools Grant BG0015,DSG Early Years Block,Transfer Payments,510030,School Children,03/07/2023,4152033-36547,655.20,BUTTERFLIES DAY CARE.
Dedicated Schools Grant BG0015,DSG Early Years Block,Transfer Payments,510032,School Children,03/07/2023,4152035-36355,"4,582.99",BYERLEY ROAD PRE SCHOOL.
Dedicated Schools Grant BG0015,DSG Early Years Block,Transfer Payments,510030,School Children,03/07/2023,4152035-36548,"7,959.56",BYERLEY ROAD PRE SCHOOL.
Dedicated Schools Grant BG0015,DSG Early Years Block,Transfer Payments,510032,School Children,03/07/2023,4152039-36357,"2,152.55",CASTLE KINDERGARTEN LTD.
Dedicated Schools Grant BG0015,DSG Early Years Block,Transfer Payments,510030,School Children,03/07/2023,4152039-36551,"7,571.00",CASTLE KINDERGARTEN LTD.
Dedicated Schools Grant BG0015,DSG Early Years Block,Transfer Payments,510032,School Children,03/07/2023,4152040-36356,663.60,CASTLE KINDERGARTEN LTD.
Dedicated Schools Grant BG0015,DSG Early Years Block,Transfer Payments,510030,School Children,03/07/2023,4152040-36550,"12,209.65",CASTLE KINDERGARTEN LTD.
Dedicated Schools Grant BG0015,DSG Early Years Block,Transfer Payments,510032,School Children,03/07/2023,4152041-36358,"2,322.47",CASTLE VIEW PRIVATE DAY NURSERY LTD.
Dedicated Schools Grant BG0015,DSG Early Years Block,Transfer Payments,510030,School Children,03/07/2023,4152041-36552,"43,004.80",CASTLE VIEW PRIVATE DAY NURSERY LTD.
Dedicated Schools Grant BG0015,DSG Early Years Block,Transfer Payments,510032,School Children,03/07/2023,4152057-36361,850.24,CLEVER CLOGS DAY NURSERIES LTD.
Dedicated Schools Grant BG0015,DSG Early Years Block,Transfer Payments,510030,School Children,03/07/2023,4152057-36561,"22,246.20",CLEVER CLOGS DAY NURSERIES LTD.
Dedicated Schools Grant BG0015,DSG Early Years Block,Transfer Payments,510032,School Children,03/07/2023,4152058-36362,"3,774.22",CLEVER CLOGS DAY NURSERY (DURHAM) LTD.
Dedicated Schools Grant BG0015,DSG Early Years Block,Transfer Payments,510030,School Children,03/07/2023,4152058-36562,"24,681.70",CLEVER CLOGS DAY NURSERY (DURHAM) LTD.
Dedicated Schools Grant BG0015,DSG Early Years Block,Transfer Payments,510030,School Children,03/07/2023,4152067-36565,"3,785.37",CONKERS LIFE LTD (NURSERY SCHOOL).
Dedicated Schools Grant BG0015,DSG Early Years Block,Transfer Payments,510032,School Children,03/07/2023,4152070-36379,"1,631.35",CORE CARE EVENWOOD LTD T/A FLOWERPOTS NURSERY.
Dedicated Schools Grant BG0015,DSG Early Years Block,Transfer Payments,510030,School Children,03/07/2023,4152070-36589,"3,333.52",CORE CARE EVENWOOD LTD T/A FLOWERPOTS NURSERY.
Dedicated Schools Grant BG0015,DSG Early Years Block,Transfer Payments,510032,School Children,03/07/2023,4152071-36393,"8,626.80",CORECARE N/A LTD.
Dedicated Schools Grant BG0015,DSG Early Years Block,Transfer Payments,510030,School Children,03/07/2023,4152071-36606,"5,235.19",CORECARE N/A LTD.
Dedicated Schools Grant BG0015,DSG Early Years Block,Transfer Payments,510032,School Children,03/07/2023,4152076-36364,"3,235.05",COUNDON & LEEHOLME EARLY YEARS CENTRE LTD.
Dedicated Schools Grant BG0015,DSG Early Years Block,Transfer Payments,510030,School Children,03/07/2023,4152076-36566,"7,486.16",COUNDON & LEEHOLME EARLY YEARS CENTRE LTD.
Dedicated Schools Grant BG0015,DSG Early Years Block,Transfer Payments,510032,School Children,03/07/2023,4152081-36365,"2,695.87",CRAGHEAD CHILDCARE CENTRE.
Dedicated Schools Grant BG0015,DSG Early Years Block,Transfer Payments,510030,School Children,03/07/2023,4152081-36567,"7,683.45",CRAGHEAD CHILDCARE CENTRE.
Dedicated Schools Grant BG0015,DSG Early Years Block,Transfer Payments,510030,School Children,03/07/2023,4152088-36755,"41,819.01",DAYPARK LTD T/A YELLOW WELLIES.
Dedicated Schools Grant BG0015,DSG Early Years Block,Transfer Payments,510032,School Children,03/07/2023,4152089-36466,"2,220.89",DAYPARK LTD T/A YELLOW WELLIES.
Dedicated Schools Grant BG0015,DSG Early Years Block,Transfer Payments,510030,School Children,03/07/2023,4152089-36756,"34,721.79",DAYPARK LTD T/A YELLOW WELLIES.
Dedicated Schools Grant BG0015,DSG Early Years Block,Transfer Payments,510032,School Children,03/07/2023,4152090-36465,"10,203.95",DAYPARK LTD T/A YELLOW WELLIES.
Dedicated Schools Grant BG0015,DSG Early Years Block,Transfer Payments,510032,School Children,03/07/2023,4152092-36369,"1,329.96",DEERNESS VALLEY NURSERY SCHOOL.
Dedicated Schools Grant BG0015,DSG Early Years Block,Transfer Payments,510030,School Children,03/07/2023,4152092-36572,"10,943.58",DEERNESS VALLEY NURSERY SCHOOL.
Dedicated Schools Grant BG0015,DSG Early Years Block,Transfer Payments,510030,School Children,03/07/2023,4152112-36610,928.78,DURHAM & NEWCASTLE DIOCESAN LEARNING TRUST T/A INGLETON CE PRIMARY SCHOOL
Dedicated Schools Grant BG0015,DSG Early Years Block,Transfer Payments,510030,School Children,03/07/2023,4152113-36725,"8,298.68",DURHAM & NEWCASTLE DIOCESAN LEARNING TRUST T/A STANHOPE BARRINGTON C OF E PRIMARY SCHOOL.
Dedicated Schools Grant BG0015,DSG Early Years Block,Transfer Payments,510032,School Children,03/07/2023,4152120-36431,"1,576.05",EAST DURHAM COLLEGE.
Dedicated Schools Grant BG0015,DSG Early Years Block,Transfer Payments,510030,School Children,03/07/2023,4152120-36684,"10,705.01",EAST DURHAM COLLEGE.
Dedicated Schools Grant BG0015,DSG Early Years Block,Transfer Payments,510032,School Children,03/07/2023,4152127-36347,"1,368.67",EDEN ACADEMY TRUST LTD T/A BLUEBELL MEADOW PRIMARY SCHOOL.
Dedicated Schools Grant BG0015,DSG Early Years Block,Transfer Payments,510030,School Children,03/07/2023,4152127-36537,"17,905.31",EDEN ACADEMY TRUST LTD T/A BLUEBELL MEADOW PRIMARY SCHOOL.
Dedicated Schools Grant BG0015,DSG Early Years Block,Transfer Payments,510032,School Children,03/07/2023,4152128-36373,"2,654.40",EDEN GARDEN NURSERY.
Dedicated Schools Grant BG0015,DSG Early Years Block,Transfer Payments,510030,School Children,03/07/2023,4152128-36579,"16,790.55",EDEN GARDEN NURSERY.
Dedicated Schools Grant BG0015,DSG Early Years Block,Transfer Payments,510030,School Children,03/07/2023,4152129-36555,"13,996.61",EDEN LEARNING TRUST T/A CHILTON ACADEMY.
Dedicated Schools Grant BG0015,DSG Early Years Block,Transfer Payments,510032,School Children,03/07/2023,4152143-36375,"7,818.04",EMERALDS LITTLE GEMS DAYCARE LTD.
Dedicated Schools Grant BG0015,DSG Early Years Block,Transfer Payments,510032,School Children,03/07/2023,4152143-36376,"8,834.17",EMERALDS LITTLE GEMS DAYCARE LTD.
Dedicated Schools Grant BG0015,DSG Early Years Block,Transfer Payments,510030,School Children,03/07/2023,4152143-36583,"8,233.87",EMERALDS LITTLE GEMS DAYCARE LTD.
Dedicated Schools Grant BG0015,DSG Early Years Block,Transfer Payments,510030,School Children,03/07/2023,4152143-36584,"32,758.80",EMERALDS LITTLE GEMS DAYCARE LTD.
Dedicated Schools Grant BG0015,DSG Early Years Block,Transfer Payments,510032,School Children,03/07/2023,4152149-36377,"1,099.09",EXPLORERS DAY CARE.
Dedicated Schools Grant BG0015,DSG Early Years Block,Transfer Payments,510030,School Children,03/07/2023,4152149-36587,"17,880.39",EXPLORERS DAY CARE.
Dedicated Schools Grant BG0015,DSG Early Years Block,Transfer Payments,510030,School Children,03/07/2023,4152155-36588,"9,075.70",FIRST STEPS NURSERY.
Dedicated Schools Grant BG0015,DSG Early Years Block,Transfer Payments,510030,School Children,03/07/2023,4152172-36591,"6,981.97",GIANT STEPS LTD.
Dedicated Schools Grant BG0015,DSG Early Years Block,Transfer Payments,510032,School Children,03/07/2023,4152173-36381,"2,529.97",GIANT STEPS LTD.
Dedicated Schools Grant BG0015,DSG Early Years Block,Transfer Payments,510030,School Children,03/07/2023,4152173-36592,"11,107.50",GIANT STEPS LTD.
Dedicated Schools Grant BG0015,DSG Early Years Block,Transfer Payments,510032,School Children,03/07/2023,4152181-36382,682.96,GREEN LANE NURSERY & CHILDCARE CENTRE.
Dedicated Schools Grant BG0015,DSG Early Years Block,Transfer Payments,510030,School Children,03/07/2023,4152181-36593,"16,596.08",GREEN LANE NURSERY & CHILDCARE CENTRE.
Dedicated Schools Grant BG0015,DSG Early Years Block,Transfer Payments,510032,School Children,03/07/2023,4152191-36383,"3,504.64",HAPPY TIMES DAYCARE LTD.
Dedicated Schools Grant BG0015,DSG Early Years Block,Transfer Payments,510030,School Children,03/07/2023,4152191-36594,"3,845.62",HAPPY TIMES DAYCARE LTD.
Dedicated Schools Grant BG0015,DSG Early Years Block,Transfer Payments,510032,School Children,03/07/2023,4152192-36349,"3,774.22",HAPPYTIMES DAYCARE LTD.
Dedicated Schools Grant BG0015,DSG Early Years Block,Transfer Payments,510030,School Children,03/07/2023,4152192-36540,"4,270.50",HAPPYTIMES DAYCARE LTD.
Dedicated Schools Grant BG0015,DSG Early Years Block,Transfer Payments,510030,School Children,03/07/2023,4152195-36595,"14,631.94",HARTSIDE PRIMARY ACADEMY.
Dedicated Schools Grant BG0015,DSG Early Years Block,Transfer Payments,510032,School Children,03/07/2023,4152198-36386,"3,504.64",HAYSTACKS NURSERY..
Dedicated Schools Grant BG0015,DSG Early Years Block,Transfer Payments,510030,School Children,03/07/2023,4152198-36597,"20,786.79",HAYSTACKS NURSERY..
Dedicated Schools Grant BG0015,DSG Early Years Block,Transfer Payments,510032,School Children,03/07/2023,4152199-36387,"1,887.11",HAZEL DENE CHILDCARE LTD.
Dedicated Schools Grant BG0015,DSG Early Years Block,Transfer Payments,510030,School Children,03/07/2023,4152199-36598,"3,012.00",HAZEL DENE CHILDCARE LTD.
Dedicated Schools Grant BG0015,DSG Early Years Block,Transfer Payments,510032,School Children,03/07/2023,4152207-36391,"1,979.05",HIPPITOTS LTD.
Dedicated Schools Grant BG0015,DSG Early Years Block,Transfer Payments,510030,School Children,03/07/2023,4152207-36604,"12,148.32",HIPPITOTS LTD.
Dedicated Schools Grant BG0015,DSG Early Years Block,Transfer Payments,510032,School Children,03/07/2023,4152212-36392,"2,816.15",HOUSE OF EDEN LTD.
Dedicated Schools Grant BG0015,DSG Early Years Block,Transfer Payments,510030,School Children,03/07/2023,4152212-36605,"14,457.87",HOUSE OF EDEN LTD.
Dedicated Schools Grant BG0015,DSG Early Years Block,Transfer Payments,510032,School Children,03/07/2023,4152213-36394,"6,760.42",HOWLETCH & SHOTTON CHILDCARE LTD.
Dedicated Schools Grant BG0015,DSG Early Years Block,Transfer Payments,510030,School Children,03/07/2023,4152213-36608,"4,671.60",HOWLETCH & SHOTTON CHILDCARE LTD.
Dedicated Schools Grant BG0015,DSG Early Years Block,Transfer Payments,510032,School Children,03/07/2023,4152214-36395,"4,582.99",HOWLETCH & SHOTTON CHILDCARE LTD.
Dedicated Schools Grant BG0015,DSG Early Years Block,Transfer Payments,510030,School Children,03/07/2023,4152214-36609,"10,549.40",HOWLETCH & SHOTTON CHILDCARE LTD.
Dedicated Schools Grant BG0015,DSG Early Years Block,Transfer Payments,510030,School Children,03/07/2023,4152240-36677,"12,878.04",JIGSAW LEARNING TRUST.
Dedicated Schools Grant BG0015,DSG Early Years Block,Transfer Payments,510030,School Children,03/07/2023,4152261-36631,"4,194.15",KELLOE PHOENIX CENTRE (CHILDCARE).
Dedicated Schools Grant BG0015,DSG Early Years Block,Transfer Payments,510032,School Children,03/07/2023,4152264-36404,"1,078.35",KIDS 1ST NURSERIES DURHAM.
Dedicated Schools Grant BG0015,DSG Early Years Block,Transfer Payments,510030,School Children,03/07/2023,4152264-36634,"15,160.41",KIDS 1ST NURSERIES DURHAM.
Dedicated Schools Grant BG0015,DSG Early Years Block,Transfer Payments,510030,School Children,03/07/2023,4152267-36635,"5,018.81",KIDZ VILLAGE LTD.
Dedicated Schools Grant BG0015,DSG Early Years Block,Transfer Payments,510032,School Children,03/07/2023,4152268-36405,"3,235.05",KIDZONE.
Dedicated Schools Grant BG0015,DSG Early Years Block,Transfer Payments,510030,School Children,03/07/2023,4152268-36636,"9,609.60",KIDZONE.
Dedicated Schools Grant BG0015,DSG Early Years Block,Transfer Payments,510032,School Children,03/07/2023,4152271-36406,"1,132.27",KIRK MERRINGTON PRE SCHOOL.
Dedicated Schools Grant BG0015,DSG Early Years Block,Transfer Payments,510030,School Children,03/07/2023,4152271-36637,"7,610.52",KIRK MERRINGTON PRE SCHOOL.
Dedicated Schools Grant BG0015,DSG Early Years Block,Transfer Payments,510030,School Children,03/07/2023,4152272-36638,"4,600.01",KIRKLANDS DAY NURSERY.
Dedicated Schools Grant BG0015,DSG Early Years Block,Transfer Payments,510032,School Children,03/07/2023,4152285-36410,"6,200.51",LEADGATE CHILD CENTRE LTD.
Dedicated Schools Grant BG0015,DSG Early Years Block,Transfer Payments,510030,School Children,03/07/2023,4152285-36646,"19,781.12",LEADGATE CHILD CENTRE LTD.
Dedicated Schools Grant BG0015,DSG Early Years Block,Transfer Payments,510032,School Children,03/07/2023,4152297-36412,"2,965.46",LITTLE ACORNS NORTH EAST LTD.
Dedicated Schools Grant BG0015,DSG Early Years Block,Transfer Payments,510030,School Children,03/07/2023,4152297-36649,"18,278.16",LITTLE ACORNS NORTH EAST LTD.
Dedicated Schools Grant BG0015,DSG Early Years Block,Transfer Payments,510032,School Children,03/07/2023,4152298-36413,"1,761.31",LITTLE CUBS DAY NURSERY.
Dedicated Schools Grant BG0015,DSG Early Years Block,Transfer Payments,510030,School Children,03/07/2023,4152298-36650,"23,590.81",LITTLE CUBS DAY NURSERY.
Dedicated Schools Grant BG0015,DSG Early Years Block,Transfer Payments,510032,School Children,03/07/2023,4152299-36415,"6,528.99",LITTLE STARS EARLY YEARS.
Dedicated Schools Grant BG0015,DSG Early Years Block,Transfer Payments,510030,School Children,03/07/2023,4152299-36652,"5,100.57",LITTLE STARS EARLY YEARS.
Dedicated Schools Grant BG0015,DSG Early Years Block,Transfer Payments,510032,School Children,03/07/2023,4152300-36417,"6,698.21",LITTLE WAVES DAY NURSERY LTD.
Dedicated Schools Grant BG0015,DSG Early Years Block,Transfer Payments,510030,School Children,03/07/2023,4152300-36654,"21,734.29",LITTLE WAVES DAY NURSERY LTD.
Dedicated Schools Grant BG0015,DSG Early Years Block,Transfer Payments,510032,School Children,03/07/2023,4152355-36425,"4,852.57",NELLIE`S DAY NURSERY LTD.
Dedicated Schools Grant BG0015,DSG Early Years Block,Transfer Payments,510030,School Children,03/07/2023,4152355-36671,"6,021.60",NELLIE`S DAY NURSERY LTD.
Dedicated Schools Grant BG0015,DSG Early Years Block,Transfer Payments,510032,School Children,03/07/2023,4152358-36426,"1,617.52",NEW BEGINNINGS (MOORSIDE) CO LTD.
Dedicated Schools Grant BG0015,DSG Early Years Block,Transfer Payments,510030,School Children,03/07/2023,4152358-36672,"12,395.40",NEW BEGINNINGS (MOORSIDE) CO LTD.
Dedicated Schools Grant BG0015,DSG Early Years Block,Transfer Payments,510032,School Children,03/07/2023,4152374-36464,"1,617.52",NORTHUMBRIA DAY NURSERIES LTD T/A WOODLANDS DAY NURSERY.
Dedicated Schools Grant BG0015,DSG Early Years Block,Transfer Payments,510030,School Children,03/07/2023,4152374-36754,"2,310.37",NORTHUMBRIA DAY NURSERIES LTD T/A WOODLANDS DAY NURSERY.
Dedicated Schools Grant BG0015,DSG Early Years Block,Transfer Payments,510032,School Children,03/07/2023,4152375-36429,"6,387.15",NORTHUMBRIAN TRUST DAY NURSERIES LTD.
Dedicated Schools Grant BG0015,DSG Early Years Block,Transfer Payments,510030,School Children,03/07/2023,4152375-36681,"16,387.72",NORTHUMBRIAN TRUST DAY NURSERIES LTD.
Dedicated Schools Grant BG0015,DSG Early Years Block,Transfer Payments,510032,School Children,03/07/2023,4152376-36428,"6,764.57",NURSERYTIME LTD.
Dedicated Schools Grant BG0015,DSG Early Years Block,Transfer Payments,510030,School Children,03/07/2023,4152376-36674,"10,966.80",NURSERYTIME LTD.
Dedicated Schools Grant BG0015,DSG Early Years Block,Transfer Payments,510032,School Children,03/07/2023,4152397-36430,"3,020.76",PLAYDAY NURSERY.
Dedicated Schools Grant BG0015,DSG Early Years Block,Transfer Payments,510030,School Children,03/07/2023,4152397-36682,"13,685.10",PLAYDAY NURSERY.
Dedicated Schools Grant BG0015,DSG Early Years Block,Transfer Payments,510030,School Children,03/07/2023,4152398-36683,"7,027.00",PLAYOLOGY LTD.
Dedicated Schools Grant BG0015,DSG Early Years Block,Transfer Payments,510030,School Children,03/07/2023,4152415-36687,"3,117.30",RAINBOW NURSERY DURHAM HIGH SCHOOL.
Dedicated Schools Grant BG0015,DSG Early Years Block,Transfer Payments,510032,School Children,03/07/2023,4152416-36434,"3,774.22",RAINBOW NURSERY LTD (MIDDLESTONE MOOR).
Dedicated Schools Grant BG0015,DSG Early Years Block,Transfer Payments,510030,School Children,03/07/2023,4152416-36688,"19,038.82",RAINBOW NURSERY LTD (MIDDLESTONE MOOR).
Dedicated Schools Grant BG0015,DSG Early Years Block,Transfer Payments,510030,School Children,03/07/2023,4152422-36690,"21,215.02",RIBBON ACADEMY TRUST.
Dedicated Schools Grant BG0015,DSG Early Years Block,Transfer Payments,510032,School Children,03/07/2023,4152423-36435,"8,460.90",RIBBON DAYCARE.
Dedicated Schools Grant BG0015,DSG Early Years Block,Transfer Payments,510030,School Children,03/07/2023,4152423-36691,"30,461.66",RIBBON DAYCARE.
Dedicated Schools Grant BG0015,DSG Early Years Block,Transfer Payments,510030,School Children,03/07/2023,4152437-36693,"7,429.72",SACRISTON ACADEMY - EARLY YEARS T/A PRIVATE NURSERY.
Dedicated Schools Grant BG0015,DSG Early Years Block,Transfer Payments,510030,School Children,03/07/2023,4152439-36694,"6,696.30",SAPLINGS NATURE KINDERGARTEN & FOREST SCHOOL.
Dedicated Schools Grant BG0015,DSG Early Years Block,Transfer Payments,510032,School Children,03/07/2023,4152446-36441,"7,009.27",SEAHAM KINDERGARTEN LTD.
Dedicated Schools Grant BG0015,DSG Early Years Block,Transfer Payments,510030,School Children,03/07/2023,4152446-36699,"51,324.30",SEAHAM KINDERGARTEN LTD.
Dedicated Schools Grant BG0015,DSG Early Years Block,Transfer Payments,510032,School Children,03/07/2023,4152447-36442,"3,463.16",SEASIDE LANE NURSERY.
Dedicated Schools Grant BG0015,DSG Early Years Block,Transfer Payments,510030,School Children,03/07/2023,4152447-36700,"4,698.49",SEASIDE LANE NURSERY.
Dedicated Schools Grant BG0015,DSG Early Years Block,Transfer Payments,510030,School Children,03/07/2023,4152449-36702,"2,670.72",SEDGEFIELD OUT OF SCHOOL FUN CLUB.
Dedicated Schools Grant BG0015,DSG Early Years Block,Transfer Payments,510030,School Children,03/07/2023,4152455-36705,"38,067.90",SHIELD ROW ACADEMY.
Dedicated Schools Grant BG0015,DSG Early Years Block,Transfer Payments,510032,School Children,03/07/2023,4152456-36445,539.17,SHINING STARS PARKHILL LTD.
Dedicated Schools Grant BG0015,DSG Early Years Block,Transfer Payments,510030,School Children,03/07/2023,4152456-36706,"7,401.81",SHINING STARS PARKHILL LTD.
Dedicated Schools Grant BG0015,DSG Early Years Block,Transfer Payments,510032,School Children,03/07/2023,4152457-36446,"1,534.57",SHOTLEY BRIDGE NURSERY SCHOOL LTD.
Dedicated Schools Grant BG0015,DSG Early Years Block,Transfer Payments,510030,School Children,03/07/2023,4152457-36707,"17,625.86",SHOTLEY BRIDGE NURSERY SCHOOL LTD.
Dedicated Schools Grant BG0015,DSG Early Years Block,Transfer Payments,510032,School Children,03/07/2023,4152472-36449,"5,254.88",ST OSWALD`S PRE SCHOOL LEARNING CENTRE.
Dedicated Schools Grant BG0015,DSG Early Years Block,Transfer Payments,510030,School Children,03/07/2023,4152472-36720,"22,208.71",ST OSWALD`S PRE SCHOOL LEARNING CENTRE.
Dedicated Schools Grant BG0015,DSG Early Years Block,Transfer Payments,510032,School Children,03/07/2023,4152474-36447,"2,061.31",STANLEY LEARNING PARTNERSHIP.
Dedicated Schools Grant BG0015,DSG Early Years Block,Transfer Payments,510030,School Children,03/07/2023,4152474-36709,"9,422.07",STANLEY LEARNING PARTNERSHIP.
Dedicated Schools Grant BG0015,DSG Early Years Block,Transfer Payments,510032,School Children,03/07/2023,4152475-36407,"4,313.40",STANLEY LEARNING PARTNERSHIP.
Dedicated Schools Grant BG0015,DSG Early Years Block,Transfer Payments,510030,School Children,03/07/2023,4152475-36641,"15,361.56",STANLEY LEARNING PARTNERSHIP.
Dedicated Schools Grant BG0015,DSG Early Years Block,Transfer Payments,510032,School Children,03/07/2023,4152476-36346,"1,078.35",STANLEY LEARNING PARTNERSHIP.
Dedicated Schools Grant BG0015,DSG Early Years Block,Transfer Payments,510030,School Children,03/07/2023,4152476-36536,"6,409.16",STANLEY LEARNING PARTNERSHIP.
Dedicated Schools Grant BG0015,DSG Early Years Block,Transfer Payments,510032,School Children,03/07/2023,4152477-36363,895.86,STANLEY LEARNING PARTNERSHIP.
Dedicated Schools Grant BG0015,DSG Early Years Block,Transfer Payments,510030,School Children,03/07/2023,4152477-36564,"14,002.93",STANLEY LEARNING PARTNERSHIP.
Dedicated Schools Grant BG0015,DSG Early Years Block,Transfer Payments,510030,School Children,03/07/2023,4152478-36544,"4,672.72",STANLEY LEARNING PARTNERSHIP.
Dedicated Schools Grant BG0015,DSG Early Years Block,Transfer Payments,510030,School Children,03/07/2023,4152486-36726,"12,048.75",STEPHENSON WAY ACADEMY & NURSERY SCHOOL.
Dedicated Schools Grant BG0015,DSG Early Years Block,Transfer Payments,510030,School Children,03/07/2023,4152487-36727,"6,468.15",STEPPING STONES DAY NURSERY (DURHAM).
Dedicated Schools Grant BG0015,DSG Early Years Block,Transfer Payments,510032,School Children,03/07/2023,4152491-36453,"3,235.05",SUNSHINE DAY NURSERY LTD.
Dedicated Schools Grant BG0015,DSG Early Years Block,Transfer Payments,510030,School Children,03/07/2023,4152491-36730,"14,177.17",SUNSHINE DAY NURSERY LTD.
Dedicated Schools Grant BG0015,DSG Early Years Block,Transfer Payments,510032,School Children,03/07/2023,4152492-36452,"3,774.22",SUNSHINE DAY NURSERY LTD.
Dedicated Schools Grant BG0015,DSG Early Years Block,Transfer Payments,510030,School Children,03/07/2023,4152492-36729,"18,710.92",SUNSHINE DAY NURSERY LTD.
Dedicated Schools Grant BG0015,DSG Early Years Block,Transfer Payments,510032,School Children,03/07/2023,4152493-36451,"8,896.39",SUNSHINE DAY NURSERY LTD.
Dedicated Schools Grant BG0015,DSG Early Years Block,Transfer Payments,510030,School Children,03/07/2023,4152493-36728,"56,050.50",SUNSHINE DAY NURSERY LTD.
Dedicated Schools Grant BG0015,DSG Early Years Block,Transfer Payments,510030,School Children,03/07/2023,4152504-36736,"2,748.94",THE EDUCATION PARTNERSHIP (UK) LTD.
Dedicated Schools Grant BG0015,DSG Early Years Block,Transfer Payments,510030,School Children,03/07/2023,4152507-36701,"12,209.08",THE LAIDLAW SCHOOLS TRUST T/A SEDGEFIELD HARDWICK PRIMARY SCHOOL.
Dedicated Schools Grant BG0015,DSG Early Years Block,Transfer Payments,510032,School Children,03/07/2023,4152508-36454,"4,043.81",THE LAURELS CHILD CARE COMPANY LTD.
Dedicated Schools Grant BG0015,DSG Early Years Block,Transfer Payments,510030,School Children,03/07/2023,4152508-36737,"8,894.22",THE LAURELS CHILD CARE COMPANY LTD.
Dedicated Schools Grant BG0015,DSG Early Years Block,Transfer Payments,510032,School Children,03/07/2023,4152514-36455,"2,426.29",TILLY MINTS CHERUBS DAY NURSERY LTD.
Dedicated Schools Grant BG0015,DSG Early Years Block,Transfer Payments,510030,School Children,03/07/2023,4152514-36738,"20,282.18",TILLY MINTS CHERUBS DAY NURSERY LTD.
Dedicated Schools Grant BG0015,DSG Early Years Block,Transfer Payments,510032,School Children,03/07/2023,4152515-36456,"2,198.17",TINY TINKERS NURSERY.
Dedicated Schools Grant BG0015,DSG Early Years Block,Transfer Payments,510030,School Children,03/07/2023,4152515-36739,"3,610.81",TINY TINKERS NURSERY.
Dedicated Schools Grant BG0015,DSG Early Years Block,Transfer Payments,510032,School Children,03/07/2023,4152517-36396,"3,525.37",TM NURSERY ENTERPRISES LTD T/A JACK IN THE BOX DAYCARE.
Dedicated Schools Grant BG0015,DSG Early Years Block,Transfer Payments,510030,School Children,03/07/2023,4152517-36611,"16,138.80",TM NURSERY ENTERPRISES LTD T/A JACK IN THE BOX DAYCARE.
Dedicated Schools Grant BG0015,DSG Early Years Block,Transfer Payments,510030,School Children,03/07/2023,4152519-36563,"10,465.87",TOGETHER LEARNING PARTNERSHIP (CLEVES CROSS PRIMARY SCHOOL).
Dedicated Schools Grant BG0015,DSG Early Years Block,Transfer Payments,510032,School Children,03/07/2023,4152520-36436,"1,078.35",TOGETHER LEARNING PARTNERSHIP (ROSA STREET PRIMARY SCHOOL).
Dedicated Schools Grant BG0015,DSG Early Years Block,Transfer Payments,510030,School Children,03/07/2023,4152520-36692,"11,881.99",TOGETHER LEARNING PARTNERSHIP (ROSA STREET PRIMARY SCHOOL).
Dedicated Schools Grant BG0015,DSG Early Years Block,Transfer Payments,510032,School Children,03/07/2023,4152522-36457,"6,200.51",TOTS `R` US.
Dedicated Schools Grant BG0015,DSG Early Years Block,Transfer Payments,510030,School Children,03/07/2023,4152522-36740,"10,042.26",TOTS `R` US.
Dedicated Schools Grant BG0015,DSG Early Years Block,Transfer Payments,510032,School Children,03/07/2023,4152527-36459,539.17,TRIMDON`S LITTLE TYKES LTD.
Dedicated Schools Grant BG0015,DSG Early Years Block,Transfer Payments,510030,School Children,03/07/2023,4152529-36708,"8,488.58",TUDHOE LEARNING TRUST T/A SOUTH HETTON PRIMARY SCHOOL.
Dedicated Schools Grant BG0015,DSG Early Years Block,Transfer Payments,510032,School Children,03/07/2023,4152534-36371,"1,617.52",UNIVERSITY OF DURHAM DAY NURSERY.
Dedicated Schools Grant BG0015,DSG Early Years Block,Transfer Payments,510030,School Children,03/07/2023,4152534-36578,"11,386.16",UNIVERSITY OF DURHAM DAY NURSERY.
Dedicated Schools Grant BG0015,DSG Early Years Block,Transfer Payments,510030,School Children,03/07/2023,4152538-36746,"11,297.63",VICTORIA LANE ACADEMY.
Dedicated Schools Grant BG0015,DSG Early Years Block,Transfer Payments,510032,School Children,03/07/2023,4152552-36461,"1,347.94",WESTFIELD HOUSE NURSERY.
Dedicated Schools Grant BG0015,DSG Early Years Block,Transfer Payments,510030,School Children,03/07/2023,4152552-36749,"13,130.32",WESTFIELD HOUSE NURSERY.
Dedicated Schools Grant BG0015,DSG Early Years Block,Transfer Payments,510032,School Children,03/07/2023,4152553-36462,"1,700.47",WHEATLEY HILL COMMUNITY NURSERY LTD.
Dedicated Schools Grant BG0015,DSG Early Years Block,Transfer Payments,510030,School Children,03/07/2023,4152553-36750,"5,050.20",WHEATLEY HILL COMMUNITY NURSERY LTD.
Dedicated Schools Grant BG0015,DSG Early Years Block,Transfer Payments,510032,School Children,03/07/2023,4152556-36463,"4,582.99",WINGATE COMMUNITY CHILDCARE LTD.
Dedicated Schools Grant BG0015,DSG Early Years Block,Transfer Payments,510030,School Children,03/07/2023,4152558-36751,"12,003.03",WITTON GILBERT PRE SCHOOL.
Dedicated Schools Grant BG0015,DSG Early Years Block,Transfer Payments,510030,School Children,03/07/2023,4152560-36757,"14,132.70",YORK HOUSE NURSERY.
Dedicated Schools Grant BG0015,DSG Early Years Block,Transfer Payments,510032,School Children,03/07/2023,4152562-36468,"8,292.80",YOUR CO-OP LITTLE PIONEERS NURSERY & PRE SCHOOL.
Dedicated Schools Grant BG0015,DSG Early Years Block,Transfer Payments,510030,School Children,03/07/2023,4152562-36758,"39,127.81",YOUR CO-OP LITTLE PIONEERS NURSERY & PRE SCHOOL.
Neighbourhoods and Climate Change,Environmental Services,Supplies and Services,338066,Services,03/07/2023,4152049-CWSR549,"1,100.00",REDACTED - PAYMENT TO INDIVIDUAL
Children and Young Peoples Services,Head of Childrens Social Care,Supplies and Services,338066,Services,03/07/2023,4152260-26/23,950.00,REDACTED - PAYMENT TO INDIVIDUAL
Regeneration Economy and Growth,Business Durham CL0850,Supplies and Services,338099,Services,03/07/2023,4152325-156,"7,470.00",MERCHANT ANGLO (AMAZON PARK) PROPERTY HOLDINGS LTD.
Regeneration Economy and Growth,Culture Sport and Tourism,Supplies and Services,338047,Services,03/07/2023,4152424-B201219,"2,347.78",REDACTED - PAYMENT TO INDIVIDUAL
Regeneration Economy and Growth,Culture Sport and Tourism,Supplies and Services,338047,Services,03/07/2023,4152152-2339,"7,334.67",FANE PRODUCTIONS LTD.
Regeneration Economy and Growth,Culture Sport and Tourism,Supplies and Services,338047,Services,03/07/2023,4152246-GALA2,600.00,JONAH YORK TIMBADASH THEATRE CIC.
Neighbourhoods and Climate Change,Environmental Services,Supplies and Services,338066,Services,03/07/2023,4151938-643,860.00,4NATURE LTD.
Resources BK0010,Legal & Democratic Services,Supplies and Services,338057,Services,03/07/2023,4151993-2339,745.00,BIOFORTUNA LTD.
Neighbourhoods and Climate Change,Highways,Supplies and Services,338027,Services,03/07/2023,4152019-52326,"2,176.00",BRIDGEWAY CONSULTING LTD.
Neighbourhoods and Climate Change,Highways,Supplies and Services,338027,Services,03/07/2023,4152019-52608,"4,065.00",BRIDGEWAY CONSULTING LTD.
Neighbourhoods and Climate Change,Highways,Supplies and Services,338027,Services,03/07/2023,4152019-52610,"7,001.00",BRIDGEWAY CONSULTING LTD.
Resources BK0010,Transactional & Customer Services,Supplies and Services,338066,Services,03/07/2023,4152052-C/BN276137,"5,619.60",CIVICA UK LTD.
Resources BK0010,Transactional & Customer Services,Supplies and Services,338066,Services,03/07/2023,4152052-C/BN276138,"8,606.81",CIVICA UK LTD.
Resources BK0010,Transactional & Customer Services,Supplies and Services,338066,Services,03/07/2023,4152052-C/BN276139,"1,858.95",CIVICA UK LTD.
Regeneration Economy and Growth,Culture Sport and Tourism,Supplies and Services,338047,Services,03/07/2023,4152062-10720,"2,487.50",COMEDY STORE MANAGEMENT T/A THE COMEDY STORE LTD.
Resources BK0010,Legal & Democratic Services,Supplies and Services,338042,Services,03/07/2023,4152094-370168/INVSRG277,743.75,DERE STREET BARRISTERS.
Resources BK0010,Legal & Democratic Services,Supplies and Services,338042,Services,03/07/2023,4152094-375331/INVEJ278,625.00,DERE STREET BARRISTERS.
Resources BK0010,Legal & Democratic Services,Supplies and Services,338105,Services,03/07/2023,4152159-PNC20230141,500.00,FORENSIC PATHOLOGY LTD.
Regeneration Economy and Growth,Corporate Property and Land,Supplies and Services,338066,Services,03/07/2023,4152178-1986/23,"5,100.00",GPC GRAHAM PROPERTY CONSULTANTS.
Children and Young Peoples Services,Head of Childrens Social Care,Supplies and Services,338045,Services,03/07/2023,4152227-ITL46380,"5,108.95",ITL (NORTH EAST) LTD.
Adult and Health Services,Head of Adults,Supplies and Services,338365,Services,03/07/2023,4152302-INV-44172,"2,145.00",LOCKWISE LTD.
Neighbourhoods and Climate Change,Highways,Supplies and Services,338099,Services,03/07/2023,4152357-1321255,"2,046.57",NETWORK RAIL.
Resources BK0010,HR & Employee Services,Supplies and Services,338064,Services,03/07/2023,4152369-32756,"20,406.00",NORTH EAST REGIONAL EMPLOYERS ORGANISATION (NEREO).
Children and Young Peoples Services,Head of Childrens Social Care,Supplies and Services,338042,Services,03/07/2023,4152370-JC-0052,"1,500.00",NORTH SQUARE BARRISTERS CHAMBERS LTD.
Children and Young Peoples Services,Head of Childrens Social Care,Supplies and Services,338044,Services,03/07/2023,4152405-23167/1,"1,787.30",PSYCHREP UK LTD.
Children and Young Peoples Services,Head of Childrens Social Care,Supplies and Services,338044,Services,03/07/2023,4152405-23211/1,703.09,PSYCHREP UK LTD.
Regeneration Economy and Growth,Culture Sport and Tourism,Supplies and Services,338047,Services,03/07/2023,4152465-1492978-1,"2,653.52",SONY PICTURES RELEASING.
Children and Young Peoples Services,Head of Childrens Social Care,Supplies and Services,338094,Services,03/07/2023,4152506-SI-0000248,522.50,THE GREENHOUSE COMPANY (GROUNDWORK) LTD.
Children and Young Peoples Services,Childrens Services Operational Support,Supplies and Services,338094,Services,03/07/2023,4152506-SI-0000249,736.80,THE GREENHOUSE COMPANY (GROUNDWORK) LTD.
Children and Young Peoples Services,Head of Education and Skills,Supplies and Services,338094,Services,03/07/2023,4152512-INV-4028,742.40,THE WORK PLACE (AYCLIFFE) LTD.
Resources BK0010,Legal & Democratic Services,Supplies and Services,338042,Services,03/07/2023,4152528-295372/INVJCT199,"7,370.00",TRINITY CHAMBERS.
Resources BK0010,Legal & Democratic Services,Supplies and Services,338042,Services,03/07/2023,4152528-300249/INVKF470,665.00,TRINITY CHAMBERS.
Resources BK0010,Legal & Democratic Services,Supplies and Services,338042,Services,03/07/2023,4152528-305057/INVTOP132,720.00,TRINITY CHAMBERS.
Resources BK0010,Legal & Democratic Services,Supplies and Services,338042,Services,03/07/2023,4152528-305216/INVTY389,"1,030.00",TRINITY CHAMBERS.
Resources BK0010,Legal & Democratic Services,Supplies and Services,338042,Services,03/07/2023,4152528-306177/INVGM529,665.00,TRINITY CHAMBERS.
Resources BK0010,Legal & Democratic Services,Supplies and Services,338042,Services,03/07/2023,4152528-306892/INVKIO298,720.00,TRINITY CHAMBERS.
Resources BK0010,Digital Services,Stock A926,926900,Stock in hand-Inventory system,03/07/2023,4152093-7402921902,568.90,DELL COMPUTER CORPORATION LTD.
Resources BK0010,Digital Services,Stock A926,926900,Stock in hand-Inventory system,03/07/2023,4152093-7402922191,"4,150.00",DELL COMPUTER CORPORATION LTD.
Resources BK0010,Digital Services,Stock A926,926900,Stock in hand-Inventory system,03/07/2023,4152093-7402922326,"6,694.00",DELL COMPUTER CORPORATION LTD.
Resources BK0010,Digital Services,Stock A926,926900,Stock in hand-Inventory system,03/07/2023,4152220-2100626125,"1,925.07",INSIGHT DIRECT (UK) LTD.
Neighbourhoods and Climate Change,Highways,Stock A926,926900,Stock in hand-Inventory system,03/07/2023,4152382-XL302867,"1,023.50",PARK ELECTRICAL DISTRIBUTORS LTD.
Neighbourhoods and Climate Change,Highways,Stock A926,926900,Stock in hand-Inventory system,03/07/2023,4152382-XL302871,"14,075.30",PARK ELECTRICAL DISTRIBUTORS LTD.
Neighbourhoods and Climate Change,Highways,Stock A926,926900,Stock in hand-Inventory system,03/07/2023,4152382-XL302876,"3,148.50",PARK ELECTRICAL DISTRIBUTORS LTD.
Neighbourhoods and Climate Change,Highways,Stock A926,926900,Stock in hand-Inventory system,03/07/2023,4152382-XL302896,796.50,PARK ELECTRICAL DISTRIBUTORS LTD.
Neighbourhoods and Climate Change,Highways,Stock A926,926900,Stock in hand-Inventory system,03/07/2023,4152563-1181727,"1,091.60",YOUR NRG LTD.
Children and Young Peoples Services,Head of Early Help Inclusion & Vulnerable Children.,Supplies and Services,344033,Telephones,03/07/2023,4152532-209534,572.70,UNIFY BUSINESS SOLUTIONS LTD.
Regeneration Economy and Growth,Business Durham CL0850,Premises,106080,Centrally Controlled Rep and Maint,04/07/2023,4153241-7081030470,"5,840.53",HONEYWELL NOVAR SYSTEMS LTD.
Regeneration Economy and Growth,Culture Sport and Tourism,Fees,901002,Consultants fees 901002,04/07/2023,4153181-5733/Y23/559,"1,500.00",BLACKETT-ORD CONSERVATION ENGINEERING.
Children and Young Peoples Services,Head of Education and Skills,Transport,230008,Contract Hire,04/07/2023,4153192-26062023,"6,188.00",CLARKS TAXIS LTD.
Neighbourhoods and Climate Change,Environmental Services,Transport,230720,Contract Hire,04/07/2023,4153326-MI/0043533/01,"13,094.47",TRIPLE POINT LEASE PARTNERS.
Adult and Health Services,Public Health CC0450,Third Party Payments,460803,Contract Payments,04/07/2023,4153242-SI-HK-001064,"5,000.00",HUMANKIND CHARITY.
Neighbourhoods and Climate Change,Highways,Premises,120009,Energy Costs,04/07/2023,4153219-000015724562,"234,241.61",EDF ENERGY CUSTOMERS PLC T/A EDF ENERGY.
Regeneration Economy and Growth,Business Durham CL0850,Premises,120009,Energy Costs,04/07/2023,4153219-000015753680,"12,057.81",EDF ENERGY CUSTOMERS PLC T/A EDF ENERGY.
Regeneration Economy and Growth,Culture Sport and Tourism,Premises,120009,Energy Costs,04/07/2023,4153245-17744,"2,560.57",IMPALA ESTATES LTD.
Neighbourhoods and Climate Change,Highways,Supplies and Services,304221,Equipment and Materials,04/07/2023,4153184-21299867,"1,744.39",BREEDON TRADING LTD.
Neighbourhoods and Climate Change,Highways,Supplies and Services,304221,Equipment and Materials,04/07/2023,4153184-21299868,"2,571.86",BREEDON TRADING LTD.
Regeneration Economy and Growth,Culture Sport and Tourism,Supplies and Services,304259,Equipment and Materials,04/07/2023,4153236-INV-5567,775.88,GYM TECH NORTH EAST.
Regeneration Economy and Growth,Corporate Property and Land,Supplies and Services,304221,Equipment and Materials,04/07/2023,4153264-2709619,544.80,MCD GROUP LTD T/A WILKIES.
Regeneration Economy and Growth,Corporate Property and Land,Supplies and Services,304221,Equipment and Materials,04/07/2023,4153279-06,"6,250.00",NORTH ROAD METHODIST CHURCH.
Adult and Health Services,Head of Adults,Supplies and Services,304259,Equipment and Materials,04/07/2023,4153284-34151,"46,500.00",ONETOUCH TELECARE LTD T/A ONETOUCH HEALTHCARE.
Regeneration Economy and Growth,Planning & Housing,Supplies and Services,304245,Equipment and Materials,04/07/2023,4153327-CD970014857,625.00,TUNSTALL HEALTHCARE (UK) LTD.
Neighbourhoods and Climate Change,Highways,Supplies and Services,304221,Equipment and Materials,04/07/2023,4153329-247795,"1,395.44",TYNEDALE ROADSTONE LTD.
Neighbourhoods and Climate Change,Highways,Supplies and Services,304221,Equipment and Materials,04/07/2023,4153329-248017,"1,070.90",TYNEDALE ROADSTONE LTD.
Neighbourhoods and Climate Change,Partnerships & Community Engagement Div.,Supplies and Services,364501,Grants to Voluntary Organisations,04/07/2023,4153246-9WEST,"1,000.00",IRVINGS PROPERTY LTD.
Regeneration Economy and Growth,Corporate Property and Land,Fees,901001,Internal fees,04/07/2023,4153292-6758968,"1,304.00",PINSENT MASONS LLP.
Neighbourhoods and Climate Change,Partnerships & Community Engagement Div.,Supplies and Services,384073,Miscellaneous Expenses,04/07/2023,4153168-BUFFET/FINAL,855.50,REDACTED - PAYMENT TO INDIVIDUAL
Regeneration Economy and Growth,Culture Sport and Tourism,Supplies and Services,384199,Miscellaneous Expenses,04/07/2023,4153196-INV-0955,"13,875.00",CONTINENTAL DRIFTS LTD.
Regeneration Economy and Growth,Business Durham CL0850,Supplies and Services,384199,Miscellaneous Expenses,04/07/2023,4153170-178341,"1,800.00",ALBANY OFFICE EQUIPMENT (WHOLESALE) LTD.
Adult and Health Services,Head of Adults,Supplies and Services,384616,Miscellaneous Expenses,04/07/2023,4153178-3/2324/DEALO1,874.88,BERNICIA GROUP LTD.*
Regeneration Economy and Growth,Culture Sport and Tourism,Supplies and Services,384199,Miscellaneous Expenses,04/07/2023,4153197-UOTR5099330,"7,085.05",CONVERA UK FINANCIAL LTD.
Resources BK0010,HR & Employee Services,Supplies and Services,384199,Miscellaneous Expenses,04/07/2023,4153282-INV-1189,"1,531.50",OM CHANGE & TRANSFORMATION LTD.
Neighbourhoods and Climate Change,Environmental Services,Supplies and Services,384899,Miscellaneous Expenses,04/07/2023,4153339-RES-06-2023-500,616.50,YORKSHIRE DALES NATIONAL PARK AUTHORITY (NPA).
Regeneration Economy and Growth,Culture Sport and Tourism,Supplies and Services,312013,Newspapers books and periodicals E312,04/07/2023,4153185-SIN006224,"14,995.95",BRIDGEALL LIBRARIES LTD.
Chief Executives Office,Communications Management,Supplies and Services,332029,Printing Stationery and Gen Off Exps,04/07/2023,4153296-20944,"1,060.00",RADECAL SIGNS GRAPHICS & ADVERTISING.
Adult and Health Services,Head of Adults,Third Party Payments,470101,Purchase of Care,04/07/2023,4153289-RES-07-2023-019,"65,977.89",PATHWAYS CARE GROUP LTD.
Regeneration Economy and Growth,Culture Sport and Tourism,Third Party Payments,430131,Rendered by Private Contractors,04/07/2023,4153265-2023012A,"3,092.00",REDACTED - PAYMENT TO INDIVIDUAL
Regeneration Economy and Growth,Culture Sport and Tourism,Third Party Payments,430131,Rendered by Private Contractors,04/07/2023,4153265-2023016,622.00,REDACTED - PAYMENT TO INDIVIDUAL
Regeneration Economy and Growth,Corporate Property and Land,Third Party Payments,430100,Rendered by Private Contractors,04/07/2023,4153171-SI30014,"2,750.00",AMBIC LTD.
Regeneration Economy and Growth,Corporate Property and Land,Third Party Payments,430100,Rendered by Private Contractors,04/07/2023,4153171-SI30015,"2,950.00",AMBIC LTD.
Regeneration Economy and Growth,Corporate Property and Land,Third Party Payments,430100,Rendered by Private Contractors,04/07/2023,4153171-SI30016,"3,750.00",AMBIC LTD.
Regeneration Economy and Growth,Corporate Property and Land,Third Party Payments,430100,Rendered by Private Contractors,04/07/2023,4153188-774,997.70,CEILINGS DIRECT LTD.
Regeneration Economy and Growth,Corporate Property and Land,Third Party Payments,430100,Rendered by Private Contractors,04/07/2023,4153328-DCC/GT/342,"1,107.60",TYNE VALLEY FLOORING & CARPETS.
Regeneration Economy and Growth,Corporate Property and Land,Third Party Payments,430100,Rendered by Private Contractors,04/07/2023,4153328-DCC/GT/345,594.12,TYNE VALLEY FLOORING & CARPETS.
Neighbourhoods and Climate Change,Highways,Third Party Payments,430100,Rendered by Private Contractors,04/07/2023,4153335-202350128,660.00,WEMO-TEC UK LTD.
Neighbourhoods and Climate Change,Highways,Third Party Payments,430100,Rendered by Private Contractors,04/07/2023,4153335-202350129,900.00,WEMO-TEC UK LTD.
Neighbourhoods and Climate Change,Environmental Services,Transport,215023,Running Costs of Vehicles,04/07/2023,4153342-1174544,620.00,YOUR NRG LTD.
Neighbourhoods and Climate Change,Environmental Services,Transport,215023,Running Costs of Vehicles,04/07/2023,4153342-1174937,651.00,YOUR NRG LTD.
Neighbourhoods and Climate Change,Environmental Services,Transport,215023,Running Costs of Vehicles,04/07/2023,4153342-1180066,930.00,YOUR NRG LTD.
Neighbourhoods and Climate Change,Environmental Services,Transport,215023,Running Costs of Vehicles,04/07/2023,4153342-1180067,620.00,YOUR NRG LTD.
Dedicated Schools Grant BG0015,DSG Early Years Block,Transfer Payments,510032,School Children,04/07/2023,4153217-36372,"2,965.46",EARLY LEARNERS PRIVATE DAY NURSERY.
Resources BK0010,Legal & Democratic Services,Supplies and Services,338042,Services,04/07/2023,4153226-87016-14012023,900.00,FRANCIS TAYLOR BUILDING (BARRISTERS).
Regeneration Economy and Growth,Culture Sport and Tourism,Supplies and Services,338047,Services,04/07/2023,4153307-INV-4597,"2,055.00",SCENIC PROJECTS LTD.
Adult and Health Services,Head of Adults,Supplies and Services,338089,Services,04/07/2023,4153211-809,"1,800.00",DO THE WRITE THING LTD.
Resources BK0010,Legal & Democratic Services,Supplies and Services,338042,Services,04/07/2023,4153325-304774/INVKW709,"4,200.00",TRINITY CHAMBERS.
Neighbourhoods and Climate Change,Environmental Services,Supplies and Services,338078,Services,04/07/2023,4153334-INV-58260,"1,914.65",VISTECH SERVICES LTD.
Children and Young Peoples Services,Head of Early Help Inclusion & Vulnerable Children.,Supplies and Services,338078,Services,04/07/2023,4153334-INV-58261,"5,050.08",VISTECH SERVICES LTD.
Neighbourhoods and Climate Change,Environmental Services,Supplies and Services,338078,Services,04/07/2023,4153334-INV-58262,"1,028.10",VISTECH SERVICES LTD.
Neighbourhoods and Climate Change,Environmental Services,Supplies and Services,338078,Services,04/07/2023,4153334-INV-58263,"1,758.20",VISTECH SERVICES LTD.
Neighbourhoods and Climate Change,Environmental Services,Supplies and Services,338078,Services,04/07/2023,4153334-INV-58264,"2,503.20",VISTECH SERVICES LTD.
Children and Young Peoples Services,Head of Childrens Social Care,Supplies and Services,372009,Subscriptions E372,04/07/2023,4153199-FM/LA/03870MEM,"10,276.79",CORAMBAAF LTD T/A CORAM ACADEMY LTD.*
Children and Young Peoples Services,Head of Childrens Social Care,Premises,135005,Water Services,04/07/2023,4153281-359144131226982383,"1,216.16",NORTHUMBRIAN WATER LTD.
Children and Young Peoples Services,Head of Childrens Social Care,Employees,080025,Agency Staff,05/07/2023,4154783-2472384,"161,980.65",GEOMETRIC RESULTS INTERNATIONAL.
Neighbourhoods and Climate Change,Highways,Fees,901004,Capital - Detailed Design,05/07/2023,4154959-SIA297995,595.44,REACH PUBLISHING SERVICES LTD T/A REACH PLC.
Regeneration Economy and Growth,Culture Sport and Tourism,Premises,145023,Cleaning and Domestic Supplies,05/07/2023,4154679-22SI2291436,"2,290.80",BRENNTAG UK LTD.
Regeneration Economy and Growth,Corporate Property and Land,Premises,145052,Cleaning and Domestic Supplies,05/07/2023,4154693-CC143722,"2,395.00",CITY CLEAN NORTHERN LTD.
Neighbourhoods and Climate Change,Environmental Services,Premises,145009,Cleaning and Domestic Supplies,05/07/2023,4154756-Y00011425T,"2,875.00",ENVIRONMENT AGENCY.
Regeneration Economy and Growth,Corporate Property and Land,Premises,145023,Cleaning and Domestic Supplies,05/07/2023,4154788-06/227070,"1,720.51",GREENHAM TRADING LTD.
Regeneration Economy and Growth,Culture Sport and Tourism,Premises,145023,Cleaning and Domestic Supplies,05/07/2023,4154788-06/227494,531.94,GREENHAM TRADING LTD.
Children and Young Peoples Services,Head of Childrens Social Care,Premises,145009,Cleaning and Domestic Supplies,05/07/2023,4154867-P276258,"2,867.85",MAX RECYCLE T/A THE DURHAM COMPANY (TDC).
Resources BK0010,Transactional & Customer Services,Supplies and Services,342051,Computers and Communications,05/07/2023,4154694-M/LN116194,"9,568.13",CIVICA UK LTD.
Children and Young Peoples Services,Head of Education and Skills,Supplies and Services,352001,Conference Expenses,05/07/2023,4155039-22884299-5,"1,020.00",UNIVERSITY OF TEESSIDE.
Regeneration Economy and Growth,Corporate Property and Land,Fees,901002,Consultants fees 901002,05/07/2023,4154676-SIN044136,"327,689.93",BLOOM PROCUREMENT SERVICES LTD (FORMERLY NEPRO LTD).
Adult and Health Services,Head of Adults,Transport,230005,Contract Hire,05/07/2023,4154644-10-DW138,756.00,REDACTED - PAYMENT TO INDIVIDUAL
Children and Young Peoples Services,Head of Education and Skills,Transport,230009,Contract Hire,05/07/2023,4154644-10JUN23,"1,817.80",REDACTED - PAYMENT TO INDIVIDUAL
Children and Young Peoples Services,Head of Education and Skills,Transport,230006,Contract Hire,05/07/2023,4154718-19,"2,310.24",REDACTED - PAYMENT TO INDIVIDUAL
Adult and Health Services,Head of Adults,Transport,230005,Contract Hire,05/07/2023,4154719-B86-CLS060,"2,520.00",REDACTED - PAYMENT TO INDIVIDUAL
Children and Young Peoples Services,Head of Education and Skills,Transport,230006,Contract Hire,05/07/2023,4154719-B87,"1,400.00",REDACTED - PAYMENT TO INDIVIDUAL
Children and Young Peoples Services,Head of Education and Skills,Transport,230006,Contract Hire,05/07/2023,4154774-5JUN23,"2,201.88",REDACTED - PAYMENT TO INDIVIDUAL
Children and Young Peoples Services,Head of Education and Skills,Transport,230006,Contract Hire,05/07/2023,4154774-6JUN23,"2,293.99",REDACTED - PAYMENT TO INDIVIDUAL
Children and Young Peoples Services,Head of Education and Skills,Transport,230006,Contract Hire,05/07/2023,4154778-F124/06/09,"2,058.83",REDACTED - PAYMENT TO INDIVIDUAL
Children and Young Peoples Services,Head of Education and Skills,Transport,230006,Contract Hire,05/07/2023,4154798-10-F253,"3,133.00",REDACTED - PAYMENT TO INDIVIDUAL
Children and Young Peoples Services,Head of Education and Skills,Transport,230007,Contract Hire,05/07/2023,4154798-10JUN23,"1,062.20",REDACTED - PAYMENT TO INDIVIDUAL
Children and Young Peoples Services,Head of Education and Skills,Transport,230006,Contract Hire,05/07/2023,4154798-21JUN23,"2,116.63",REDACTED - PAYMENT TO INDIVIDUAL
Children and Young Peoples Services,Head of Education and Skills,Transport,230006,Contract Hire,05/07/2023,4154798-75,699.23,REDACTED - PAYMENT TO INDIVIDUAL
Children and Young Peoples Services,Head of Education and Skills,Transport,230007,Contract Hire,05/07/2023,4154812-4409-JUN23,"1,232.60",REDACTED - PAYMENT TO INDIVIDUAL
Adult and Health Services,Head of Adults,Transport,230005,Contract Hire,05/07/2023,4154812-CLS078,"1,245.60",REDACTED - PAYMENT TO INDIVIDUAL
Adult and Health Services,Head of Adults,Transport,230005,Contract Hire,05/07/2023,4154833-302,"1,135.00",REDACTED - PAYMENT TO INDIVIDUAL
Children and Young Peoples Services,Head of Education and Skills,Transport,230034,Contract Hire,05/07/2023,4154845-BC010,"2,580.00",REDACTED - PAYMENT TO INDIVIDUAL
Children and Young Peoples Services,Head of Education and Skills,Transport,230007,Contract Hire,05/07/2023,4154852-011,"1,280.00",REDACTED - PAYMENT TO INDIVIDUAL
Children and Young Peoples Services,Head of Education and Skills,Transport,230006,Contract Hire,05/07/2023,4154869-INV277,"1,596.00",REDACTED - PAYMENT TO INDIVIDUAL
Children and Young Peoples Services,Head of Education and Skills,Transport,230012,Contract Hire,05/07/2023,4154877-E054-21,"2,325.00",REDACTED - PAYMENT TO INDIVIDUAL
Children and Young Peoples Services,Head of Education and Skills,Transport,230008,Contract Hire,05/07/2023,4154877-E110-8,"1,980.00",REDACTED - PAYMENT TO INDIVIDUAL
Children and Young Peoples Services,Head of Education and Skills,Transport,230008,Contract Hire,05/07/2023,4154878-W058-JUN23,"5,200.00",REDACTED - PAYMENT TO INDIVIDUAL
Children and Young Peoples Services,Head of Education and Skills,Transport,230035,Contract Hire,05/07/2023,4154881-4501JUN23,"2,528.69",REDACTED - PAYMENT TO INDIVIDUAL
Adult and Health Services,Head of Adults,Transport,230005,Contract Hire,05/07/2023,4154881-DW144JUN23,"1,744.00",REDACTED - PAYMENT TO INDIVIDUAL
Children and Young Peoples Services,Head of Education and Skills,Transport,230034,Contract Hire,05/07/2023,4154928-009JUN23,"4,588.40",REDACTED - PAYMENT TO INDIVIDUAL
Children and Young Peoples Services,Head of Education and Skills,Transport,230008,Contract Hire,05/07/2023,4154989-000026,"3,640.00",REDACTED - PAYMENT TO INDIVIDUAL
Children and Young Peoples Services,Head of Education and Skills,Transport,230008,Contract Hire,05/07/2023,4154989-000027-JUN23,"2,600.00",REDACTED - PAYMENT TO INDIVIDUAL
Children and Young Peoples Services,Head of Education and Skills,Transport,230034,Contract Hire,05/07/2023,4155000-143,"1,369.74",REDACTED - PAYMENT TO INDIVIDUAL
Children and Young Peoples Services,Head of Education and Skills,Transport,230006,Contract Hire,05/07/2023,4155024-F628-JUN23,"4,476.12",REDACTED - PAYMENT TO INDIVIDUAL
Children and Young Peoples Services,Head of Education and Skills,Transport,230010,Contract Hire,05/07/2023,4155028-INV0047,"7,181.80",REDACTED - PAYMENT TO INDIVIDUAL
Adult and Health Services,Head of Adults,Transport,230005,Contract Hire,05/07/2023,4153819-I-23-9572847,"4,197.14",DURHAM ALLIANCE FOR COMMUNITY CARE.
Children and Young Peoples Services,Head of Education and Skills,Transport,230007,Contract Hire,05/07/2023,4154638-416,"1,345.04",ALANS TAXIS BARNARD CASTLE.
Children and Young Peoples Services,Head of Education and Skills,Transport,230007,Contract Hire,05/07/2023,4154638-417,"2,173.68",ALANS TAXIS BARNARD CASTLE.
Children and Young Peoples Services,Head of Education and Skills,Transport,230007,Contract Hire,05/07/2023,4154638-419,"1,017.36",ALANS TAXIS BARNARD CASTLE.
Children and Young Peoples Services,Head of Education and Skills,Transport,230006,Contract Hire,05/07/2023,4154656-200,"2,840.00",AUCKLAND TRAVEL.
Children and Young Peoples Services,Head of Education and Skills,Transport,230008,Contract Hire,05/07/2023,4154656-203,"2,508.00",AUCKLAND TRAVEL.
Children and Young Peoples Services,Head of Education and Skills,Transport,230008,Contract Hire,05/07/2023,4154656-204,"4,731.00",AUCKLAND TRAVEL.
Children and Young Peoples Services,Head of Education and Skills,Transport,230008,Contract Hire,05/07/2023,4154656-205,"3,206.60",AUCKLAND TRAVEL.
Children and Young Peoples Services,Head of Education and Skills,Transport,230008,Contract Hire,05/07/2023,4154656-206,"3,360.00",AUCKLAND TRAVEL.
Children and Young Peoples Services,Head of Education and Skills,Transport,230007,Contract Hire,05/07/2023,4154657-3006023,"3,770.24",AVALON TAXIS.
Children and Young Peoples Services,Head of Education and Skills,Transport,230034,Contract Hire,05/07/2023,4154657-30623,"3,059.20",AVALON TAXIS.
Children and Young Peoples Services,Head of Education and Skills,Transport,230034,Contract Hire,05/07/2023,4154669-8JUN23,"2,808.20",BENNETTS TAXIS.
Children and Young Peoples Services,Head of Education and Skills,Transport,230012,Contract Hire,05/07/2023,4154673-2-E057,"2,972.32",BH TRAVEL.
Children and Young Peoples Services,Head of Education and Skills,Transport,230007,Contract Hire,05/07/2023,4154674-6069,"1,599.60",BIG MAMA`S TAXI.
Adult and Health Services,Head of Adults,Transport,230005,Contract Hire,05/07/2023,4154674-DM228-JUN23,560.00,BIG MAMA`S TAXI.
Children and Young Peoples Services,Head of Education and Skills,Transport,230008,Contract Hire,05/07/2023,4154702-37-JUN23,"3,488.00",CONSETT CONTRACTS LTD.
Children and Young Peoples Services,Head of Education and Skills,Transport,230008,Contract Hire,05/07/2023,4154702-38-JUN23,"2,133.00",CONSETT CONTRACTS LTD.
Children and Young Peoples Services,Head of Education and Skills,Transport,230008,Contract Hire,05/07/2023,4154702-39-JUN23,"4,052.80",CONSETT CONTRACTS LTD.
Children and Young Peoples Services,Head of Education and Skills,Transport,230008,Contract Hire,05/07/2023,4154702-40-JUN23,"3,296.80",CONSETT CONTRACTS LTD.
Children and Young Peoples Services,Head of Education and Skills,Transport,230008,Contract Hire,05/07/2023,4154702-41-JUN23,"1,744.00",CONSETT CONTRACTS LTD.
Children and Young Peoples Services,Head of Education and Skills,Transport,230008,Contract Hire,05/07/2023,4154702-42-JUN23,"2,986.20",CONSETT CONTRACTS LTD.
Children and Young Peoples Services,Head of Education and Skills,Transport,230008,Contract Hire,05/07/2023,4154702-44-JUN23,"3,297.00",CONSETT CONTRACTS LTD.
Children and Young Peoples Services,Head of Education and Skills,Transport,230009,Contract Hire,05/07/2023,4154702-45-JUN23,"2,800.00",CONSETT CONTRACTS LTD.
Children and Young Peoples Services,Head of Education and Skills,Transport,230008,Contract Hire,05/07/2023,4154702-46-JUN23,"2,800.00",CONSETT CONTRACTS LTD.
Children and Young Peoples Services,Head of Education and Skills,Transport,230008,Contract Hire,05/07/2023,4154702-47-JUN23,"2,600.00",CONSETT CONTRACTS LTD.
Children and Young Peoples Services,Head of Education and Skills,Transport,230007,Contract Hire,05/07/2023,4154714-115860,"4,065.12",CROFT BUSINESS SERVICES LTD T/A CROFT TRAVEL.
Children and Young Peoples Services,Head of Education and Skills,Transport,230008,Contract Hire,05/07/2023,4154760-N340-017,"2,192.48",FERRYHILL VILLAGE TRAVEL & BROOM ROAD GARAGE LIMITED.
Children and Young Peoples Services,Head of Education and Skills,Transport,230010,Contract Hire,05/07/2023,4154760-PB004-006,"1,885.20",FERRYHILL VILLAGE TRAVEL & BROOM ROAD GARAGE LIMITED.
Adult and Health Services,Head of Adults,Transport,230005,Contract Hire,05/07/2023,4154760-SED001-008,"1,712.00",FERRYHILL VILLAGE TRAVEL & BROOM ROAD GARAGE LIMITED.
Children and Young Peoples Services,Head of Education and Skills,Transport,230006,Contract Hire,05/07/2023,4154770-F242JUNE,"2,083.88",FREEDOM PRIVATE HIRE.
Children and Young Peoples Services,Head of Education and Skills,Transport,230006,Contract Hire,05/07/2023,4154831-092,"2,640.00",JOHN CRAKE & SONS MINI BUSES LTD.
Children and Young Peoples Services,Head of Education and Skills,Transport,230034,Contract Hire,05/07/2023,4154870-596,"2,242.00",MICKS TAXIS - MURTON.
Children and Young Peoples Services,Head of Education and Skills,Transport,230034,Contract Hire,05/07/2023,4154925-3422JUN23,"1,130.40",PETER`S TAXIS.
Children and Young Peoples Services,Head of Education and Skills,Transport,230035,Contract Hire,05/07/2023,4154925-3482JUN23,"1,826.40",PETER`S TAXIS.
Children and Young Peoples Services,Head of Education and Skills,Transport,230003,Contract Hire,05/07/2023,4154925-3501JUN23,"1,600.00",PETER`S TAXIS.
Children and Young Peoples Services,Head of Education and Skills,Transport,230007,Contract Hire,05/07/2023,4154925-5294JUN23,"1,990.80",PETER`S TAXIS.
Children and Young Peoples Services,Head of Education and Skills,Transport,230006,Contract Hire,05/07/2023,4154925-F116JUN23,"1,595.48",PETER`S TAXIS.
Children and Young Peoples Services,Head of Education and Skills,Transport,230008,Contract Hire,05/07/2023,4154972-006JUN23,"3,178.00",RONS TAXI (CHESTER LE ST).
Children and Young Peoples Services,Head of Education and Skills,Transport,230003,Contract Hire,05/07/2023,4154999-62836,"2,812.76",STANLEY TRAVEL (NORTH EAST) LTD.
Children and Young Peoples Services,Head of Education and Skills,Transport,230009,Contract Hire,05/07/2023,4155009-DCC/2022/82,"1,560.00",TAYLOR`S TAXIS.
Children and Young Peoples Services,Head of Education and Skills,Transport,230006,Contract Hire,05/07/2023,4155029-1-A105JUN23,"3,005.60",TONYS TAXIS (J BIRCH).
Children and Young Peoples Services,Head of Education and Skills,Transport,230008,Contract Hire,05/07/2023,4155029-3-E058,"2,732.00",TONYS TAXIS (J BIRCH).
Adult and Health Services,Head of Adults,Transport,230005,Contract Hire,05/07/2023,4155029-4JUN23,"2,795.54",TONYS TAXIS (J BIRCH).
Neighbourhoods and Climate Change,Environmental Services,Supplies and Services,304221,Equipment and Materials,05/07/2023,4154662-INV158198,995.24,AZTEC CHEMICALS LTD.
Regeneration Economy and Growth,Corporate Property and Land,Supplies and Services,304221,Equipment and Materials,05/07/2023,4154746-059-320444,518.00,EDMUNDSON ELECTRICAL LTD.
Regeneration Economy and Growth,Corporate Property and Land,Supplies and Services,304221,Equipment and Materials,05/07/2023,4154791-8218,"3,162.27",GROVE REED JOINERY LTD.
Neighbourhoods and Climate Change,Environmental Services,Supplies and Services,304259,Equipment and Materials,05/07/2023,4154793-089775,"1,250.80",HAGS-SMP LTD.
Neighbourhoods and Climate Change,Highways,Supplies and Services,304221,Equipment and Materials,05/07/2023,4154837-0107/00040955,"1,074.00",JT DOVE LTD.
Neighbourhoods and Climate Change,Highways,Supplies and Services,304221,Equipment and Materials,05/07/2023,4155008-9047057668,"2,110.20",TARMAC TRADING LTD.
Regeneration Economy and Growth,Corporate Property and Land,Supplies and Services,304259,Equipment and Materials,05/07/2023,4155010-2638,"4,173.00",TEESDALE COMMUNICATION & SECURITY.
Neighbourhoods and Climate Change,Highways,Supplies and Services,304221,Equipment and Materials,05/07/2023,4155038-247781,"1,898.50",TYNEDALE ROADSTONE LTD.
Neighbourhoods and Climate Change,Highways,Supplies and Services,304221,Equipment and Materials,05/07/2023,4155038-247782,"1,551.89",TYNEDALE ROADSTONE LTD.
Neighbourhoods and Climate Change,Highways,Supplies and Services,304221,Equipment and Materials,05/07/2023,4155038-247783,"1,979.32",TYNEDALE ROADSTONE LTD.
Regeneration Economy and Growth,Corporate Property and Land,Cap Exp on Grants & Other Financial Assistance (REFCUS),918501,Exp assets not owned by authority,05/07/2023,4154643-AHP-2998,500.00,REDACTED - PAYMENT TO INDIVIDUAL
Regeneration Economy and Growth,Planning & Housing,Supplies and Services,384999,Miscellaneous Expenses,05/07/2023,4154825-2023-02DURHAMCOCOUNCIL,"1,500.00",REDACTED - PAYMENT TO INDIVIDUAL
Children and Young Peoples Services,Head of Childrens Social Care,Supplies and Services,384199,Miscellaneous Expenses,05/07/2023,4154707-000000875,"1,295.50",CORAM CHILDRENS LEGAL CENTRE LTD.
Regeneration Economy and Growth,Planning & Housing,Supplies and Services,384999,Miscellaneous Expenses,05/07/2023,4154980-11CHAPEL,"1,000.00",SARAHANN CAMPION PROPERTIES.
Regeneration Economy and Growth,Planning & Housing,Supplies and Services,384999,Miscellaneous Expenses,05/07/2023,4154980-11CHAPEL-INCENTIVE,500.00,SARAHANN CAMPION PROPERTIES.
Neighbourhoods and Climate Change,Partnerships & Community Engagement Div.,Supplies and Services,384086,Miscellaneous Expenses,05/07/2023,4155049-VOUCHERHOVL03-23,999.00,WHEATLEY HILL HERITAGE SOCIETY.
Regeneration Economy and Growth,Planning & Housing,Supplies and Services,384999,Miscellaneous Expenses,05/07/2023,4154545-1034438,"27,500.00",THE CYRENIANS LTD T/A CHANGING LIVES.
Regeneration Economy and Growth,Corporate Property and Land,Supplies and Services,384199,Miscellaneous Expenses,05/07/2023,4154672-43704,"3,000.00",BGP CONSULTING LTD T/A BILLINGHURST GEORGE & PARTNERS.
Dedicated Schools Grant BG0015,DSG High Needs Block,Supplies and Services,384302,Miscellaneous Expenses,05/07/2023,4154723-163,"1,509.84",DENE ACADEMY.
Regeneration Economy and Growth,Business Durham CL0850,Supplies and Services,384199,Miscellaneous Expenses,05/07/2023,4154754-1014-25857,510.00,ENERGY & COMPLIANCE TECHNOLOGY LTD T/A COMPLIANCE365.
Regeneration Economy and Growth,Culture Sport and Tourism,Supplies and Services,384302,Miscellaneous Expenses,05/07/2023,4154820-JDA/DCC/1973,"1,200.00",JACK DRUM ARTS LTD.
Regeneration Economy and Growth,Economic Development Level C,Supplies and Services,384899,Miscellaneous Expenses,05/07/2023,4154901-RES-07-2023-004,"42,500.00",NE FIRST CREDIT UNION FOR DURHAM COUNTY & GATESHEAD.
Children and Young Peoples Services,Head of Childrens Social Care,Supplies and Services,384199,Miscellaneous Expenses,05/07/2023,4154914-110/2023,"1,434.00",PACT NE.
Children and Young Peoples Services,Head of Childrens Social Care,Supplies and Services,384199,Miscellaneous Expenses,05/07/2023,4154914-119/2023,"1,519.40",PACT NE.
Children and Young Peoples Services,Head of Early Help Inclusion & Vulnerable Children.,Supplies and Services,384302,Miscellaneous Expenses,05/07/2023,4154916-72951597,509.00,PARK RETAIL LTD T/A LOVE2SHOP.
Neighbourhoods and Climate Change,Environmental Services,Supplies and Services,384199,Miscellaneous Expenses,05/07/2023,4154952-0000065737,697.50,RA DALTON LTD.
Regeneration Economy and Growth,Culture Sport and Tourism,Supplies and Services,384999,Miscellaneous Expenses,05/07/2023,4155022-NEI-HCL-06-2023-005,"30,000.00",THE WITHAM HALL LTD.
Children and Young Peoples Services,Head of Education and Skills,Supplies and Services,312009,Newspapers books and periodicals E312,05/07/2023,4154923-1997560,"1,334.57",PETERS LTD.
Children and Young Peoples Services,Head of Childrens Social Care,Third Party Payments,440038,Other third party payments E440,05/07/2023,4153345-PIG_165914,"3,136.00",123 CARE & ACCOMMODATION LTD.
Children and Young Peoples Services,Head of Childrens Social Care,Third Party Payments,440062,Other third party payments E440,05/07/2023,4153852-PIG_166609,970.00,EMBRACING CARE.
Children and Young Peoples Services,Head of Childrens Social Care,Third Party Payments,440038,Other third party payments E440,05/07/2023,4153886-PIG_165917,"59,420.00",FOREVER CARE LTD.
Children and Young Peoples Services,Head of Childrens Social Care,Third Party Payments,440038,Other third party payments E440,05/07/2023,4153938-PIG_166624,"3,930.00",HANDCRAFTED PROJECTS.
Children and Young Peoples Services,Head of Childrens Social Care,Third Party Payments,440038,Other third party payments E440,05/07/2023,4153938-PIG_166625,"3,930.00",HANDCRAFTED PROJECTS.
Children and Young Peoples Services,Head of Childrens Social Care,Third Party Payments,440038,Other third party payments E440,05/07/2023,4153938-PIG_166626,"3,930.00",HANDCRAFTED PROJECTS.
Children and Young Peoples Services,Head of Childrens Social Care,Third Party Payments,440038,Other third party payments E440,05/07/2023,4153984-PIG_165915,"8,072.38",HOME GROUP LTD FORMERLY STONHAM HOUSING ASSOCIATION LTD.
Children and Young Peoples Services,Head of Childrens Social Care,Third Party Payments,440062,Other third party payments E440,05/07/2023,4154097-PIG_166610,640.00,KELLY PARK LTD..
Children and Young Peoples Services,Head of Childrens Social Care,Third Party Payments,440038,Other third party payments E440,05/07/2023,4154231-PIG_166627,"3,867.53",MOVING ON (DURHAM) LTD.
Children and Young Peoples Services,Head of Childrens Social Care,Third Party Payments,440039,Other third party payments E440,05/07/2023,4154233-PIG_166635,"151,870.84",MOVING UP CARE LTD.
Children and Young Peoples Services,Head of Childrens Social Care,Third Party Payments,440062,Other third party payments E440,05/07/2023,4154320-PIG_166611,"2,555.00",ORCHARD HOME CARE SERVICES LTD.
Dedicated Schools Grant BG0015,DSG High Needs Block,Third Party Payments,440080,Other third party payments E440,05/07/2023,4154358-PIG_165930,"85,249.16",PERCY HEDLEY FOUNDATION.
Children and Young Peoples Services,Head of Childrens Social Care,Third Party Payments,440062,Other third party payments E440,05/07/2023,4154359-PIG_166652,"1,918.72",PERFECT CARE LTD.
Children and Young Peoples Services,Head of Childrens Social Care,Third Party Payments,440038,Other third party payments E440,05/07/2023,4154421-PIG_166629,"19,662.83",ROC FAMILY SUPPORT LTD.
Children and Young Peoples Services,Head of Childrens Social Care,Third Party Payments,440062,Other third party payments E440,05/07/2023,4154467-PIG_166640,"3,640.00",SHEENA MILES CARE SERVICES LTD.
Children and Young Peoples Services,Head of Childrens Social Care,Third Party Payments,440038,Other third party payments E440,05/07/2023,4154473-PIG_165916,"3,148.74",SILVER BIRCH CARE LTD.
Children and Young Peoples Services,Head of Childrens Social Care,Third Party Payments,440038,Other third party payments E440,05/07/2023,4154544-PIG_166623,"16,059.16",THE CYRENIANS LTD T/A CHANGING LIVES.
Children and Young Peoples Services,Head of Childrens Social Care,Third Party Payments,440038,Other third party payments E440,05/07/2023,4154621-PIG_166628,"54,400.00",YMCA WEARSIDE LTD.
Adult and Health Services,Commissioning inc Supporting People,Third Party Payments,440999,Other third party payments E440,05/07/2023,4154898-58954,"3,133.01",NATIONAL YOUTH ADVOCACY SERVICE.
Dedicated Schools Grant BG0015,DSG High Needs Block,Third Party Payments,440111,Other third party payments E440,05/07/2023,4154998-RES-07-2023-015,"68,000.00",STANLEY LEARNING PARTNERSHIP.
Regeneration Economy and Growth,Planning & Housing,Third Party Payments,440999,Other third party payments E440,05/07/2023,4155037-CD970016236,"50,320.00",TUNSTALL HEALTHCARE (UK) LTD.
Regeneration Economy and Growth,Planning & Housing,Third Party Payments,440999,Other third party payments E440,05/07/2023,4155037-CD970021340,"38,337.64",TUNSTALL HEALTHCARE (UK) LTD.
Children and Young Peoples Services,Head of Education and Skills,Supplies and Services,375001,Private Finance Initiative,05/07/2023,4154816-ISD0413,"720,096.77",INSPIREDSPACES DURHAM (PROJECTCO1) LTD.
Regeneration Economy and Growth,Culture Sport and Tourism,Supplies and Services,324117,Provisions E324,05/07/2023,4154963-11321,549.53,JIMMY PRODUCTS UK LTD T/A EMPIRE POPCORN.*
Adult and Health Services,Head of Adults,Third Party Payments,478101,Purchase of Care,05/07/2023,4154397-I-23-9573057,"3,176.00",DEAF EMPOWERING NETWORK (DEN INTERPRETING).
Adult and Health Services,Head of Adults,Third Party Payments,472101,Purchase of Care,05/07/2023,4154388-I-23-9573172,812.00,QUALITY & CARE SOLUTIONS LTD.
Adult and Health Services,Head of Adults,Third Party Payments,470101,Purchase of Care,05/07/2023,4153598-I-23-9573467,"2,862.56",REDACTED - PAYMENT TO INDIVIDUAL
Adult and Health Services,Head of Adults,Third Party Payments,470101,Purchase of Care,05/07/2023,4154195-I-23-9573445,"2,734.24",REDACTED - PAYMENT TO INDIVIDUAL
Adult and Health Services,Head of Adults,Third Party Payments,473101,Purchase of Care,05/07/2023,4154234-I-23-9572867,"25,319.28",REDACTED - PAYMENT TO INDIVIDUAL
Adult and Health Services,Head of Adults,Third Party Payments,470101,Purchase of Care,05/07/2023,4154234-I-23-9573190,"25,667.04",REDACTED - PAYMENT TO INDIVIDUAL
Adult and Health Services,Head of Adults,Third Party Payments,478101,Purchase of Care,05/07/2023,4154266-I-23-9573084,"4,240.88",REDACTED - PAYMENT TO INDIVIDUAL
Adult and Health Services,Head of Adults,Third Party Payments,478101,Purchase of Care,05/07/2023,4154267-I-23-9573112,"4,407.48",REDACTED - PAYMENT TO INDIVIDUAL
Adult and Health Services,Head of Adults,Third Party Payments,470101,Purchase of Care,05/07/2023,4154276-I-23-9573392,"2,600.00",REDACTED - PAYMENT TO INDIVIDUAL
Adult and Health Services,Head of Adults,Third Party Payments,470101,Purchase of Care,05/07/2023,4154419-I-23-9573238,"12,327.00",REDACTED - PAYMENT TO INDIVIDUAL
Adult and Health Services,Head of Adults,Third Party Payments,470101,Purchase of Care,05/07/2023,4154420-I-23-9573374,"65,268.51",REDACTED - PAYMENT TO INDIVIDUAL
Adult and Health Services,Head of Adults,Third Party Payments,472101,Purchase of Care,05/07/2023,4153610-I-23-9573085,"54,036.25",ARCHIE CARE LTD T/A HOME INSTEAD SENIOR CARE DURHAM.
Adult and Health Services,Head of Adults,Third Party Payments,470101,Purchase of Care,05/07/2023,4153627-I-23-9573469,"2,246.43",AUTUMN HOUSE CARE LTD.
Adult and Health Services,Head of Adults,Third Party Payments,470101,Purchase of Care,05/07/2023,4153670-I-23-9656794,"2,092.57",BURN BRAE LODGE.
Adult and Health Services,Head of Adults,Third Party Payments,470101,Purchase of Care,05/07/2023,4153738-I-23-9573327,"2,848.00",ASHES CARE GROUP LTD T/A TEESDALE LODGE NURSING HOME.
Adult and Health Services,Head of Adults,Third Party Payments,470101,Purchase of Care,05/07/2023,4154182-I-23-8295012,"4,364.29",MARTON CARE HOMES LTD T/A WESTVIEW LODGE CARE HOME.
Adult and Health Services,Head of Adults,Third Party Payments,470101,Purchase of Care,05/07/2023,4154182-I-23-9573212,"1,857.86",MARTON CARE HOMES LTD T/A WESTVIEW LODGE CARE HOME.
Adult and Health Services,Head of Adults,Third Party Payments,470101,Purchase of Care,05/07/2023,4153347-I-23-9573181,"95,568.12",A CHARLES THOMAS (CARE) LTD.
Adult and Health Services,Head of Adults,Third Party Payments,478101,Purchase of Care,05/07/2023,4153355-I-23-9572869,"22,243.64",ACCEPT CARE LTD.
Adult and Health Services,Head of Adults,Third Party Payments,478101,Purchase of Care,05/07/2023,4153355-I-23-9572871,"29,776.32",ACCEPT CARE LTD.
Adult and Health Services,Head of Adults,Third Party Payments,478101,Purchase of Care,05/07/2023,4153355-I-23-9572876,"39,875.24",ACCEPT CARE LTD.
Adult and Health Services,Head of Adults,Third Party Payments,478101,Purchase of Care,05/07/2023,4153355-I-23-9572877,"12,983.04",ACCEPT CARE LTD.
Adult and Health Services,Head of Adults,Third Party Payments,478101,Purchase of Care,05/07/2023,4153355-I-23-9572925,"38,557.54",ACCEPT CARE LTD.
Adult and Health Services,Head of Adults,Third Party Payments,478101,Purchase of Care,05/07/2023,4153355-I-23-9572966,"40,515.56",ACCEPT CARE LTD.
Adult and Health Services,Head of Adults,Third Party Payments,478101,Purchase of Care,05/07/2023,4153355-I-23-9572968,"25,301.80",ACCEPT CARE LTD.
Adult and Health Services,Head of Adults,Third Party Payments,473101,Purchase of Care,05/07/2023,4153355-I-23-9573130,"5,909.25",ACCEPT CARE LTD.
Adult and Health Services,Head of Adults,Third Party Payments,470101,Purchase of Care,05/07/2023,4153550-I-23-9573198,"50,600.40",ACTION FOR CARE LTD.
Adult and Health Services,Head of Adults,Third Party Payments,474101,Purchase of Care,05/07/2023,4153558-I-23-9573216,"126,270.11",AKARI CARE LTD.
Adult and Health Services,Head of Adults,Third Party Payments,470101,Purchase of Care,05/07/2023,4153559-I-23-9573246,"2,778.04",AKARI CARE LTD.
Adult and Health Services,Head of Adults,Third Party Payments,470101,Purchase of Care,05/07/2023,4153560-I-23-9573440,"117,444.02",AKARI CARE LTD.
Adult and Health Services,Head of Adults,Third Party Payments,474101,Purchase of Care,05/07/2023,4153561-I-23-9573462,"7,407.56",AKARI CARE LTD.
Adult and Health Services,Head of Adults,Third Party Payments,470101,Purchase of Care,05/07/2023,4153580-I-23-9573221,"153,862.04",ALLIANCE CARE (TRENDLEWOOD) LTD.
Adult and Health Services,Head of Adults,Third Party Payments,470101,Purchase of Care,05/07/2023,4153588-I-23-9573366,"13,568.58",ANCHOR CAREHOMES LTD.
Adult and Health Services,Head of Adults,Third Party Payments,470101,Purchase of Care,05/07/2023,4153589-I-23-9573318,"29,920.26",ANCHOR HANOVER GROUP.
Adult and Health Services,Head of Adults,Third Party Payments,470101,Purchase of Care,05/07/2023,4153591-I-23-9573461,"7,375.42",ANCHOR TRUST.
Adult and Health Services,Head of Adults,Third Party Payments,472101,Purchase of Care,05/07/2023,4153608-I-23-9572866,819.00,APM CLEANING & REPAIR LTD.
Adult and Health Services,Head of Adults,Third Party Payments,474101,Purchase of Care,05/07/2023,4153611-I-23-9573211,"17,660.00",ASCOT CARE NORTH EAST LTD..
Adult and Health Services,Head of Adults,Third Party Payments,470101,Purchase of Care,05/07/2023,4153612-I-23-9573452,"6,728.20",ASHBOURNE LODGE CARE HOME.
Adult and Health Services,Head of Adults,Third Party Payments,470101,Purchase of Care,05/07/2023,4153615-I-23-9573388,"1,324.72",ASPIRE CARE GROUP T/A GRASMERE LODGE.
Adult and Health Services,Head of Adults,Third Party Payments,470101,Purchase of Care,05/07/2023,4153616-I-23-9573291,"9,060.20",ASPIRE CARE GROUP.
Adult and Health Services,Head of Adults,Third Party Payments,470101,Purchase of Care,05/07/2023,4153617-I-23-9572873,732.80,ASPIRE CARE GROUP.
Adult and Health Services,Head of Adults,Third Party Payments,470101,Purchase of Care,05/07/2023,4153617-I-23-9573206,"18,200.72",ASPIRE CARE GROUP.
Adult and Health Services,Head of Adults,Third Party Payments,470101,Purchase of Care,05/07/2023,4153618-I-23-9573356,"44,686.36",ASPIRE CARE GROUP.
Adult and Health Services,Head of Adults,Third Party Payments,478101,Purchase of Care,05/07/2023,4153619-I-23-9572953,"4,118.40",ASPIRE HEALTHCARE LTD.
Adult and Health Services,Head of Adults,Third Party Payments,474101,Purchase of Care,05/07/2023,4153621-I-23-9573338,"4,128.92",ATLAS CARE HOMES LTD.
Adult and Health Services,Head of Adults,Third Party Payments,470101,Purchase of Care,05/07/2023,4153625-I-23-9573365,"5,783.71",AUGUSTE COMMUNITIES CARE HOME.
Adult and Health Services,Head of Adults,Third Party Payments,478151,Purchase of Care,05/07/2023,4153626-D720004662,"4,732.28",AUTISM CARE UK (4) LTD.
Adult and Health Services,Head of Adults,Third Party Payments,478151,Purchase of Care,05/07/2023,4153626-D720004663,"4,732.28",AUTISM CARE UK (4) LTD.
Adult and Health Services,Head of Adults,Third Party Payments,478151,Purchase of Care,05/07/2023,4153626-D720004709,"4,732.28",AUTISM CARE UK (4) LTD.
Adult and Health Services,Head of Adults,Third Party Payments,478151,Purchase of Care,05/07/2023,4153626-D720004710,"4,732.28",AUTISM CARE UK (4) LTD.
Adult and Health Services,Head of Adults,Third Party Payments,478151,Purchase of Care,05/07/2023,4153626-D720004746,"5,185.28",AUTISM CARE UK (4) LTD.
Adult and Health Services,Head of Adults,Third Party Payments,478151,Purchase of Care,05/07/2023,4153626-D720004747,"5,185.28",AUTISM CARE UK (4) LTD.
Adult and Health Services,Head of Adults,Third Party Payments,478151,Purchase of Care,05/07/2023,4153626-D720004781,"1,183.07",AUTISM CARE UK (4) LTD.
Adult and Health Services,Head of Adults,Third Party Payments,478151,Purchase of Care,05/07/2023,4153626-D720004782,"4,732.28",AUTISM CARE UK (4) LTD.
Adult and Health Services,Head of Adults,Third Party Payments,478151,Purchase of Care,05/07/2023,4153626-D720004783,"4,732.28",AUTISM CARE UK (4) LTD.
Adult and Health Services,Head of Adults,Third Party Payments,478151,Purchase of Care,05/07/2023,4153626-D720004784,"4,732.28",AUTISM CARE UK (4) LTD.
Adult and Health Services,Head of Adults,Third Party Payments,478151,Purchase of Care,05/07/2023,4153626-D720004785,"4,732.28",AUTISM CARE UK (4) LTD.
Adult and Health Services,Head of Adults,Third Party Payments,478151,Purchase of Care,05/07/2023,4153626-D720004786,"5,072.03",AUTISM CARE UK (4) LTD.
Adult and Health Services,Head of Adults,Third Party Payments,478151,Purchase of Care,05/07/2023,4153626-D720004787,"5,185.28",AUTISM CARE UK (4) LTD.
Adult and Health Services,Head of Adults,Third Party Payments,478151,Purchase of Care,05/07/2023,4153626-D720004788,"5,185.28",AUTISM CARE UK (4) LTD.
Adult and Health Services,Head of Adults,Third Party Payments,478151,Purchase of Care,05/07/2023,4153626-D720004789,"5,185.28",AUTISM CARE UK (4) LTD.
Adult and Health Services,Head of Adults,Third Party Payments,478101,Purchase of Care,05/07/2023,4153626-I-23-9572888,"12,418.20",AUTISM CARE UK (4) LTD.
Adult and Health Services,Head of Adults,Third Party Payments,478101,Purchase of Care,05/07/2023,4153626-I-23-9573067,"14,935.00",AUTISM CARE UK (4) LTD.
Adult and Health Services,Head of Adults,Third Party Payments,478101,Purchase of Care,05/07/2023,4153626-I-23-9573147,"15,146.40",AUTISM CARE UK (4) LTD.
Adult and Health Services,Head of Adults,Third Party Payments,478101,Purchase of Care,05/07/2023,4153626-I-23-9573153,"19,487.76",AUTISM CARE UK (4) LTD.
Adult and Health Services,Head of Adults,Third Party Payments,470101,Purchase of Care,05/07/2023,4153626-I-23-9573284,"20,155.36",AUTISM CARE UK (4) LTD.
Adult and Health Services,Head of Adults,Third Party Payments,470101,Purchase of Care,05/07/2023,4153629-I-23-9573337,"7,778.16",BARCHESTER HEALTHCARE HOMES LTD.
Adult and Health Services,Central/Other,Third Party Payments,474101,Purchase of Care,05/07/2023,4153630-I-23-9573380,"85,516.35",BARCHESTER HEALTHCARE HOMES LTD.
Adult and Health Services,Head of Adults,Third Party Payments,470101,Purchase of Care,05/07/2023,4153631-I-23-9573290,"15,420.00",BARCHESTER HEALTHCARE HOMES LTD.
Adult and Health Services,Head of Adults,Third Party Payments,470101,Purchase of Care,05/07/2023,4153632-I-23-9573324,"4,400.00",BARCHESTER HEALTHCARE HOMES LTD.
Adult and Health Services,Head of Adults,Third Party Payments,474101,Purchase of Care,05/07/2023,4153633-I-23-9573316,"33,346.08",BARCHESTER HEALTHCARE HOMES LTD.
Adult and Health Services,Head of Adults,Third Party Payments,470101,Purchase of Care,05/07/2023,4153634-I-23-9340442,"22,128.71",BARCHESTER HEALTHCARE HOMES LTD.
Adult and Health Services,Head of Adults,Third Party Payments,470101,Purchase of Care,05/07/2023,4153634-I-23-9573308,"21,068.00",BARCHESTER HEALTHCARE HOMES LTD.
Adult and Health Services,Head of Adults,Third Party Payments,474101,Purchase of Care,05/07/2023,4153635-I-23-9573335,"1,900.00",BARCHESTER HEALTHCARE HOMES LTD.
Adult and Health Services,Head of Adults,Third Party Payments,470101,Purchase of Care,05/07/2023,4153636-I-23-9573298,"4,741.44",BARCHESTER HEALTHCARE HOMES LTD.
Adult and Health Services,Head of Adults,Third Party Payments,470101,Purchase of Care,05/07/2023,4153642-I-23-9573262,"37,038.77",BEAMISH RESIDENTIAL CARE HOME LTD.
Adult and Health Services,Head of Adults,Third Party Payments,478101,Purchase of Care,05/07/2023,4153643-I-23-9572929,"25,850.36",BEECHFIELD CARE & SUPPORT LTD.
Adult and Health Services,Head of Adults,Third Party Payments,470101,Purchase of Care,05/07/2023,4153647-I-23-9573414,"20,979.92",BENTON CARE SERVICES LTD.
Adult and Health Services,Head of Adults,Third Party Payments,472101,Purchase of Care,05/07/2023,4153655-I-23-9572910,"22,162.08",BLOSSOM HOME CARE.
Adult and Health Services,Head of Adults,Third Party Payments,470101,Purchase of Care,05/07/2023,4153657-I-23-9573167,"9,290.40",BONDCARE WILLINGTON LTD.
Adult and Health Services,Head of Adults,Third Party Payments,474101,Purchase of Care,05/07/2023,4153657-I-23-9573457,"161,314.31",BONDCARE WILLINGTON LTD.
Adult and Health Services,Head of Adults,Third Party Payments,470101,Purchase of Care,05/07/2023,4153658-I-23-9573046,"2,029.20",BONDCARE WILLINGTON LTD.
Adult and Health Services,Head of Adults,Third Party Payments,474101,Purchase of Care,05/07/2023,4153658-I-23-9573341,"124,480.75",BONDCARE WILLINGTON LTD.
Adult and Health Services,Head of Adults,Third Party Payments,478101,Purchase of Care,05/07/2023,4153659-I-23-9572999,"34,990.64",BONDCARE WILLINGTON LTD.
Adult and Health Services,Head of Adults,Third Party Payments,478101,Purchase of Care,05/07/2023,4153659-I-23-9573148,"80,306.13",BONDCARE WILLINGTON LTD.
Adult and Health Services,Head of Adults,Third Party Payments,470101,Purchase of Care,05/07/2023,4153660-I-23-9572963,"2,784.18",BONDCARE WILLINGTON LTD.
Adult and Health Services,Head of Adults,Third Party Payments,470101,Purchase of Care,05/07/2023,4153660-I-23-9573294,"59,125.26",BONDCARE WILLINGTON LTD.
Adult and Health Services,Head of Adults,Third Party Payments,470101,Purchase of Care,05/07/2023,4153661-I-23-9573249,"3,198.60",BONDCARE WILLINGTON LTD.
Adult and Health Services,Head of Adults,Third Party Payments,470101,Purchase of Care,05/07/2023,4153662-I-23-9573214,"4,597.32",BOWDEN DERRA PARK LTD.
Adult and Health Services,Head of Adults,Third Party Payments,470101,Purchase of Care,05/07/2023,4153668-I-23-9573477,"56,654.67",BROOMHOUSE CARE LTD.
Adult and Health Services,Head of Adults,Third Party Payments,473101,Purchase of Care,05/07/2023,4153669-I-23-9573088,"2,057.51",BULLION COMMUNITY RESOURCE CENTRE.
Adult and Health Services,Head of Adults,Third Party Payments,478101,Purchase of Care,05/07/2023,4153672-I-23-9572872,"77,688.00",BYKARE SOLUTIONS LTD.
Adult and Health Services,Head of Adults,Third Party Payments,470101,Purchase of Care,05/07/2023,4153681-I-23-9573345,"2,966.92",CARE UK COMMUNITY PARTNERSHIPS LTD.
Adult and Health Services,Head of Adults,Third Party Payments,470101,Purchase of Care,05/07/2023,4153682-I-23-9573311,"3,692.57",CARE UK COMMUNITY PARTNERSHIPS LTD.
Adult and Health Services,Head of Adults,Third Party Payments,470101,Purchase of Care,05/07/2023,4153683-I-23-9573309,"157,562.53",CARE UK COMMUNITY PARTNERSHIPS LTD.
Adult and Health Services,Head of Adults,Third Party Payments,470101,Purchase of Care,05/07/2023,4153684-I-23-9573465,"5,792.64",CARE UK COMMUNITY PARTNERSHIPS LTD.
Adult and Health Services,Head of Adults,Third Party Payments,470101,Purchase of Care,05/07/2023,4153685-I-23-9573377,"64,686.24",CARE UK COMMUNITY PARTNERSHIPS LTD.
Adult and Health Services,Head of Adults,Third Party Payments,472101,Purchase of Care,05/07/2023,4153686-I-23-9573006,"34,340.11",CARE VANTAGE LTD.
Adult and Health Services,Head of Adults,Third Party Payments,470101,Purchase of Care,05/07/2023,4153687-I-23-9573289,"3,860.84",CARELINE LIFESTYLES (UK) LTD.
Adult and Health Services,Head of Adults,Third Party Payments,474101,Purchase of Care,05/07/2023,4153688-I-23-9573270,"10,923.06",CARELINE LIFESTYLES (UK) LTD.
Adult and Health Services,Head of Adults,Third Party Payments,474101,Purchase of Care,05/07/2023,4153689-I-23-9573237,"15,713.72",CARELINE LIFESTYLES (UK) LTD.
Adult and Health Services,Head of Adults,Third Party Payments,470101,Purchase of Care,05/07/2023,4153690-I-23-9573399,"11,367.79",CARELINE LIFESTYLES (UK) LTD.
Adult and Health Services,Head of Adults,Third Party Payments,474101,Purchase of Care,05/07/2023,4153691-I-23-9573303,"7,917.44",CARELINE LIFESTYLES.
Adult and Health Services,Head of Adults,Third Party Payments,474101,Purchase of Care,05/07/2023,4153692-I-23-9573459,"48,947.06",CAREWELL (HEALTH CARE) LTD.
Adult and Health Services,Head of Adults,Third Party Payments,470101,Purchase of Care,05/07/2023,4153699-I-23-9340362,"37,716.57",CASTLE BANK CARE HOME LTD.
Adult and Health Services,Head of Adults,Third Party Payments,470101,Purchase of Care,05/07/2023,4153699-I-23-9573226,"29,233.02",CASTLE BANK CARE HOME LTD.
Adult and Health Services,Head of Adults,Third Party Payments,472101,Purchase of Care,05/07/2023,4153700-I-23-9572917,"30,274.11",CASTLE CARE TEESDALE LTD.
Adult and Health Services,Head of Adults,Third Party Payments,473101,Purchase of Care,05/07/2023,4153701-I-23-9572941,"3,164.52",CATCOTE FUTURES.
Adult and Health Services,Head of Adults,Third Party Payments,474101,Purchase of Care,05/07/2023,4153704-I-23-9573431,"3,841.00",CEDAR CARE HOMES LTD.
Adult and Health Services,Head of Adults,Third Party Payments,470101,Purchase of Care,05/07/2023,4153705-I-23-9573405,"3,882.61",CEDAR HOUSE SUNDERLAND LTD.
Adult and Health Services,Head of Adults,Third Party Payments,472101,Purchase of Care,05/07/2023,4153706-I-23-9572858,"2,138.00",CEL HOMECARE LTD.
Adult and Health Services,Head of Adults,Third Party Payments,473101,Purchase of Care,05/07/2023,4153709-I-23-9572882,"3,351.74",CHARITY REGISTERED AS ONE TO ONE.
Adult and Health Services,Head of Adults,Third Party Payments,470101,Purchase of Care,05/07/2023,4153726-I-23-9573329,"2,099.28",CHURCHLAKE CARE T/A EASTBOURNE CARE HOME.
Adult and Health Services,Head of Adults,Third Party Payments,472101,Purchase of Care,05/07/2023,4153737-I-23-9572946,"55,920.00",CLASSIC RESOURCES UK LTD T/A CLASSIC RESOURCES HOMECARE.
Adult and Health Services,Head of Adults,Third Party Payments,470101,Purchase of Care,05/07/2023,4153740-I-23-9573227,"9,428.64",COLEG ELIDYR CAMPHILL COMMUNITIES.
Adult and Health Services,Head of Adults,Third Party Payments,472101,Purchase of Care,05/07/2023,4153744-I-23-8095598-4/7/23,"27,967.36",COMFORT CALL LTD.
Adult and Health Services,Head of Adults,Third Party Payments,472101,Purchase of Care,05/07/2023,4153744-I-23-9573045,"95,354.37",COMFORT CALL LTD.
Adult and Health Services,Head of Adults,Third Party Payments,478101,Purchase of Care,05/07/2023,4153745-I-23-9572976,"31,789.04",COMMUNITY INTEGRATED CARE LTD.
Adult and Health Services,Head of Adults,Third Party Payments,478101,Purchase of Care,05/07/2023,4153745-I-23-9572977,"23,329.60",COMMUNITY INTEGRATED CARE LTD.
Adult and Health Services,Head of Adults,Third Party Payments,478101,Purchase of Care,05/07/2023,4153745-I-23-9573063,"36,096.81",COMMUNITY INTEGRATED CARE LTD.
Adult and Health Services,Head of Adults,Third Party Payments,478101,Purchase of Care,05/07/2023,4153745-I-23-9573074,"23,108.96",COMMUNITY INTEGRATED CARE LTD.
Adult and Health Services,Head of Adults,Third Party Payments,478101,Purchase of Care,05/07/2023,4153745-I-23-9573075,"19,466.10",COMMUNITY INTEGRATED CARE LTD.
Adult and Health Services,Head of Adults,Third Party Payments,478101,Purchase of Care,05/07/2023,4153745-I-23-9573076,"27,199.48",COMMUNITY INTEGRATED CARE LTD.
Adult and Health Services,Head of Adults,Third Party Payments,478101,Purchase of Care,05/07/2023,4153745-I-23-9573142,"28,788.48",COMMUNITY INTEGRATED CARE LTD.
Adult and Health Services,Head of Adults,Third Party Payments,478101,Purchase of Care,05/07/2023,4153747-I-23-9573015,"21,272.36",COMPASSIONATE CARE & SUPPORT LTD.
Adult and Health Services,Head of Adults,Third Party Payments,470101,Purchase of Care,05/07/2023,4153748-I-23-9573406,"2,747.16",CONAGS CARE LTD.
Adult and Health Services,Head of Adults,Third Party Payments,472101,Purchase of Care,05/07/2023,4153749-I-23-9572859,720.00,CONFIDENCE CARE & SUPPORT LTD.
Adult and Health Services,Head of Adults,Third Party Payments,470101,Purchase of Care,05/07/2023,4153751-I-23-9573470,"8,830.32",CONSENSUS SUPPORT SERVICES LTD.
Adult and Health Services,Head of Adults,Third Party Payments,470101,Purchase of Care,05/07/2023,4153752-I-23-9573385,"3,928.32",COUNTRYWIDE CARE HOMES (2) LTD.
Adult and Health Services,Head of Adults,Third Party Payments,470101,Purchase of Care,05/07/2023,4153753-I-23-9573243,"112,092.33",COUNTRYWIDE CARE HOMES (2) LTD.
Adult and Health Services,Head of Adults,Third Party Payments,474101,Purchase of Care,05/07/2023,4153754-I-23-9573456,"64,953.69",COUNTRYWIDE CARE HOMES (2) LTD.
Adult and Health Services,Head of Adults,Third Party Payments,470101,Purchase of Care,05/07/2023,4153755-I-23-9573390,"87,449.62",COUNTRYWIDE CARE HOMES (2) LTD.
Adult and Health Services,Head of Adults,Third Party Payments,474101,Purchase of Care,05/07/2023,4153756-I-23-9573261,"8,962.92",COUNTRYWIDE CARE HOMES (2) LTD.
Adult and Health Services,Head of Adults,Third Party Payments,470101,Purchase of Care,05/07/2023,4153760-I-23-9573205,"2,789.00",CRAMLINGTON HOUSE LTD.
Adult and Health Services,Head of Adults,Third Party Payments,472101,Purchase of Care,05/07/2023,4153761-I-23-9572982,"1,058.40",CREATIVE SUPPORT LTD.
Adult and Health Services,Head of Adults,Third Party Payments,478101,Purchase of Care,05/07/2023,4153761-I-23-9573072,"11,550.68",CREATIVE SUPPORT LTD.
Adult and Health Services,Head of Adults,Third Party Payments,478101,Purchase of Care,05/07/2023,4153761-I-23-9573150,"35,160.04",CREATIVE SUPPORT LTD.
Adult and Health Services,Head of Adults,Third Party Payments,478101,Purchase of Care,05/07/2023,4153761-I-23-9573156,"18,633.00",CREATIVE SUPPORT LTD.
Adult and Health Services,Head of Adults,Third Party Payments,472101,Purchase of Care,05/07/2023,4153762-I-23-9573049,"83,578.37",CRESCENT HOMECARE LTD.
Adult and Health Services,Head of Adults,Third Party Payments,470101,Purchase of Care,05/07/2023,4153763-I-23-9573232,"79,544.31",CROFT HOUSE (CARE) LTD.
Adult and Health Services,Head of Adults,Third Party Payments,474101,Purchase of Care,05/07/2023,4153764-I-23-8095742,"10,395.38",CROWN CARE IV LTD T/A BALMORAL COURT.
Adult and Health Services,Head of Adults,Third Party Payments,474101,Purchase of Care,05/07/2023,4153764-I-23-9573176,"8,127.04",CROWN CARE IV LTD T/A BALMORAL COURT.
Adult and Health Services,Head of Adults,Third Party Payments,474101,Purchase of Care,05/07/2023,4153765-I-23-9094839,"4,048.84",CROWN CARE IV LTD.
Adult and Health Services,Head of Adults,Third Party Payments,474101,Purchase of Care,05/07/2023,4153765-I-23-9573410,"3,207.65",CROWN CARE IV LTD.
Adult and Health Services,Head of Adults,Third Party Payments,470101,Purchase of Care,05/07/2023,4153766-I-23-9573273,"223,086.19",CROWN CARE VI LTD.
Adult and Health Services,Head of Adults,Third Party Payments,470101,Purchase of Care,05/07/2023,4153767-I-23-9094788,"27,728.91",CYGNET OE LTD.
Adult and Health Services,Head of Adults,Third Party Payments,470101,Purchase of Care,05/07/2023,4153767-I-23-9340490,"31,185.31",CYGNET OE LTD.
Adult and Health Services,Head of Adults,Third Party Payments,470101,Purchase of Care,05/07/2023,4153768-I-23-9573312,"101,678.03",CYGNET OE LTD.
Adult and Health Services,Head of Adults,Third Party Payments,470101,Purchase of Care,05/07/2023,4153770-I-23-9573219,"22,706.04",D3 CARE LTD.
Adult and Health Services,Head of Adults,Third Party Payments,472101,Purchase of Care,05/07/2023,4153772-I-23-9573009,"460,179.91",DALE CARE LTD.
Adult and Health Services,Head of Adults,Third Party Payments,478101,Purchase of Care,05/07/2023,4153805-I-23-9572865,"7,109.16",DEACONSTAR LTD.
Adult and Health Services,Head of Adults,Third Party Payments,478101,Purchase of Care,05/07/2023,4153805-I-23-9573007,"11,483.64",DEACONSTAR LTD.
Adult and Health Services,Head of Adults,Third Party Payments,478101,Purchase of Care,05/07/2023,4153805-I-23-9573059,"19,069.20",DEACONSTAR LTD.
Adult and Health Services,Head of Adults,Third Party Payments,473101,Purchase of Care,05/07/2023,4153805-I-23-9573104,"18,605.02",DEACONSTAR LTD.
Adult and Health Services,Head of Adults,Third Party Payments,478101,Purchase of Care,05/07/2023,4153805-I-23-9573166,"12,400.90",DEACONSTAR LTD.
Adult and Health Services,Head of Adults,Third Party Payments,470101,Purchase of Care,05/07/2023,4153810-I-23-9573277,"42,710.68",DEVONSHIRE HOUSE CARE LTD.
Adult and Health Services,Head of Adults,Third Party Payments,470101,Purchase of Care,05/07/2023,4153811-I-23-9573344,"132,701.36",DIPTON CARE HOME LTD.
Adult and Health Services,Head of Adults,Third Party Payments,473101,Purchase of Care,05/07/2023,4153812-I-23-9572952,"10,734.80",DIRECT STEPS.
Adult and Health Services,Head of Adults,Third Party Payments,473101,Purchase of Care,05/07/2023,4153819-I-23-9573106,"3,333.15",DURHAM ALLIANCE FOR COMMUNITY CARE.
Adult and Health Services,Head of Adults,Third Party Payments,473101,Purchase of Care,05/07/2023,4153819-I-23-9573107,"3,225.54",DURHAM ALLIANCE FOR COMMUNITY CARE.
Adult and Health Services,Head of Adults,Third Party Payments,473101,Purchase of Care,05/07/2023,4153819-I-23-9573108,"2,303.73",DURHAM ALLIANCE FOR COMMUNITY CARE.
Adult and Health Services,Head of Adults,Third Party Payments,473101,Purchase of Care,05/07/2023,4153819-I-23-9573161,"1,212.96",DURHAM ALLIANCE FOR COMMUNITY CARE.
Adult and Health Services,Head of Adults,Third Party Payments,470101,Purchase of Care,05/07/2023,4153820-I-23-9573299,"48,067.16",DURHAM CARELINE LTD.
Adult and Health Services,Head of Adults,Third Party Payments,470101,Purchase of Care,05/07/2023,4153821-I-23-9573463,"106,890.62",DURHAM CARELINE LTD.
Adult and Health Services,Head of Adults,Third Party Payments,474101,Purchase of Care,05/07/2023,4153822-I-23-9573386,"104,509.64",DURHAM CARELINE LTD.
Adult and Health Services,Head of Adults,Third Party Payments,474101,Purchase of Care,05/07/2023,4153823-I-23-9573478,"2,772.00",DURHAM TEES CARE LTD.
Adult and Health Services,Head of Adults,Third Party Payments,474101,Purchase of Care,05/07/2023,4153826-I-23-9573376,"2,625.48",EAST CHESHIRE HOUSING CONSORTIUM LTD.
Adult and Health Services,Head of Adults,Third Party Payments,474101,Purchase of Care,05/07/2023,4153827-I-23-9573263,"4,249.28",EAST CLEVELAND M S HOME.
Adult and Health Services,Head of Adults,Third Party Payments,473101,Purchase of Care,05/07/2023,4153828-I-23-9572913,"1,778.28",EAST DURHAM COLLEGE.
Adult and Health Services,Head of Adults,Third Party Payments,473101,Purchase of Care,05/07/2023,4153830-I-23-8091018-4/7/23,"2,298.45",EBONEY HOME CARE LTD.
Adult and Health Services,Head of Adults,Third Party Payments,473101,Purchase of Care,05/07/2023,4153830-I-23-9572836,"25,544.28",EBONEY HOME CARE LTD.
Adult and Health Services,Head of Adults,Third Party Payments,472101,Purchase of Care,05/07/2023,4153830-I-23-9573047,"17,466.64",EBONEY HOME CARE LTD.
Adult and Health Services,Head of Adults,Third Party Payments,470101,Purchase of Care,05/07/2023,4153832-I-23-9573421,"12,928.38",EDUCATION & SERVICES FOR PEOPLE WITH AUTISM LTD (ESPA).
Adult and Health Services,Head of Adults,Third Party Payments,470101,Purchase of Care,05/07/2023,4153833-I-23-9573368,"10,200.24",EDUCATION & SERVICES FOR PEOPLE WITH AUTISM LTD (ESPA).
Adult and Health Services,Head of Adults,Third Party Payments,470101,Purchase of Care,05/07/2023,4153834-I-23-9573230,"10,014.24",EDUCATION & SERVICES FOR PEOPLE WITH AUTISM LTD (ESPA).
Adult and Health Services,Head of Adults,Third Party Payments,470101,Purchase of Care,05/07/2023,4153835-I-23-9573264,"6,489.84",EDUCATION & SERVICES FOR PEOPLE WITH AUTISM LTD (ESPA).
Adult and Health Services,Head of Adults,Third Party Payments,470101,Purchase of Care,05/07/2023,4153835-I-23-9573343,"5,374.92",EDUCATION & SERVICES FOR PEOPLE WITH AUTISM LTD (ESPA).
Adult and Health Services,Head of Adults,Third Party Payments,478101,Purchase of Care,05/07/2023,4153839-I-23-9573003,"24,567.84",ELAN CARE WHITETHORN LTD.
Adult and Health Services,Head of Adults,Third Party Payments,470101,Purchase of Care,05/07/2023,4153840-I-23-9573304,"72,748.43",ELBA CARE LTD.
Adult and Health Services,Head of Adults,Third Party Payments,472101,Purchase of Care,05/07/2023,4153843-I-23-9573170,"21,401.68",ELITE HOMECARE SERVICE LTD.
Adult and Health Services,Head of Adults,Third Party Payments,470101,Purchase of Care,05/07/2023,4153849-I-23-9573454,"6,613.72",ELLERSHAW HOUSE LTD.
Adult and Health Services,Head of Adults,Third Party Payments,470101,Purchase of Care,05/07/2023,4153850-I-23-9573239,"3,594.40",ELPHA LODGE RESIDENTIAL CARE HOME  LTD.
Adult and Health Services,Head of Adults,Third Party Payments,472101,Purchase of Care,05/07/2023,4153852-I-23-8095563-4/7/23,"27,475.20",EMBRACING CARE.
Adult and Health Services,Head of Adults,Third Party Payments,472101,Purchase of Care,05/07/2023,4153852-I-23-9573010,"312,430.19",EMBRACING CARE.
Adult and Health Services,Head of Adults,Third Party Payments,478101,Purchase of Care,05/07/2023,4153852-I-23-9573052,"7,459.96",EMBRACING CARE.
Adult and Health Services,Head of Adults,Third Party Payments,478101,Purchase of Care,05/07/2023,4153852-I-23-9573102,"20,767.92",EMBRACING CARE.
Adult and Health Services,Head of Adults,Third Party Payments,478101,Purchase of Care,05/07/2023,4153853-I-23-9572843,"55,477.28",EMBRACING CARE.
Adult and Health Services,Head of Adults,Third Party Payments,470101,Purchase of Care,05/07/2023,4153858-I-23-9573240,"9,274.84",ENCOMPASS CARE ORGANISATION UK.
Adult and Health Services,Head of Adults,Third Party Payments,473101,Purchase of Care,05/07/2023,4153859-I-23-9572829,"6,774.40",ENDEAVOUR WOODCRAFTS CIC.
Adult and Health Services,Head of Adults,Third Party Payments,470101,Purchase of Care,05/07/2023,4153861-I-23-9573235,"3,455.31",EOTHEN HOMES LTD.
Adult and Health Services,Head of Adults,Third Party Payments,470101,Purchase of Care,05/07/2023,4153862-I-23-9573364,"1,304.69",EOTHEN HOMES LTD.
Adult and Health Services,Head of Adults,Third Party Payments,470101,Purchase of Care,05/07/2023,4153867-I-23-9573415,"88,902.67",ESSENTIAL CARE & SUPPORT LTD.
Adult and Health Services,Head of Adults,Third Party Payments,478101,Purchase of Care,05/07/2023,4153868-I-23-9572862,"14,537.88",ESSENTIAL CARE & SUPPORT LTD.
Adult and Health Services,Head of Adults,Third Party Payments,478101,Purchase of Care,05/07/2023,4153868-I-23-9572887,"30,787.16",ESSENTIAL CARE & SUPPORT LTD.
Adult and Health Services,Head of Adults,Third Party Payments,478101,Purchase of Care,05/07/2023,4153868-I-23-9572936,"18,448.52",ESSENTIAL CARE & SUPPORT LTD.
Adult and Health Services,Head of Adults,Third Party Payments,478101,Purchase of Care,05/07/2023,4153868-I-23-9572938,"20,473.64",ESSENTIAL CARE & SUPPORT LTD.
Adult and Health Services,Head of Adults,Third Party Payments,478101,Purchase of Care,05/07/2023,4153868-I-23-9572989,"32,908.48",ESSENTIAL CARE & SUPPORT LTD.
Adult and Health Services,Head of Adults,Third Party Payments,478101,Purchase of Care,05/07/2023,4153868-I-23-9573043,"31,324.86",ESSENTIAL CARE & SUPPORT LTD.
Adult and Health Services,Head of Adults,Third Party Payments,478101,Purchase of Care,05/07/2023,4153868-I-23-9573062,"10,256.26",ESSENTIAL CARE & SUPPORT LTD.
Adult and Health Services,Head of Adults,Third Party Payments,478101,Purchase of Care,05/07/2023,4153868-I-23-9573120,"51,700.72",ESSENTIAL CARE & SUPPORT LTD.
Adult and Health Services,Head of Adults,Third Party Payments,478101,Purchase of Care,05/07/2023,4153868-I-23-9573146,"22,700.30",ESSENTIAL CARE & SUPPORT LTD.
Adult and Health Services,Head of Adults,Third Party Payments,478101,Purchase of Care,05/07/2023,4153868-I-23-9573155,"19,859.68",ESSENTIAL CARE & SUPPORT LTD.
Adult and Health Services,Head of Adults,Third Party Payments,473101,Purchase of Care,05/07/2023,4153872-I-23-9572943,"27,963.16",ETHICARE (DURHAM) LTD.
Adult and Health Services,Head of Adults,Third Party Payments,472101,Purchase of Care,05/07/2023,4153872-I-23-9572992,"9,102.59",ETHICARE (DURHAM) LTD.
Adult and Health Services,Head of Adults,Third Party Payments,478101,Purchase of Care,05/07/2023,4153872-I-23-9573002,"7,085.60",ETHICARE (DURHAM) LTD.
Adult and Health Services,Head of Adults,Third Party Payments,478101,Purchase of Care,05/07/2023,4153872-I-23-9573031,"10,150.56",ETHICARE (DURHAM) LTD.
Adult and Health Services,Head of Adults,Third Party Payments,474101,Purchase of Care,05/07/2023,4153875-I-23-9573314,"31,833.56",EXEMPLAR LTD T/A WYKEWOOD CARE HOME.
Adult and Health Services,Head of Adults,Third Party Payments,473101,Purchase of Care,05/07/2023,4153882-I-23-9573132,"6,806.65",FIVE ACRES COMMUNITY GARDEN LTD.
Adult and Health Services,Head of Adults,Third Party Payments,478101,Purchase of Care,05/07/2023,4153884-I-23-9094407,"22,356.19",FLEXIBLE SUPPORT OPTIONS LTD.
Adult and Health Services,Head of Adults,Third Party Payments,478101,Purchase of Care,05/07/2023,4153884-I-23-9340106,"22,831.20",FLEXIBLE SUPPORT OPTIONS LTD.
Adult and Health Services,Head of Adults,Third Party Payments,478101,Purchase of Care,05/07/2023,4153884-I-23-9572973,"22,831.20",FLEXIBLE SUPPORT OPTIONS LTD.
Adult and Health Services,Head of Adults,Third Party Payments,470101,Purchase of Care,05/07/2023,4153894-I-23-9573389,"55,688.08",FOUR SEASONS (NO 9) LTD.
Adult and Health Services,Head of Adults,Third Party Payments,470101,Purchase of Care,05/07/2023,4153895-I-23-9573193,"98,354.67",FOUR SEASONS HOMES NO 1 LTD.
Adult and Health Services,Head of Adults,Third Party Payments,470101,Purchase of Care,05/07/2023,4153904-I-23-9573201,"2,132.89",GAINFORD CARE HOMES LTD.
Adult and Health Services,Head of Adults,Third Party Payments,470101,Purchase of Care,05/07/2023,4153904-I-23-9573460,"132,364.18",GAINFORD CARE HOMES LTD.
Adult and Health Services,Head of Adults,Third Party Payments,470101,Purchase of Care,05/07/2023,4153905-I-23-9573306,"163,701.80",GAINFORD CARE HOMES LTD.
Adult and Health Services,Head of Adults,Third Party Payments,474101,Purchase of Care,05/07/2023,4153906-I-23-9573359,"89,127.83",GAINFORD CARE HOMES LTD.
Adult and Health Services,Head of Adults,Third Party Payments,474101,Purchase of Care,05/07/2023,4153907-I-23-9573346,"94,744.87",GAINFORD CARE HOMES LTD.
Adult and Health Services,Head of Adults,Third Party Payments,474101,Purchase of Care,05/07/2023,4153908-I-23-9573268,"18,777.79",GAINFORD CARE HOMES LTD.
Adult and Health Services,Head of Adults,Third Party Payments,470101,Purchase of Care,05/07/2023,4153909-I-23-9573272,"107,862.09",GAINFORD CARE HOMES LTD.
Adult and Health Services,Head of Adults,Third Party Payments,470101,Purchase of Care,05/07/2023,4153910-I-23-9573438,"3,000.00",GALANOS HOUSE CARE HOME.
Adult and Health Services,Head of Adults,Third Party Payments,473101,Purchase of Care,05/07/2023,4153911-I-23-9573018,"52,363.88",GAPPS DAY SERVICES LTD.
Adult and Health Services,Head of Adults,Third Party Payments,473101,Purchase of Care,05/07/2023,4153917-I-23-9572911,751.41,GATESHEAD COUNCIL.
Adult and Health Services,Head of Adults,Third Party Payments,470101,Purchase of Care,05/07/2023,4153931-I-23-9573207,"2,952.00",GREATHAM HOSPITAL BROTHER HOUSE.
Adult and Health Services,Head of Adults,Third Party Payments,470101,Purchase of Care,05/07/2023,4153932-I-23-9573446,"2,490.88",GREEN CARE HOMES LTD.
Adult and Health Services,Head of Adults,Third Party Payments,473101,Purchase of Care,05/07/2023,4153935-I-23-9572849,"9,957.63",GROWING TOGETHER DURHAM LTD.
Adult and Health Services,Head of Adults,Third Party Payments,470101,Purchase of Care,05/07/2023,4153936-I-23-9573371,"13,435.28",HADRIAN HEALTHCARE (WHICKHAM) LTD.
Adult and Health Services,Head of Adults,Third Party Payments,473101,Purchase of Care,05/07/2023,4153946-I-23-9572835,"12,956.04",HASWELL & DISTRICT MENCAP SOCIETY.
Adult and Health Services,Head of Adults,Third Party Payments,470101,Purchase of Care,05/07/2023,4153948-I-23-9573186,"74,934.49",HC-ONE BEAMISH LTD.
Adult and Health Services,Head of Adults,Third Party Payments,470101,Purchase of Care,05/07/2023,4153949-I-23-9573279,"112,390.56",HC-ONE BEAMISH LTD.
Adult and Health Services,Head of Adults,Third Party Payments,470101,Purchase of Care,05/07/2023,4153950-I-23-9573183,"3,057.48",HC-ONE BEAMISH LTD.
Adult and Health Services,Head of Adults,Third Party Payments,470101,Purchase of Care,05/07/2023,4153951-I-23-9573202,"120,797.81",HC-ONE BEAMISH LTD.
Adult and Health Services,Head of Adults,Third Party Payments,470101,Purchase of Care,05/07/2023,4153952-I-23-9573213,"6,315.73",HC-ONE BEAMISH LTD.
Adult and Health Services,Head of Adults,Third Party Payments,470101,Purchase of Care,05/07/2023,4153953-I-23-9573420,"81,830.47",HC-ONE BEAMISH LTD.
Adult and Health Services,Head of Adults,Third Party Payments,470101,Purchase of Care,05/07/2023,4153954-I-23-9573444,"3,060.00",HC-ONE BEAMISH LTD.
Adult and Health Services,Head of Adults,Third Party Payments,474101,Purchase of Care,05/07/2023,4153955-I-23-9573354,"131,132.47",HC-ONE BEAMISH LTD.
Adult and Health Services,Head of Adults,Third Party Payments,470101,Purchase of Care,05/07/2023,4153956-I-23-9573175,"4,103.04",HC-ONE LTD T/A FALSTONE COURT CARE HOME.
Adult and Health Services,Head of Adults,Third Party Payments,470101,Purchase of Care,05/07/2023,4153957-I-23-9573287,"69,730.84",HC-ONE LTD.
Adult and Health Services,Head of Adults,Third Party Payments,474101,Purchase of Care,05/07/2023,4153958-I-23-9573340,"47,767.88",HC-ONE LTD.
Adult and Health Services,Head of Adults,Third Party Payments,470101,Purchase of Care,05/07/2023,4153959-I-23-9573348,"78,073.90",HC-ONE LTD.
Adult and Health Services,Head of Adults,Third Party Payments,470101,Purchase of Care,05/07/2023,4153960-I-23-9573351,"60,671.11",HC-ONE LTD.
Adult and Health Services,Head of Adults,Third Party Payments,470101,Purchase of Care,05/07/2023,4153961-I-23-9573332,"2,807.96",HC-ONE LTD.
Adult and Health Services,Head of Adults,Third Party Payments,474101,Purchase of Care,05/07/2023,4153962-I-23-9573310,"93,387.43",HC-ONE LTD.
Adult and Health Services,Head of Adults,Third Party Payments,470101,Purchase of Care,05/07/2023,4153963-I-23-9573372,"53,375.19",HC-ONE LTD.
Adult and Health Services,Head of Adults,Third Party Payments,470101,Purchase of Care,05/07/2023,4153965-I-23-9573435,"79,440.59",HC-ONE LTD.
Adult and Health Services,Head of Adults,Third Party Payments,474101,Purchase of Care,05/07/2023,4153966-I-23-9340447,"20,844.12",HC-ONE LTD..
Adult and Health Services,Head of Adults,Third Party Payments,474101,Purchase of Care,05/07/2023,4153966-I-23-9573313,"20,844.12",HC-ONE LTD..
Adult and Health Services,Head of Adults,Third Party Payments,470101,Purchase of Care,05/07/2023,4153967-I-23-9094757,"2,356.00",HC-ONE T/A PRIORY GARDENS.
Adult and Health Services,Head of Adults,Third Party Payments,474101,Purchase of Care,05/07/2023,4153968-I-23-9573209,"3,963.24",HEALTHCARE HOMES GROUP LTD T/A PARK HOUSE CARE HOME.
Adult and Health Services,Head of Adults,Third Party Payments,470101,Purchase of Care,05/07/2023,4153969-I-23-9573387,"9,004.00",HEALTHCARE IRELAND GROUP LTD T/A BOHILL BUNGALOWS.
Adult and Health Services,Head of Adults,Third Party Payments,474101,Purchase of Care,05/07/2023,4153972-I-23-9340434,"1,234.40",HENDON PIF LTD T/A ASHWOOD COURT CARE HOME.
Adult and Health Services,Head of Adults,Third Party Payments,470101,Purchase of Care,05/07/2023,4153976-I-23-9094872,"5,573.14",HIGHGATE CARE SERVICES LTD.
Adult and Health Services,Head of Adults,Third Party Payments,470101,Purchase of Care,05/07/2023,4153976-I-23-9573443,"5,520.00",HIGHGATE CARE SERVICES LTD.
Adult and Health Services,Head of Adults,Third Party Payments,478101,Purchase of Care,05/07/2023,4153977-I-23-9572832,"13,129.20",HIGHLEA CARE LTD.
Adult and Health Services,Head of Adults,Third Party Payments,472101,Purchase of Care,05/07/2023,4153978-I-23-9572837,"1,857.12",HIGHLEA CARE LTD.
Adult and Health Services,Head of Adults,Third Party Payments,478101,Purchase of Care,05/07/2023,4153978-I-23-9572838,"1,256.20",HIGHLEA CARE LTD.
Adult and Health Services,Head of Adults,Third Party Payments,478101,Purchase of Care,05/07/2023,4153978-I-23-9572840,"8,769.28",HIGHLEA CARE LTD.
Adult and Health Services,Head of Adults,Third Party Payments,478101,Purchase of Care,05/07/2023,4153978-I-23-9572846,"6,350.40",HIGHLEA CARE LTD.
Adult and Health Services,Head of Adults,Third Party Payments,478101,Purchase of Care,05/07/2023,4153978-I-23-9572889,"9,483.28",HIGHLEA CARE LTD.
Adult and Health Services,Head of Adults,Third Party Payments,478101,Purchase of Care,05/07/2023,4153978-I-23-9572890,"23,831.78",HIGHLEA CARE LTD.
Adult and Health Services,Head of Adults,Third Party Payments,478101,Purchase of Care,05/07/2023,4153978-I-23-9572944,"15,000.84",HIGHLEA CARE LTD.
Adult and Health Services,Head of Adults,Third Party Payments,478101,Purchase of Care,05/07/2023,4153978-I-23-9573021,"73,158.18",HIGHLEA CARE LTD.
Adult and Health Services,Head of Adults,Third Party Payments,478101,Purchase of Care,05/07/2023,4153978-I-23-9573040,"8,678.88",HIGHLEA CARE LTD.
Adult and Health Services,Head of Adults,Third Party Payments,478101,Purchase of Care,05/07/2023,4153978-I-23-9573068,"16,163.36",HIGHLEA CARE LTD.
Adult and Health Services,Head of Adults,Third Party Payments,478101,Purchase of Care,05/07/2023,4153978-I-23-9573069,"23,323.68",HIGHLEA CARE LTD.
Adult and Health Services,Head of Adults,Third Party Payments,478101,Purchase of Care,05/07/2023,4153978-I-23-9573127,"1,411.20",HIGHLEA CARE LTD.
Adult and Health Services,Head of Adults,Third Party Payments,478101,Purchase of Care,05/07/2023,4153978-I-23-9573149,"17,543.64",HIGHLEA CARE LTD.
Adult and Health Services,Head of Adults,Third Party Payments,478101,Purchase of Care,05/07/2023,4153978-I-23-9665536,"3,704.40",HIGHLEA CARE LTD.
Adult and Health Services,Head of Adults,Third Party Payments,478101,Purchase of Care,05/07/2023,4153978-I-23-9666703,"99,583.83",HIGHLEA CARE LTD.
Adult and Health Services,Head of Adults,Third Party Payments,478151,Purchase of Care,05/07/2023,4153979-HLC930,"2,191.39",HIGHLEA CARE LTD.
Adult and Health Services,Head of Adults,Third Party Payments,473101,Purchase of Care,05/07/2023,4153980-I-23-9573012,511.44,HILL CARE 3 LTD.
Adult and Health Services,Head of Adults,Third Party Payments,470101,Purchase of Care,05/07/2023,4153980-I-23-9573319,"91,210.03",HILL CARE 3 LTD.
Adult and Health Services,Head of Adults,Third Party Payments,470101,Purchase of Care,05/07/2023,4153982-I-23-9573475,"4,014.89",HOLLY HOUSE LTD.
Adult and Health Services,Head of Adults,Third Party Payments,473101,Purchase of Care,05/07/2023,4153985-I-23-9340257,"2,222.04",HOME GROUP LTD.
Adult and Health Services,Head of Adults,Third Party Payments,478101,Purchase of Care,05/07/2023,4153985-I-23-9573124,"4,021.12",HOME GROUP LTD.
Adult and Health Services,Head of Adults,Third Party Payments,473101,Purchase of Care,05/07/2023,4153987-I-23-9573028,"2,080.00",HOME ON THE RANGE LTD.
Adult and Health Services,Head of Adults,Third Party Payments,470101,Purchase of Care,05/07/2023,4153988-I-23-9573224,"7,654.44",HOMES TOGETHER LTD.
Adult and Health Services,Head of Adults,Third Party Payments,472101,Purchase of Care,05/07/2023,4153989-I-23-9572965,"36,402.53",HOUSING 21.
Adult and Health Services,Head of Adults,Third Party Payments,470101,Purchase of Care,05/07/2023,4153997-I-23-9573476,"35,532.81",IDEAL CARE (NORTH) LTD.
Adult and Health Services,Head of Adults,Third Party Payments,473101,Purchase of Care,05/07/2023,4153999-I-23-9573000,"2,613.76",INCLUDE `IN` AUTISM.
Adult and Health Services,Head of Adults,Third Party Payments,474101,Purchase of Care,05/07/2023,4154000-I-23-9573177,"9,533.64",INDIGO CARE SERVICES LTD.
Adult and Health Services,Head of Adults,Third Party Payments,472101,Purchase of Care,05/07/2023,4154001-I-23-9573094,"4,533.27",INFINITE HOMECARE LTD.
Adult and Health Services,Head of Adults,Third Party Payments,470101,Purchase of Care,05/07/2023,4154004-I-23-9573208,"10,400.00",INTERACT CARE LTD.
Adult and Health Services,Head of Adults,Third Party Payments,470101,Purchase of Care,05/07/2023,4154005-I-23-9573248,"35,467.60",INTERACT CARE LTD.
Adult and Health Services,Head of Adults,Third Party Payments,478101,Purchase of Care,05/07/2023,4154048-I-23-9572924,"5,000.00",JIGSAW RECOVERY PROJECT CIC.
Adult and Health Services,Head of Adults,Third Party Payments,473101,Purchase of Care,05/07/2023,4154075-I-23-9340012,"20,814.48",JOURNEY ENTERPRISES LTD.
Adult and Health Services,Head of Adults,Third Party Payments,470101,Purchase of Care,05/07/2023,4154094-I-23-9340454,"5,407.45",KEB HOUSE RESIDENTIAL HOME.
Adult and Health Services,Head of Adults,Third Party Payments,472101,Purchase of Care,05/07/2023,4154097-I-23-9573048,"249,890.90",KELLY PARK LTD..
Adult and Health Services,Head of Adults,Third Party Payments,474101,Purchase of Care,05/07/2023,4154104-I-23-9340402,"97,138.70",KINGSWAY CARE HOME LTD.
Adult and Health Services,Head of Adults,Third Party Payments,470101,Purchase of Care,05/07/2023,4154104-I-23-9573267,"96,269.84",KINGSWAY CARE HOME LTD.
Adult and Health Services,Head of Adults,Third Party Payments,470101,Purchase of Care,05/07/2023,4154109-I-23-9573269,"55,879.04",LAMBTON HOUSE LTD.
Adult and Health Services,Head of Adults,Third Party Payments,470101,Purchase of Care,05/07/2023,4154110-I-23-9573191,"61,150.84",LANGLEY HOUSE CARE HOME LTD.
Adult and Health Services,Head of Adults,Third Party Payments,474101,Purchase of Care,05/07/2023,4154118-I-23-9573383,"95,521.89",LEAZES HALL CARE HOME LTD.
Adult and Health Services,Head of Adults,Third Party Payments,470101,Purchase of Care,05/07/2023,4154121-I-23-9573178,"22,811.98",LENORE CARE LTD.
Adult and Health Services,Head of Adults,Third Party Payments,470101,Purchase of Care,05/07/2023,4154122-I-23-9573375,"70,854.08",LEONARD CHESHIRE DISABILITY.
Adult and Health Services,Head of Adults,Third Party Payments,474101,Purchase of Care,05/07/2023,4154127-I-23-9573466,"19,168.64",LIFESTYLE (ABBEY CARE) LTD.
Adult and Health Services,Head of Adults,Third Party Payments,473101,Purchase of Care,05/07/2023,4154130-I-23-9573004,"9,724.46",LION MOUTH COMMUNITY INTEREST COMPANY.
Adult and Health Services,Head of Adults,Third Party Payments,470101,Purchase of Care,05/07/2023,4154135-I-23-9573258,"20,828.80",LITTLEDALE HALL THERAPEUTIC COMMUNITY LTD.
Adult and Health Services,Head of Adults,Third Party Payments,470101,Purchase of Care,05/07/2023,4154136-I-23-9573413,"4,010.52",LIVING AMBITIONS T/A WHITWOOD GRANGE.
Adult and Health Services,Head of Adults,Third Party Payments,470101,Purchase of Care,05/07/2023,4154137-I-23-9573281,"2,480.00",LONGWOOD LODGE CARE LTD.
Adult and Health Services,Head of Adults,Third Party Payments,478101,Purchase of Care,05/07/2023,4154150-I-23-9572870,"1,300.00",MAISON MOTI LTD.
Adult and Health Services,Head of Adults,Third Party Payments,470101,Purchase of Care,05/07/2023,4154151-I-23-9573223,"17,582.36",MALHOTRA CARE HOMES LTD.
Adult and Health Services,Head of Adults,Third Party Payments,474101,Purchase of Care,05/07/2023,4154152-I-23-9573231,"90,994.94",MALHOTRA CARE HOMES LTD.
Adult and Health Services,Head of Adults,Third Party Payments,470101,Purchase of Care,05/07/2023,4154159-I-23-9573187,"85,460.65",MARIA MALLABAND CARE GROUP LTD.
Adult and Health Services,Head of Adults,Third Party Payments,470101,Purchase of Care,05/07/2023,4154165-I-23-9573352,"75,247.66",MARIPOSA CARE GROUP LTD.
Adult and Health Services,Head of Adults,Third Party Payments,470101,Purchase of Care,05/07/2023,4154166-I-23-9573288,"5,356.56",MARIPOSA CARE GROUP LTD.
Adult and Health Services,Head of Adults,Third Party Payments,470101,Purchase of Care,05/07/2023,4154167-I-23-9573458,"106,596.09",MARIPOSA CARE LTD.
Adult and Health Services,Head of Adults,Third Party Payments,474101,Purchase of Care,05/07/2023,4154178-I-23-9573379,"12,515.62",MARTON CARE HOMES LTD T/A ELIZABETH FLEMING CARE HOME.
Adult and Health Services,Head of Adults,Third Party Payments,470101,Purchase of Care,05/07/2023,4154179-I-23-9573189,"10,404.00",MARTON CARE HOMES LTD T/A GROSVENOR PARK CARE HOME.
Adult and Health Services,Head of Adults,Third Party Payments,470101,Purchase of Care,05/07/2023,4154180-I-23-9573185,"106,812.44",MARTON CARE HOMES LTD T/A LANGLEY PARK CARE HOME.
Adult and Health Services,Head of Adults,Third Party Payments,470101,Purchase of Care,05/07/2023,4154181-I-23-9573425,"88,480.00",MARTON CARE HOMES LTD T/A ST HELENS CARE HOME.
Adult and Health Services,Head of Adults,Third Party Payments,470101,Purchase of Care,05/07/2023,4154198-I-23-9573353,"27,085.64",MEADOW VIEW.
Adult and Health Services,Head of Adults,Third Party Payments,478101,Purchase of Care,05/07/2023,4154199-I-23-9572981,"20,927.19",MEARS EXTRA CARE LTD.
Adult and Health Services,Head of Adults,Third Party Payments,474101,Purchase of Care,05/07/2023,4154206-I-23-9573411,"2,111.16",MEMORY LANE CARE HOMES LTD.
Adult and Health Services,Head of Adults,Third Party Payments,478101,Purchase of Care,05/07/2023,4154207-I-23-9572885,"3,528.00",MENCAP.
Adult and Health Services,Head of Adults,Third Party Payments,472101,Purchase of Care,05/07/2023,4154207-I-23-9572974,"8,840.00",MENCAP.
Adult and Health Services,Head of Adults,Third Party Payments,478101,Purchase of Care,05/07/2023,4154207-I-23-9573143,"11,567.48",MENCAP.
Adult and Health Services,Head of Adults,Third Party Payments,470101,Purchase of Care,05/07/2023,4154208-I-23-9573215,"3,506.57",MERIDIAN HEALTHCARE LTD.
Adult and Health Services,Head of Adults,Third Party Payments,474101,Purchase of Care,05/07/2023,4154209-I-23-9573180,"43,885.04",MERRYWELL CARE (BELMONT GRANGE) LTD.
Adult and Health Services,Head of Adults,Third Party Payments,470101,Purchase of Care,05/07/2023,4154210-I-23-9573257,"3,540.00",METHODIST HOMES.
Adult and Health Services,Head of Adults,Third Party Payments,472101,Purchase of Care,05/07/2023,4154219-I-23-9573168,"26,482.43",MIDDLETON CARE LTD.
Adult and Health Services,Head of Adults,Third Party Payments,472101,Purchase of Care,05/07/2023,4154225-I-23-9573096,"12,582.99",MMAB CONSULTING LTD.
Adult and Health Services,Head of Adults,Third Party Payments,470101,Purchase of Care,05/07/2023,4154228-I-23-9573111,"50,670.00",MOONRISE 24HR RECRUITMENT LTD.
Adult and Health Services,Head of Adults,Third Party Payments,470101,Purchase of Care,05/07/2023,4154229-I-23-9573391,"24,807.18",MOORLANDS HOLDINGS (NE) LTD.
Adult and Health Services,Head of Adults,Third Party Payments,473101,Purchase of Care,05/07/2023,4154230-I-23-9572848,"3,280.60",MOVEABLE FEASTS ARTS.
Adult and Health Services,Head of Adults,Third Party Payments,478101,Purchase of Care,05/07/2023,4154279-I-23-9572950,"117,683.23",MY HOMECARE ASSISTANCE LTD T/A MY HOMECARE.
Adult and Health Services,Head of Adults,Third Party Payments,478101,Purchase of Care,05/07/2023,4154279-I-23-9573134,"25,937.28",MY HOMECARE ASSISTANCE LTD T/A MY HOMECARE.
Adult and Health Services,Head of Adults,Third Party Payments,478101,Purchase of Care,05/07/2023,4154279-I-23-9573173,"34,772.62",MY HOMECARE ASSISTANCE LTD T/A MY HOMECARE.
Adult and Health Services,Head of Adults,Third Party Payments,478101,Purchase of Care,05/07/2023,4154279-I-23-9665096,"4,322.88",MY HOMECARE ASSISTANCE LTD T/A MY HOMECARE.
Adult and Health Services,Head of Adults,Third Party Payments,472101,Purchase of Care,05/07/2023,4154280-I-23-9573070,"10,173.41",MYCHOICE HOMECARE LTD.
Adult and Health Services,Head of Adults,Third Party Payments,473101,Purchase of Care,05/07/2023,4154289-I-23-9572856,"1,714.14",NEUROACTIVE UK.
Adult and Health Services,Head of Adults,Third Party Payments,473101,Purchase of Care,05/07/2023,4154291-I-23-9573157,"15,709.60",NEW STEPS CARE IN THE COMMUNITY LLP.
Adult and Health Services,Head of Adults,Third Party Payments,472101,Purchase of Care,05/07/2023,4154292-I-23-9573001,"30,015.39",NEW VISION CARE SERVICES LTD.
Adult and Health Services,Head of Adults,Third Party Payments,470101,Purchase of Care,05/07/2023,4154293-I-23-9573194,"20,629.44",NEWLIFE CARE SERVICES LTD.
Adult and Health Services,Head of Adults,Third Party Payments,472101,Purchase of Care,05/07/2023,4154296-I-23-9573160,"2,240.00",NIGHTINGALES COMMUNITY CARE LTD.
Adult and Health Services,Head of Adults,Third Party Payments,472101,Purchase of Care,05/07/2023,4154298-I-23-9572863,"9,782.60",NORTH EAST AUTISM SOCIETY.
Adult and Health Services,Head of Adults,Third Party Payments,470101,Purchase of Care,05/07/2023,4154299-I-23-9573361,"4,967.16",NORTH EAST AUTISM SOCIETY.
Adult and Health Services,Head of Adults,Third Party Payments,470101,Purchase of Care,05/07/2023,4154300-I-23-9573197,"17,386.40",NORTH EAST AUTISM SOCIETY.
Adult and Health Services,Head of Adults,Third Party Payments,470101,Purchase of Care,05/07/2023,4154301-I-23-9573293,"5,541.16",NORTH EAST AUTISM SOCIETY.
Adult and Health Services,Head of Adults,Third Party Payments,478101,Purchase of Care,05/07/2023,4154303-I-23-9572842,"33,139.92",NORTH EAST AUTISM SOCIETY.
Adult and Health Services,Head of Adults,Third Party Payments,473101,Purchase of Care,05/07/2023,4154303-I-23-9572891,"40,536.95",NORTH EAST AUTISM SOCIETY.
Adult and Health Services,Head of Adults,Third Party Payments,478101,Purchase of Care,05/07/2023,4154303-I-23-9572942,"13,831.56",NORTH EAST AUTISM SOCIETY.
Adult and Health Services,Head of Adults,Third Party Payments,478101,Purchase of Care,05/07/2023,4154303-I-23-9573066,"15,525.00",NORTH EAST AUTISM SOCIETY.
Adult and Health Services,Head of Adults,Third Party Payments,473101,Purchase of Care,05/07/2023,4154303-I-23-9573079,"2,087.58",NORTH EAST AUTISM SOCIETY.
Adult and Health Services,Head of Adults,Third Party Payments,478101,Purchase of Care,05/07/2023,4154303-I-23-9573151,"12,235.32",NORTH EAST AUTISM SOCIETY.
Adult and Health Services,Head of Adults,Third Party Payments,470101,Purchase of Care,05/07/2023,4154303-I-23-9573331,"7,063.80",NORTH EAST AUTISM SOCIETY.
Adult and Health Services,Head of Adults,Third Party Payments,472101,Purchase of Care,05/07/2023,4154304-I-23-9094350,537.97,NORTH EAST BEFRIENDING SERVICE CIC.
Adult and Health Services,Head of Adults,Third Party Payments,472101,Purchase of Care,05/07/2023,4154304-I-23-9572915,620.04,NORTH EAST BEFRIENDING SERVICE CIC.
Adult and Health Services,Head of Adults,Third Party Payments,478101,Purchase of Care,05/07/2023,4154306-I-23-9573077,"1,672.40",NORTHERN LIFE CARE LTD T/A UBU.
Adult and Health Services,Head of Adults,Third Party Payments,474101,Purchase of Care,05/07/2023,4154307-I-23-9573325,"3,562.56",NORTHLEA COURT.
Adult and Health Services,Head of Adults,Third Party Payments,470101,Purchase of Care,05/07/2023,4154308-I-23-9573430,"7,820.76",NORWOOD.
Adult and Health Services,Head of Adults,Third Party Payments,478101,Purchase of Care,05/07/2023,4154310-I-23-9572833,"3,617.08",OAKLEA TRUST.
Adult and Health Services,Head of Adults,Third Party Payments,478101,Purchase of Care,05/07/2023,4154310-I-23-9572886,"19,968.48",OAKLEA TRUST.
Adult and Health Services,Head of Adults,Third Party Payments,478101,Purchase of Care,05/07/2023,4154310-I-23-9572893,"34,248.28",OAKLEA TRUST.
Adult and Health Services,Head of Adults,Third Party Payments,478101,Purchase of Care,05/07/2023,4154310-I-23-9572894,"9,856.84",OAKLEA TRUST.
Adult and Health Services,Head of Adults,Third Party Payments,478101,Purchase of Care,05/07/2023,4154310-I-23-9572930,"18,249.28",OAKLEA TRUST.
Adult and Health Services,Head of Adults,Third Party Payments,478101,Purchase of Care,05/07/2023,4154310-I-23-9572932,"21,618.04",OAKLEA TRUST.
Adult and Health Services,Head of Adults,Third Party Payments,478101,Purchase of Care,05/07/2023,4154310-I-23-9572933,"16,069.72",OAKLEA TRUST.
Adult and Health Services,Head of Adults,Third Party Payments,478101,Purchase of Care,05/07/2023,4154310-I-23-9573019,"10,134.88",OAKLEA TRUST.
Adult and Health Services,Head of Adults,Third Party Payments,478101,Purchase of Care,05/07/2023,4154310-I-23-9573020,"4,855.76",OAKLEA TRUST.
Adult and Health Services,Head of Adults,Third Party Payments,478101,Purchase of Care,05/07/2023,4154310-I-23-9573064,"28,626.48",OAKLEA TRUST.
Adult and Health Services,Head of Adults,Third Party Payments,478101,Purchase of Care,05/07/2023,4154310-I-23-9573065,"46,937.30",OAKLEA TRUST.
Adult and Health Services,Head of Adults,Third Party Payments,478101,Purchase of Care,05/07/2023,4154310-I-23-9573078,"27,273.96",OAKLEA TRUST.
Adult and Health Services,Head of Adults,Third Party Payments,478101,Purchase of Care,05/07/2023,4154310-I-23-9573100,"19,766.60",OAKLEA TRUST.
Adult and Health Services,Head of Adults,Third Party Payments,478101,Purchase of Care,05/07/2023,4154310-I-23-9573101,"10,840.48",OAKLEA TRUST.
Adult and Health Services,Head of Adults,Third Party Payments,478101,Purchase of Care,05/07/2023,4154310-I-23-9573144,"30,738.40",OAKLEA TRUST.
Adult and Health Services,Head of Adults,Third Party Payments,473101,Purchase of Care,05/07/2023,4154311-I-23-9572916,"3,992.35",OBJECT QUEST LTD.
Adult and Health Services,Head of Adults,Third Party Payments,478151,Purchase of Care,05/07/2023,4154314-1,"1,100.47",OLIVE STONE SUPPORT.
Adult and Health Services,Head of Adults,Third Party Payments,478101,Purchase of Care,05/07/2023,4154314-I-23-9572931,"10,069.68",OLIVE STONE SUPPORT.
Adult and Health Services,Head of Adults,Third Party Payments,478101,Purchase of Care,05/07/2023,4154314-I-23-9573029,"18,350.08",OLIVE STONE SUPPORT.
Adult and Health Services,Head of Adults,Third Party Payments,472101,Purchase of Care,05/07/2023,4154320-I-23-9573053,"97,190.31",ORCHARD HOME CARE SERVICES LTD.
Adult and Health Services,Head of Adults,Third Party Payments,470101,Purchase of Care,05/07/2023,4154321-I-23-9573090,623.20,OSWALD HOUSE CARE HOME LTD.
Adult and Health Services,Head of Adults,Third Party Payments,470101,Purchase of Care,05/07/2023,4154321-I-23-9573382,"9,060.00",OSWALD HOUSE CARE HOME LTD.
Adult and Health Services,Head of Adults,Third Party Payments,470101,Purchase of Care,05/07/2023,4154322-I-23-9573196,"9,060.00",OSWALD HOUSE CARE HOME LTD.
Adult and Health Services,Head of Adults,Third Party Payments,470101,Purchase of Care,05/07/2023,4154323-I-23-9573236,"9,060.00",OSWALD HOUSE CARE HOME LTD.
Adult and Health Services,Head of Adults,Third Party Payments,470101,Purchase of Care,05/07/2023,4154324-I-23-9573013,"1,994.24",OSWALD HOUSE CARE HOME LTD.
Adult and Health Services,Head of Adults,Third Party Payments,470101,Purchase of Care,05/07/2023,4154324-I-23-9573317,"21,040.52",OSWALD HOUSE CARE HOME LTD.
Adult and Health Services,Head of Adults,Third Party Payments,470101,Purchase of Care,05/07/2023,4154325-I-23-9573252,"6,040.00",OSWALD HOUSE CARE HOME LTD.
Adult and Health Services,Head of Adults,Third Party Payments,470101,Purchase of Care,05/07/2023,4154331-I-23-9573424,"40,255.88",PARAMOUNT CARE (GATESHEAD) LTD.
Adult and Health Services,Head of Adults,Third Party Payments,470101,Purchase of Care,05/07/2023,4154333-I-23-9573448,"15,334.72",PATHWAYS CARE GROUP LTD.
Adult and Health Services,Head of Adults,Third Party Payments,470101,Purchase of Care,05/07/2023,4154355-I-23-9573297,"3,133.20",PEARLCARE (KENDAL) LTD T/A GILLING REANE CARE HOME.
Adult and Health Services,Head of Adults,Third Party Payments,473101,Purchase of Care,05/07/2023,4154358-I-23-9573071,"3,331.44",PERCY HEDLEY FOUNDATION.
Adult and Health Services,Head of Adults,Third Party Payments,472101,Purchase of Care,05/07/2023,4154359-I-21-1195692-4/7/23,572.40,PERFECT CARE LTD.
Adult and Health Services,Head of Adults,Third Party Payments,472101,Purchase of Care,05/07/2023,4154359-I-21-1308961-4/7/23,572.40,PERFECT CARE LTD.
Adult and Health Services,Head of Adults,Third Party Payments,472101,Purchase of Care,05/07/2023,4154359-I-23-9573131,"215,766.92",PERFECT CARE LTD.
Adult and Health Services,Head of Adults,Third Party Payments,473101,Purchase of Care,05/07/2023,4154363-I-23-9573080,"2,794.44",PHOENIX DAY CENTRE CIC.
Adult and Health Services,Head of Adults,Third Party Payments,470101,Purchase of Care,05/07/2023,4154364-I-23-9573336,"6,042.86",PHOENIX FUTURES.
Adult and Health Services,Head of Adults,Third Party Payments,473101,Purchase of Care,05/07/2023,4154365-I-23-9573140,"8,291.79",PIONEERING CARE PARTNERSHIP.
Adult and Health Services,Head of Adults,Third Party Payments,470101,Purchase of Care,05/07/2023,4154366-I-23-9573305,"13,083.05",POPULAR CARE LTD..
Adult and Health Services,Head of Adults,Third Party Payments,474101,Purchase of Care,05/07/2023,4154366-I-23-9573381,"114,840.80",POPULAR CARE LTD..
Adult and Health Services,Head of Adults,Third Party Payments,473101,Purchase of Care,05/07/2023,4154368-I-23-9572960,"1,252.10",POSITIVE CARE & SUPPORT LTD.
Adult and Health Services,Head of Adults,Third Party Payments,478101,Purchase of Care,05/07/2023,4154369-I-23-9572897,"16,457.28",POSITIVE INDIVIDUAL PROACTIVE SUPPORT LTD.
Adult and Health Services,Head of Adults,Third Party Payments,478101,Purchase of Care,05/07/2023,4154369-I-23-9572900,"12,453.56",POSITIVE INDIVIDUAL PROACTIVE SUPPORT LTD.
Adult and Health Services,Head of Adults,Third Party Payments,478101,Purchase of Care,05/07/2023,4154369-I-23-9573032,"42,895.08",POSITIVE INDIVIDUAL PROACTIVE SUPPORT LTD.
Adult and Health Services,Head of Adults,Third Party Payments,478101,Purchase of Care,05/07/2023,4154369-I-23-9573125,"3,902.08",POSITIVE INDIVIDUAL PROACTIVE SUPPORT LTD.
Adult and Health Services,Head of Adults,Third Party Payments,472101,Purchase of Care,05/07/2023,4154370-I-23-9573162,"15,479.76",POSSIBILITES NE LTD.
Adult and Health Services,Head of Adults,Third Party Payments,470101,Purchase of Care,05/07/2023,4154371-I-23-9573266,"28,769.44",POTENSIAL LTD T/A POTENS.
Adult and Health Services,Head of Adults,Third Party Payments,478101,Purchase of Care,05/07/2023,4154372-I-23-9573033,"23,641.44",POTENSIAL LTD T/A POTENS.
Adult and Health Services,Head of Adults,Third Party Payments,478101,Purchase of Care,05/07/2023,4154373-I-23-9573123,"20,885.76",POTENSIAL LTD T/A POTENS.
Adult and Health Services,Head of Adults,Third Party Payments,470101,Purchase of Care,05/07/2023,4154374-I-23-9573453,"44,066.12",PREMIER CARE HOMES LTD.
Adult and Health Services,Head of Adults,Third Party Payments,474101,Purchase of Care,05/07/2023,4154375-I-23-9573350,"122,286.86",PREMIER CARE HOMES LTD.
Adult and Health Services,Head of Adults,Third Party Payments,472101,Purchase of Care,05/07/2023,4154376-I-23-9572922,"115,556.67",PREMIER COMMUNITY CARE LTD.
Adult and Health Services,Head of Adults,Third Party Payments,470101,Purchase of Care,05/07/2023,4154377-I-23-9573428,"3,000.88",PREMIER NURSING HOMES T/A BRIARWOOD CARE HOME.
Adult and Health Services,Head of Adults,Third Party Payments,470101,Purchase of Care,05/07/2023,4154380-I-23-9573355,"3,000.88",PRESTIGE CARE (YEW TREE) LTD.
Adult and Health Services,Head of Adults,Third Party Payments,470101,Purchase of Care,05/07/2023,4154381-I-23-9573434,"6,831.65",PRESTWICK CARE T/A BELLE VUE HOUSE CARE HOME.
Adult and Health Services,Head of Adults,Third Party Payments,470101,Purchase of Care,05/07/2023,4154382-I-23-9573401,"2,721.60",PRIME LIFE LTD T/A WESTERLANDS CARE HOME.
Adult and Health Services,Head of Adults,Third Party Payments,470101,Purchase of Care,05/07/2023,4154383-I-23-9573296,"3,199.12",PRIMROSE CARE HOME HETTON LTD.
Adult and Health Services,Head of Adults,Third Party Payments,474101,Purchase of Care,05/07/2023,4154387-I-23-9573426,"11,765.96",QUALIA CARE LTD T/A WASHINGTON LODGE.
Adult and Health Services,Head of Adults,Third Party Payments,472101,Purchase of Care,05/07/2023,4154389-I-23-9572857,"4,100.00",QUALITY FIRST CARE SERVICES LTD.
Adult and Health Services,Head of Adults,Third Party Payments,470101,Purchase of Care,05/07/2023,4154398-I-23-9573417,"34,243.08",RAYSON HOMES LTD.
Adult and Health Services,Head of Adults,Third Party Payments,470101,Purchase of Care,05/07/2023,4154399-I-23-9573192,"60,052.77",RAYSON HOMES LTD.
Adult and Health Services,Head of Adults,Third Party Payments,473101,Purchase of Care,05/07/2023,4154401-I-23-9572937,"21,929.11",REAL CARE LTD.
Adult and Health Services,Head of Adults,Third Party Payments,474101,Purchase of Care,05/07/2023,4154405-I-23-9573450,"8,173.44",RENAL HEALTH LTD.
Adult and Health Services,Head of Adults,Third Party Payments,470101,Purchase of Care,05/07/2023,4154407-I-23-9573278,"17,129.68",RESOLVE (CARE NORTHERN) LTD..
Adult and Health Services,Head of Adults,Third Party Payments,470101,Purchase of Care,05/07/2023,4154408-I-23-9573402,"4,334.88",RESOLVE (CARE NORTHERN) LTD..
Adult and Health Services,Head of Adults,Third Party Payments,478101,Purchase of Care,05/07/2023,4154412-I-23-8095558,"13,855.48",RICHMOND FELLOWSHIP.
Adult and Health Services,Head of Adults,Third Party Payments,478101,Purchase of Care,05/07/2023,4154412-I-23-9573005,"28,366.18",RICHMOND FELLOWSHIP.
Adult and Health Services,Head of Adults,Third Party Payments,470101,Purchase of Care,05/07/2023,4154413-I-23-9573427,"1,462.88",RICHMOND FELLOWSHIP.
Adult and Health Services,Head of Adults,Third Party Payments,470101,Purchase of Care,05/07/2023,4154416-I-23-9573404,"2,897.32",RIVERSIDE HOUSE PROPCO LTD.
Adult and Health Services,Head of Adults,Third Party Payments,478101,Purchase of Care,05/07/2023,4154421-I-23-9573051,"2,670.69",ROC FAMILY SUPPORT LTD.
Adult and Health Services,Head of Adults,Third Party Payments,478101,Purchase of Care,05/07/2023,4154422-I-23-9572861,"1,337.00",ROC SOLID LTD.
Adult and Health Services,Head of Adults,Third Party Payments,470101,Purchase of Care,05/07/2023,4154424-I-23-9573442,"10,959.88",ROSEBERRY CARE CENTRES (ENGLAND) LTD.
Adult and Health Services,Head of Adults,Third Party Payments,474101,Purchase of Care,05/07/2023,4154425-I-23-9591237,"3,487.78",ROSEBERRY CARE CENTRES GB LTD.
Adult and Health Services,Head of Adults,Third Party Payments,470101,Purchase of Care,05/07/2023,4154426-I-23-9573301,"108,311.82",ROSEBERRY CARE CENTRES GB LTD.
Adult and Health Services,Head of Adults,Third Party Payments,470101,Purchase of Care,05/07/2023,4154428-I-23-9573326,"29,686.67",ROSEMOUNT TRUST.
Adult and Health Services,Head of Adults,Third Party Payments,470101,Purchase of Care,05/07/2023,4154431-I-23-9573333,"2,866.64",RUNWOOD HOMES LTD.
Adult and Health Services,Head of Adults,Third Party Payments,470101,Purchase of Care,05/07/2023,4154437-I-23-9573195,"6,024.88",SAINT JOHN OF GOD HOSPITALLER SERVICES.
Adult and Health Services,Head of Adults,Third Party Payments,478101,Purchase of Care,05/07/2023,4154438-I-23-9573041,"1,341.08",SALVATION ARMY HOUSING ASSOCIATION (SAHA).
Adult and Health Services,Head of Adults,Third Party Payments,470101,Purchase of Care,05/07/2023,4154444-I-23-9573373,"105,913.90",SANCTUARY CARE (ENGLAND) LTD.
Adult and Health Services,Head of Adults,Third Party Payments,470101,Purchase of Care,05/07/2023,4154445-I-23-9573182,"107,305.46",SANCTUARY CARE (ENGLAND) LTD.
Adult and Health Services,Head of Adults,Third Party Payments,474101,Purchase of Care,05/07/2023,4154446-I-23-9573423,"94,781.64",SANCTUARY CARE (ENGLAND) LTD.
Adult and Health Services,Head of Adults,Third Party Payments,474101,Purchase of Care,05/07/2023,4154447-I-23-9573203,"17,478.78",SANCTUARY CARE (ENGLAND) LTD.
Adult and Health Services,Head of Adults,Third Party Payments,474101,Purchase of Care,05/07/2023,4154448-I-23-9573179,"163,815.22",SANCTUARY CARE (ENGLAND) LTD.
Adult and Health Services,Head of Adults,Third Party Payments,478101,Purchase of Care,05/07/2023,4154449-I-23-9573135,"2,050.80",SANCTUARY HOME CARE LTD.
Adult and Health Services,Head of Adults,Third Party Payments,478101,Purchase of Care,05/07/2023,4154450-I-23-9573008,"1,764.00",SANCTUARY HOME CARE LTD.
Adult and Health Services,Head of Adults,Third Party Payments,474101,Purchase of Care,05/07/2023,4154455-I-23-9573464,"101,215.35",SEAHAM CARE LTD.
Adult and Health Services,Head of Adults,Third Party Payments,474101,Purchase of Care,05/07/2023,4154456-I-23-9573265,"112,387.43",SEAHAM CARE LTD.
Adult and Health Services,Head of Adults,Third Party Payments,472101,Purchase of Care,05/07/2023,4154458-I-23-9573011,"40,460.72",SECOND TO NONE CARE LTD.
Adult and Health Services,Head of Adults,Third Party Payments,470101,Purchase of Care,05/07/2023,4154459-I-23-9573328,"1,259.16",SELF (NORTH EAST) LTD.
Adult and Health Services,Head of Adults,Third Party Payments,470101,Purchase of Care,05/07/2023,4154459-I-23-9573436,"30,925.71",SELF (NORTH EAST) LTD.
Adult and Health Services,Head of Adults,Third Party Payments,470101,Purchase of Care,05/07/2023,4154460-I-23-9340361,"6,988.40",SENSE.
Adult and Health Services,Head of Adults,Third Party Payments,470101,Purchase of Care,05/07/2023,4154460-I-23-9573225,"6,988.40",SENSE.
Adult and Health Services,Head of Adults,Third Party Payments,474101,Purchase of Care,05/07/2023,4154461-I-23-9573315,"2,600.00",SEYMOUR HOUSE HARTLEPOOL LTD.
Adult and Health Services,Head of Adults,Third Party Payments,470101,Purchase of Care,05/07/2023,4154462-I-23-9573234,"126,283.33",SHAFTESBURY CARE GROUP LTD.
Adult and Health Services,Head of Adults,Third Party Payments,473101,Purchase of Care,05/07/2023,4154465-I-23-9573139,"14,584.08",SHAW TRUST GARDEN PROJECT.*
Adult and Health Services,Head of Adults,Third Party Payments,472101,Purchase of Care,05/07/2023,4154467-I-23-9572954,"76,642.71",SHEENA MILES CARE SERVICES LTD.
Adult and Health Services,Head of Adults,Third Party Payments,470101,Purchase of Care,05/07/2023,4154469-I-23-9573418,"69,088.23",SHERBURN HOUSE CHARITY.
Adult and Health Services,Head of Adults,Third Party Payments,470101,Purchase of Care,05/07/2023,4154476-I-23-9573429,"2,667.16",SLW LTD.
Adult and Health Services,Head of Adults,Third Party Payments,474101,Purchase of Care,05/07/2023,4154477-I-23-9573274,"15,551.22",SOLEHAWK LTD T/A CRAIGIELEA CARE HOME.
Adult and Health Services,Head of Adults,Third Party Payments,478101,Purchase of Care,05/07/2023,4154480-I-23-9573164,"6,892.32",SOVEREIGN CARE (NORTH EAST) LTD.
Adult and Health Services,Head of Adults,Third Party Payments,470101,Purchase of Care,05/07/2023,4154480-I-23-9573468,"34,759.08",SOVEREIGN CARE (NORTH EAST) LTD.
Adult and Health Services,Head of Adults,Third Party Payments,478101,Purchase of Care,05/07/2023,4154481-I-23-9572955,"5,154.96",SOVEREIGN CARE (NORTH EAST) LTD.
Adult and Health Services,Head of Adults,Third Party Payments,470101,Purchase of Care,05/07/2023,4154482-I-23-9573362,"12,690.41",SPECIALITY CARE (REHAB) LTD.
Adult and Health Services,Head of Adults,Third Party Payments,472101,Purchase of Care,05/07/2023,4154483-I-23-9573058,"1,822.60",SPECTRUM COMMUNITY HEALTH.
Adult and Health Services,Head of Adults,Third Party Payments,472101,Purchase of Care,05/07/2023,4154483-I-23-9573121,"2,233.12",SPECTRUM COMMUNITY HEALTH.
Adult and Health Services,Head of Adults,Third Party Payments,478101,Purchase of Care,05/07/2023,4154484-I-23-9573027,"10,838.88",SPRINGFIELD HOMECARE SERVICES LTD.
Adult and Health Services,Head of Adults,Third Party Payments,474101,Purchase of Care,05/07/2023,4154485-I-23-9573400,"3,423.12",SPYNIE CARE HOME.
Adult and Health Services,Head of Adults,Third Party Payments,470102,Purchase of Care,05/07/2023,4154486-I-23-9573276,"72,833.37",ST ANDREWS MPS LTD.
Adult and Health Services,Head of Adults,Third Party Payments,472101,Purchase of Care,05/07/2023,4154487-4781356,642.80,ST ANNES COMMUNITY SERVICES.
Adult and Health Services,Head of Adults,Third Party Payments,478101,Purchase of Care,05/07/2023,4154487-I-23-9572845,"17,343.68",ST ANNES COMMUNITY SERVICES.
Adult and Health Services,Head of Adults,Third Party Payments,478101,Purchase of Care,05/07/2023,4154487-I-23-9572978,"11,854.08",ST ANNES COMMUNITY SERVICES.
Adult and Health Services,Head of Adults,Third Party Payments,478101,Purchase of Care,05/07/2023,4154487-I-23-9572984,"11,854.08",ST ANNES COMMUNITY SERVICES.
Adult and Health Services,Head of Adults,Third Party Payments,478101,Purchase of Care,05/07/2023,4154487-I-23-9572985,"5,676.56",ST ANNES COMMUNITY SERVICES.
Adult and Health Services,Head of Adults,Third Party Payments,478101,Purchase of Care,05/07/2023,4154487-I-23-9573023,"17,781.12",ST ANNES COMMUNITY SERVICES.
Adult and Health Services,Head of Adults,Third Party Payments,478101,Purchase of Care,05/07/2023,4154487-I-23-9573044,"10,314.24",ST ANNES COMMUNITY SERVICES.
Adult and Health Services,Head of Adults,Third Party Payments,478101,Purchase of Care,05/07/2023,4154487-I-23-9573073,"5,676.56",ST ANNES COMMUNITY SERVICES.
Adult and Health Services,Head of Adults,Third Party Payments,478101,Purchase of Care,05/07/2023,4154487-I-23-9573103,"11,854.08",ST ANNES COMMUNITY SERVICES.
Adult and Health Services,Head of Adults,Third Party Payments,478101,Purchase of Care,05/07/2023,4154487-I-23-9573105,"11,854.08",ST ANNES COMMUNITY SERVICES.
Adult and Health Services,Head of Adults,Third Party Payments,478101,Purchase of Care,05/07/2023,4154487-I-23-9573126,"32,906.26",ST ANNES COMMUNITY SERVICES.
Adult and Health Services,Head of Adults,Third Party Payments,478101,Purchase of Care,05/07/2023,4154487-I-23-9573152,"16,183.68",ST ANNES COMMUNITY SERVICES.
Adult and Health Services,Head of Adults,Third Party Payments,478101,Purchase of Care,05/07/2023,4154487-I-23-9573165,"10,883.04",ST ANNES COMMUNITY SERVICES.
Adult and Health Services,Central/Other,Third Party Payments,474101,Purchase of Care,05/07/2023,4154488-I-23-9573184,"1,851.84",ST CUTHBERTS CARE.
Adult and Health Services,Head of Adults,Third Party Payments,470101,Purchase of Care,05/07/2023,4154489-I-23-9573256,"4,496.40",ST CUTHBERTS CARE.
Adult and Health Services,Head of Adults,Third Party Payments,470101,Purchase of Care,05/07/2023,4154491-I-23-9573396,"2,899.16",ST CUTHBERTS CARE.
Adult and Health Services,Head of Adults,Third Party Payments,474101,Purchase of Care,05/07/2023,4154492-I-23-9573330,570.97,ST MARTIN`S CARE LTD.
Adult and Health Services,Head of Adults,Third Party Payments,470101,Purchase of Care,05/07/2023,4154492-I-23-9573393,"2,681.20",ST MARTIN`S CARE LTD.
Adult and Health Services,Head of Adults,Third Party Payments,474101,Purchase of Care,05/07/2023,4154493-I-23-9573360,"2,848.00",ST MARTIN`S CARE LTD.
Adult and Health Services,Head of Adults,Third Party Payments,470101,Purchase of Care,05/07/2023,4154494-I-23-9573245,"3,121.52",ST MARTIN`S CARE LTD.
Adult and Health Services,Head of Adults,Third Party Payments,470101,Purchase of Care,05/07/2023,4154496-I-23-9573416,"135,124.21",ST PHILIPS CARE LTD.
Adult and Health Services,Head of Adults,Third Party Payments,470101,Purchase of Care,05/07/2023,4154497-I-23-9573397,"6,653.16",ST PHILIPS CARE LTD.
Adult and Health Services,Head of Adults,Third Party Payments,470101,Purchase of Care,05/07/2023,4154498-I-23-9573222,"95,141.56",ST PHILIPS CARE LTD.
Adult and Health Services,Head of Adults,Third Party Payments,474101,Purchase of Care,05/07/2023,4154501-I-23-9573199,"3,037.52",STAINTON LODGE CARE CENTRE.
Adult and Health Services,Head of Adults,Third Party Payments,472101,Purchase of Care,05/07/2023,4154511-I-23-9572896,951.00,SUNDERLAND HOME CARE ASSOCIATES 2020 LTD.
Adult and Health Services,Head of Adults,Third Party Payments,474101,Purchase of Care,05/07/2023,4154512-I-23-9573275,"33,531.83",SUNNY OKUKPOLOR HUMPHREYS.
Adult and Health Services,Head of Adults,Third Party Payments,478101,Purchase of Care,05/07/2023,4154513-I-23-9572961,"9,888.40",SUNNYSIDE HOUSE LTD T/A SUNNYSIDE HOME CARE.
Adult and Health Services,Head of Adults,Third Party Payments,472101,Purchase of Care,05/07/2023,4154514-I-23-9573050,"141,393.47",SUPPORTIVE SRC LTD.
Adult and Health Services,Head of Adults,Third Party Payments,470101,Purchase of Care,05/07/2023,4154524-I-23-9573471,"123,050.72",SWANTON CARE & COMMUNITY (AUTISM NORTH) LTD.
Adult and Health Services,Head of Adults,Third Party Payments,470101,Purchase of Care,05/07/2023,4154525-I-23-9573307,"8,222.04",SWANTON CARE & COMMUNITY (AUTISM NORTH) LTD.
Adult and Health Services,Head of Adults,Third Party Payments,470101,Purchase of Care,05/07/2023,4154526-I-23-9573285,"5,467.08",SWANTON CARE & COMMUNITY (AUTISM NORTH) LTD.
Adult and Health Services,Head of Adults,Third Party Payments,470101,Purchase of Care,05/07/2023,4154527-I-23-9573295,"7,626.32",SWANTON CARE & COMMUNITY (AUTISM NORTH) LTD.
Adult and Health Services,Head of Adults,Third Party Payments,470101,Purchase of Care,05/07/2023,4154528-I-23-9573244,"34,168.92",SWANTON CARE & COMMUNITY (AUTISM NORTH) LTD.
Adult and Health Services,Head of Adults,Third Party Payments,470101,Purchase of Care,05/07/2023,4154529-I-23-9573358,"17,688.48",SWANTON CARE & COMMUNITY (AUTISM NORTH) LTD.
Adult and Health Services,Head of Adults,Third Party Payments,470101,Purchase of Care,05/07/2023,4154530-I-23-9573419,"7,263.80",SWANTON CARE & COMMUNITY (AUTISM NORTH) LTD.
Adult and Health Services,Head of Adults,Third Party Payments,474101,Purchase of Care,05/07/2023,4154532-I-23-9573339,"1,902.96",TAMARIS HEALTHCARE (ENGLAND) LTD.
Adult and Health Services,Head of Adults,Third Party Payments,474101,Purchase of Care,05/07/2023,4154533-I-23-9573218,"113,092.42",TAMARIS HEALTHCARE (ENGLAND) LTD.
Adult and Health Services,Head of Adults,Third Party Payments,470101,Purchase of Care,05/07/2023,4154534-I-23-9573280,"2,580.40",TAMARIS HEALTHCARE (ENGLAND) LTD.
Adult and Health Services,Head of Adults,Third Party Payments,474101,Purchase of Care,05/07/2023,4154535-I-23-9573447,"125,040.29",TAMARIS HEALTHCARE (ENGLAND) LTD.
Adult and Health Services,Head of Adults,Third Party Payments,470101,Purchase of Care,05/07/2023,4154537-I-23-9573228,"117,413.81",TAMARIS HEALTHCARE (ENGLAND) LTD.
Adult and Health Services,Head of Adults,Third Party Payments,470101,Purchase of Care,05/07/2023,4154538-I-23-9094689,"5,123.50",TAMARIS HEALTHCARE (ENGLAND) LTD.
Adult and Health Services,Central/Other,Third Party Payments,474101,Purchase of Care,05/07/2023,4154539-I-23-9573233,"23,582.67",TAMARIS HEALTHCARE (ENGLAND) LTD.
Adult and Health Services,Head of Adults,Third Party Payments,470101,Purchase of Care,05/07/2023,4154540-I-23-9573255,"2,836.00",TAMARIS HEALTHCARE (ENGLAND) LTD.
Adult and Health Services,Head of Adults,Third Party Payments,470101,Purchase of Care,05/07/2023,4154546-I-23-9573292,"48,778.44",THE FIELDS CARE HOME.
Adult and Health Services,Head of Adults,Third Party Payments,470101,Purchase of Care,05/07/2023,4154548-I-23-9573220,"115,883.34",THE HAWTHORNS LODGE LTD.
Adult and Health Services,Head of Adults,Third Party Payments,473101,Purchase of Care,05/07/2023,4154549-I-23-9572986,"3,197.76",THE HOSPITAL OF GOD AT GREATHAM.
Adult and Health Services,Head of Adults,Third Party Payments,472111,Purchase of Care,05/07/2023,4154550-I-23-9572958,"90,817.47",THE HUMAN SUPPORT GROUP LTD.
Adult and Health Services,Head of Adults,Third Party Payments,472101,Purchase of Care,05/07/2023,4154550-I-23-9573129,"20,680.06",THE HUMAN SUPPORT GROUP LTD.
Adult and Health Services,Head of Adults,Third Party Payments,478101,Purchase of Care,05/07/2023,4154551-I-23-9573138,"25,120.20",THE INTEGRATION TRUST LTD.
Adult and Health Services,Head of Adults,Third Party Payments,470101,Purchase of Care,05/07/2023,4154552-I-23-9573321,"9,364.68",THE LAURELS CARE SERVICES LTD.
Adult and Health Services,Head of Adults,Third Party Payments,470101,Purchase of Care,05/07/2023,4154553-I-23-9573204,"19,916.93",THE ORDER OF THE GOOD & PERPETUAL SUCCOUR.
Adult and Health Services,Head of Adults,Third Party Payments,470101,Purchase of Care,05/07/2023,4154554-I-23-9573302,"20,268.84",THE PERCY HEDLEY FOUNDATION.
Adult and Health Services,Head of Adults,Third Party Payments,470101,Purchase of Care,05/07/2023,4154555-I-23-9573394,"23,107.32",THE PERCY HEDLEY FOUNDATION.
Adult and Health Services,Head of Adults,Third Party Payments,470101,Purchase of Care,05/07/2023,4154556-I-23-9573408,"2,850.56",THE SALVATION ARMY T/A VILLA ADASTRA CARE HOME.
Adult and Health Services,Head of Adults,Third Party Payments,473101,Purchase of Care,05/07/2023,4154558-I-23-9573089,"1,483.71",THE WIDER WORLD PROJECT.
Adult and Health Services,Head of Adults,Third Party Payments,478101,Purchase of Care,05/07/2023,4154559-I-23-9572980,"37,119.44",THERA NORTH TRADING LTD.
Adult and Health Services,Head of Adults,Third Party Payments,478101,Purchase of Care,05/07/2023,4154559-I-23-9573133,"12,297.60",THERA NORTH TRADING LTD.
Adult and Health Services,Head of Adults,Third Party Payments,473101,Purchase of Care,05/07/2023,4154572-I-23-9572864,"34,136.10",THOMPSON & HOWE LTD.
Adult and Health Services,Head of Adults,Third Party Payments,473101,Purchase of Care,05/07/2023,4154572-I-23-9572892,"17,536.62",THOMPSON & HOWE LTD.
Adult and Health Services,Head of Adults,Third Party Payments,473101,Purchase of Care,05/07/2023,4154572-I-23-9572935,"25,051.12",THOMPSON & HOWE LTD.
Adult and Health Services,Head of Adults,Third Party Payments,473101,Purchase of Care,05/07/2023,4154572-I-23-9572951,"35,680.10",THOMPSON & HOWE LTD.
Adult and Health Services,Head of Adults,Third Party Payments,473101,Purchase of Care,05/07/2023,4154572-I-23-9573099,"34,101.02",THOMPSON & HOWE LTD.
Adult and Health Services,Head of Adults,Third Party Payments,473101,Purchase of Care,05/07/2023,4154572-I-23-9573109,"41,025.84",THOMPSON & HOWE LTD.
Adult and Health Services,Head of Adults,Third Party Payments,473101,Purchase of Care,05/07/2023,4154572-I-23-9573118,"24,442.32",THOMPSON & HOWE LTD.
Adult and Health Services,Head of Adults,Third Party Payments,473101,Purchase of Care,05/07/2023,4154572-I-23-9573145,"40,702.98",THOMPSON & HOWE LTD.
Adult and Health Services,Head of Adults,Third Party Payments,473101,Purchase of Care,05/07/2023,4154574-I-23-9572934,"1,656.12",TIN ARTS LTD.
Adult and Health Services,Head of Adults,Third Party Payments,470101,Purchase of Care,05/07/2023,4154575-I-23-9573422,"2,848.00",TL CARE LTD.
Adult and Health Services,Head of Adults,Third Party Payments,472101,Purchase of Care,05/07/2023,4154576-I-23-9573171,"16,935.46",TLC COMMUNITY SERVICES.
Adult and Health Services,Head of Adults,Third Party Payments,470101,Purchase of Care,05/07/2023,4154577-I-23-9573200,"100,351.27",TRIMS GYM LTD.
Adult and Health Services,Head of Adults,Third Party Payments,470101,Purchase of Care,05/07/2023,4154579-I-23-9573439,"7,982.24",TRUST CARE MANAGEMENT LTD.
Adult and Health Services,Head of Adults,Third Party Payments,478101,Purchase of Care,05/07/2023,4154580-I-23-9573128,"1,604.96",TURNAROUND HOMES (3 TO 13).
Adult and Health Services,Head of Adults,Third Party Payments,470101,Purchase of Care,05/07/2023,4154582-I-23-9573472,"3,136.00",ULTIMATE CARE LTD.
Adult and Health Services,Head of Adults,Third Party Payments,478101,Purchase of Care,05/07/2023,4154583-I-23-9573022,"14,649.68",UNITED RESPONSE.
Adult and Health Services,Head of Adults,Third Party Payments,470101,Purchase of Care,05/07/2023,4154585-I-23-9573323,"22,747.04",VALDIGARTH RESIDENTIAL CARE HOME.
Adult and Health Services,Head of Adults,Third Party Payments,474101,Purchase of Care,05/07/2023,4154591-I-23-9573347,"12,229.72",VICTORIA HOUSE.
Adult and Health Services,Head of Adults,Third Party Payments,472101,Purchase of Care,05/07/2023,4154593-I-23-9572919,"20,967.88",VILLAGE CARE LTD.
Adult and Health Services,Head of Adults,Third Party Payments,473101,Purchase of Care,05/07/2023,4154595-I-23-9572831,"7,196.92",VOIDSERVICES LTD.
Adult and Health Services,Head of Adults,Third Party Payments,470101,Purchase of Care,05/07/2023,4154596-I-23-9573251,"5,915.68",VOYAGE 1 LTD.
Adult and Health Services,Head of Adults,Third Party Payments,478101,Purchase of Care,05/07/2023,4154597-I-23-9572987,"28,702.96",VOYAGE 1 LTD.
Adult and Health Services,Head of Adults,Third Party Payments,478101,Purchase of Care,05/07/2023,4154597-I-23-9573026,"10,981.60",VOYAGE 1 LTD.
Adult and Health Services,Head of Adults,Third Party Payments,470101,Purchase of Care,05/07/2023,4154597-I-23-9573398,"11,234.80",VOYAGE 1 LTD.
Adult and Health Services,Head of Adults,Third Party Payments,470101,Purchase of Care,05/07/2023,4154598-I-23-9573473,"27,133.04",VOYAGE 1 LTD.
Adult and Health Services,Head of Adults,Third Party Payments,470101,Purchase of Care,05/07/2023,4154599-I-23-9573441,"8,449.60",VOYAGE 1 LTD.
Adult and Health Services,Head of Adults,Third Party Payments,470101,Purchase of Care,05/07/2023,4154600-I-23-9573378,"13,529.88",VOYAGE 1 LTD.
Adult and Health Services,Head of Adults,Third Party Payments,470101,Purchase of Care,05/07/2023,4154601-I-23-9573403,"2,929.60",WATERLOO HOUSE RESIDENTIAL CARE HOME LTD.
Adult and Health Services,Head of Adults,Third Party Payments,473101,Purchase of Care,05/07/2023,4154604-I-23-9572988,"17,862.82",WEAR 1 CARE LTD.
Adult and Health Services,Head of Adults,Third Party Payments,473101,Purchase of Care,05/07/2023,4154605-I-23-9572940,"1,756.44",WEAR VALLEY ANGLING CIC.
Adult and Health Services,Head of Adults,Third Party Payments,470101,Purchase of Care,05/07/2023,4154607-I-23-9573370,"2,942.60",WELLBURN CARE HOMES LTD.
Adult and Health Services,Head of Adults,Third Party Payments,478101,Purchase of Care,05/07/2023,4154608-I-23-7118980,"75,987.72",WEST CUMBRIA CARE & SUPPORT.
Adult and Health Services,Head of Adults,Third Party Payments,478101,Purchase of Care,05/07/2023,4154608-I-23-9094487,"4,888.80",WEST CUMBRIA CARE & SUPPORT.
Adult and Health Services,Head of Adults,Third Party Payments,470101,Purchase of Care,05/07/2023,4154609-I-23-9573271,"41,427.56",WEST HOUSE CARE HOME LTD.
Adult and Health Services,Head of Adults,Third Party Payments,470101,Purchase of Care,05/07/2023,4154610-I-23-9573282,"155,922.77",WEST LODGE CARE HOMES LTD.
Adult and Health Services,Head of Adults,Third Party Payments,470102,Purchase of Care,05/07/2023,4154613-I-23-9573229,"75,436.24",WILLIAMS & SPENCELEY LTD.
Adult and Health Services,Head of Adults,Third Party Payments,473101,Purchase of Care,05/07/2023,4154617-I-23-9572884,"8,412.00",WOODCRAFT FOR LANDSCAPES CIC.
Adult and Health Services,Head of Adults,Third Party Payments,474101,Purchase of Care,05/07/2023,4154619-I-23-9573474,"3,328.40",WYVIS HOUSE CARE HOME LTD.
Adult and Health Services,Head of Adults,Third Party Payments,472101,Purchase of Care,05/07/2023,4154620-I-23-9572964,"14,315.45",YESHUA HEALTHCARE LTD.
Adult and Health Services,Head of Adults,Third Party Payments,478101,Purchase of Care,05/07/2023,4154624-I-23-9572852,"9,390.24",YS SERVICES LTD T/A EMBRACING CARE.
Adult and Health Services,Head of Adults,Third Party Payments,478101,Purchase of Care,05/07/2023,4154624-I-23-9572853,"21,067.36",YS SERVICES LTD T/A EMBRACING CARE.
Adult and Health Services,Head of Adults,Third Party Payments,478101,Purchase of Care,05/07/2023,4154624-I-23-9572854,"13,464.90",YS SERVICES LTD T/A EMBRACING CARE.
Adult and Health Services,Head of Adults,Third Party Payments,478101,Purchase of Care,05/07/2023,4154624-I-23-9572855,"12,106.80",YS SERVICES LTD T/A EMBRACING CARE.
Adult and Health Services,Head of Adults,Third Party Payments,478101,Purchase of Care,05/07/2023,4154624-I-23-9572901,"11,190.24",YS SERVICES LTD T/A EMBRACING CARE.
Adult and Health Services,Head of Adults,Third Party Payments,478101,Purchase of Care,05/07/2023,4154624-I-23-9572902,"10,218.68",YS SERVICES LTD T/A EMBRACING CARE.
Adult and Health Services,Head of Adults,Third Party Payments,478101,Purchase of Care,05/07/2023,4154624-I-23-9572903,"11,296.08",YS SERVICES LTD T/A EMBRACING CARE.
Adult and Health Services,Head of Adults,Third Party Payments,478101,Purchase of Care,05/07/2023,4154624-I-23-9572904,"9,412.62",YS SERVICES LTD T/A EMBRACING CARE.
Adult and Health Services,Head of Adults,Third Party Payments,478101,Purchase of Care,05/07/2023,4154624-I-23-9572905,"10,871.36",YS SERVICES LTD T/A EMBRACING CARE.
